Body Name,Body,Service Label,Service Code,Service Division Label,Service Division Code,Expenditure Category,Expenditure Code,CIPFA Detailed Expenditure Type,CIPFA Detailed Expenditure Code,Date,Transaction Number,CC 43 TBM Section,CCN 43 TBM Section,Net Amount,Capital and Revenue,Creditor Name
Brighton & Hove City Council,http://statistics.data.gov.uk/id/local-authority/00ML,Central Support and Overheads,BVACEN,Support Services (SSC),PPT,Supplies and Services,E,Services,EF,09/12/2015,PAY00821597,POLI,Policy and Initiatives,350,Revenue,1 Crown Office Row
Brighton & Hove City Council,http://statistics.data.gov.uk/id/local-authority/00ML,Cultural and Related Serv,BVACUL,Culture and Heritage,CHG,Supplies and Services,E,Miscellaneous Expenses,EM,23/12/2015,PAY00825805,VENU,Venues,350,Revenue,2Upfront Design
Brighton & Hove City Council,http://statistics.data.gov.uk/id/local-authority/00ML,Cultural and Related Serv,BVACUL,Tourism,TRM,Supplies and Services,E,Miscellaneous Expenses,EM,23/12/2015,PAY00825805,TOMA,Tourism and Marketing,350,Revenue,2Upfront Design
Brighton & Hove City Council,http://statistics.data.gov.uk/id/local-authority/00ML,Cultural and Related Serv,BVACUL,Culture and Heritage,CHG,Customer n Client Receipts,M,Fees n Charges,MB,02/12/2015,PAY00819828,VENU,Venues,-17393,Revenue,3A Entertainment Ltd
Brighton & Hove City Council,http://statistics.data.gov.uk/id/local-authority/00ML,Cultural and Related Serv,BVACUL,Culture and Heritage,CHG,Customer n Client Receipts,M,Sales,MA,02/12/2015,PAY00819828,VENU,Venues,133612.5,Revenue,3A Entertainment Ltd
Brighton & Hove City Council,http://statistics.data.gov.uk/id/local-authority/00ML,Cultural and Related Serv,BVACUL,Culture and Heritage,CHG,Supplies and Services,E,Communications n Computing,EH,02/12/2015,PAY00819828,VENU,Venues,-22.7,Revenue,3A Entertainment Ltd
Brighton & Hove City Council,http://statistics.data.gov.uk/id/local-authority/00ML,Cultural and Related Serv,BVACUL,Culture and Heritage,CHG,Supplies and Services,E,Equip't Furniture n Materials,EA,02/12/2015,PAY00819828,VENU,Venues,-284,Revenue,3A Entertainment Ltd
Brighton & Hove City Council,http://statistics.data.gov.uk/id/local-authority/00ML,Cultural and Related Serv,BVACUL,Culture and Heritage,CHG,Supplies and Services,E,Miscellaneous Expenses,EM,02/12/2015,PAY00819828,VENU,Venues,-84.19,Revenue,3A Entertainment Ltd
Brighton & Hove City Council,http://statistics.data.gov.uk/id/local-authority/00ML,Cultural and Related Serv,BVACUL,Culture and Heritage,CHG,Customer n Client Receipts,M,Fees n Charges,MB,16/12/2015,PAY00823818,VENU,Venues,-14750,Revenue,3A Entertainment Ltd
Brighton & Hove City Council,http://statistics.data.gov.uk/id/local-authority/00ML,Cultural and Related Serv,BVACUL,Culture and Heritage,CHG,Customer n Client Receipts,M,Sales,MA,16/12/2015,PAY00823818,VENU,Venues,94900,Revenue,3A Entertainment Ltd
Brighton & Hove City Council,http://statistics.data.gov.uk/id/local-authority/00ML,Cultural and Related Serv,BVACUL,Culture and Heritage,CHG,Supplies and Services,E,Communications n Computing,EH,16/12/2015,PAY00823818,VENU,Venues,-35.15,Revenue,3A Entertainment Ltd
Brighton & Hove City Council,http://statistics.data.gov.uk/id/local-authority/00ML,Cultural and Related Serv,BVACUL,Culture and Heritage,CHG,Supplies and Services,E,Equip't Furniture n Materials,EA,16/12/2015,PAY00823818,VENU,Venues,-234,Revenue,3A Entertainment Ltd
Brighton & Hove City Council,http://statistics.data.gov.uk/id/local-authority/00ML,Cultural and Related Serv,BVACUL,Culture and Heritage,CHG,Supplies and Services,E,Miscellaneous Expenses,EM,16/12/2015,PAY00823818,VENU,Venues,-4264.19,Revenue,3A Entertainment Ltd
Brighton & Hove City Council,http://statistics.data.gov.uk/id/local-authority/00ML,Non I&E,BVANON,CAP Sport and Recreation,4RC,Plant Machinery n Equipment,PE2,Plant Machinery n Equipment,PE2L5,18/12/2015,PAY00825495,MJPR,Major Projects,400,Capital,5 Rings Telecom Ltd
Brighton & Hove City Council,http://statistics.data.gov.uk/id/local-authority/00ML,Housing General Fund,BVAHOG,Homelessness,HML,Premises Related,C,Rents Payable,CC,24/12/2015,PAY00827366,ASSA,Hostel Accommodation,6000,Revenue,61 St Aubyns Ltd
Brighton & Hove City Council,http://statistics.data.gov.uk/id/local-authority/00ML,Highways and Transportation,BVAHRT,Traffic Mgmnt and Road Safety,TMR,Customer n Client Receipts,M,Fees n Charges,MB,23/12/2015,PAY00826057,HIGH,Highways,1665,Revenue,6-10 Traffic Management Limited
Brighton & Hove City Council,http://statistics.data.gov.uk/id/local-authority/00ML,Cultural and Related Serv,BVACUL,Culture and Heritage,CHG,Premises Related,C,Repair Maint n Alterations,CA,18/12/2015,PAY00825025,VENU,Venues,280,Revenue,A W Matthews Ornamental Fabrication
Brighton & Hove City Council,http://statistics.data.gov.uk/id/local-authority/00ML,Adult Social Care,BVASOC,ASC Learning Disabilities,ALD,Customer n Client Receipts,M,Fees n Charges,MB,18/12/2015,PAY00824960,LDIS,Learning Disabilities,-643.6,Revenue,Abbey Care Group Ltd-Saxon Court
Brighton & Hove City Council,http://statistics.data.gov.uk/id/local-authority/00ML,Adult Social Care,BVASOC,ASC Learning Disabilities,ALD,Third Party Payments,F,Other Establishments,FH,18/12/2015,PAY00824960,LDIS,Learning Disabilities,6296.6,Revenue,Abbey Care Group Ltd-Saxon Court
Brighton & Hove City Council,http://statistics.data.gov.uk/id/local-authority/00ML,Children`s & Education Serv,BVAEDU,Child Srvcs - Other Fam Supp,FFX,Transfer Payments,G,Other Transfer Payments,GD,02/12/2015,PAY00820049,FAMP,Families\Prevention,225,Revenue,abc Translations
Brighton & Hove City Council,http://statistics.data.gov.uk/id/local-authority/00ML,Adult Social Care,BVASOC,ASC Physical Support,PHY,Third Party Payments,F,Other Establishments,FH,16/12/2015,PAY00823923,PHYS,Physical Support,3720,Revenue,Abi House
Brighton & Hove City Council,http://statistics.data.gov.uk/id/local-authority/00ML,Adult Social Care,BVASOC,ASC Learning Disabilities,ALD,Customer n Client Receipts,M,Fees n Charges,MB,18/12/2015,PAY00825127,LDIS,Learning Disabilities,-400.6,Revenue,Abi House
Brighton & Hove City Council,http://statistics.data.gov.uk/id/local-authority/00ML,Adult Social Care,BVASOC,ASC Learning Disabilities,ALD,Third Party Payments,F,Other Establishments,FH,18/12/2015,PAY00825127,LDIS,Learning Disabilities,4884,Revenue,Abi House
Brighton & Hove City Council,http://statistics.data.gov.uk/id/local-authority/00ML,Central Support and Overheads,BVACEN,Support Services (SSC),PPT,Indirect Employees,B,Training,BM,02/12/2015,PAY00819753,COMU,Communications,1583,Revenue,Ability Net Limited
Brighton & Hove City Council,http://statistics.data.gov.uk/id/local-authority/00ML,Central Support and Overheads,BVACEN,Support Services (SSC),PPT,Indirect Employees,B,Training,BM,02/12/2015,PAY00819753,ICTA,ICT,3167,Revenue,Ability Net Limited
Brighton & Hove City Council,http://statistics.data.gov.uk/id/local-authority/00ML,Non I&E,BVANON,Cap - Housing Services - HRA,4HR,New Construction n Conversion,PB,New Construction n Conversion,PBL5,23/12/2015,PAY00825972,HPAI,Property & Investment,2050,Capital,ABIR Architects Ltd
Brighton & Hove City Council,http://statistics.data.gov.uk/id/local-authority/00ML,Housing General Fund,BVAHOG,Hsing Welfare,HGW,Transfer Payments,G,Supporting People,GF,02/12/2015,PAY00819823,AHRS,Housing Related Support,2289.62,Revenue,About Me Care & Support
Brighton & Hove City Council,http://statistics.data.gov.uk/id/local-authority/00ML,Housing General Fund,BVAHOG,Hsing Welfare,HGW,Transfer Payments,G,Supporting People,GF,24/12/2015,PAY00826827,AHRS,Housing Related Support,2289.62,Revenue,About Me Care & Support
Brighton & Hove City Council,http://statistics.data.gov.uk/id/local-authority/00ML,Adult Social Care,BVASOC,ASC Sensory Support,AHV,Customer n Client Receipts,M,Fees n Charges,MB,31/12/2015,PAY00827846,SORY,Sensory Support,-124,Revenue,About Me Care & Support
Brighton & Hove City Council,http://statistics.data.gov.uk/id/local-authority/00ML,Adult Social Care,BVASOC,ASC Sensory Support,AHV,Third Party Payments,F,Other Establishments,FH,31/12/2015,PAY00827846,SORY,Sensory Support,405.2,Revenue,About Me Care & Support
Brighton & Hove City Council,http://statistics.data.gov.uk/id/local-authority/00ML,Children`s & Education Serv,BVAEDU,Management Services (DEC),MGT,Supplies and Services,E,Miscellaneous Expenses,EM,16/12/2015,PAY00824093,SOCK,Social Work,1321.23,Revenue,Absolute Translations Ltd
Brighton & Hove City Council,http://statistics.data.gov.uk/id/local-authority/00ML,Central Support and Overheads,BVACEN,Support Services (SSC),PPT,Indirect Employees,B,Training,BM,09/12/2015,PAY00821489,POLI,Policy and Initiatives,417.5,Revenue,ACAS
Brighton & Hove City Council,http://statistics.data.gov.uk/id/local-authority/00ML,Housing Revenue Account,BVAHOU,Hsing Management - HRA,HGM,Supplies and Services,E,Print Stat & Gen Office Exps,ED,16/12/2015,PAY00824225,HIII,Income Involvement Improvement,615.81,Revenue,ACB Ltd
Brighton & Hove City Council,http://statistics.data.gov.uk/id/local-authority/00ML,Central Support and Overheads,BVACEN,Support Services (SSC),PPT,Supplies and Services,E,Miscellaneous Expenses,EM,04/12/2015,PAY00820578,COMU,Communications,19530,Revenue,Accelerated Mailing & Marketing
Brighton & Hove City Council,http://statistics.data.gov.uk/id/local-authority/00ML,Non I&E,BVANON,CAP Housing Services GF,4HG,Capital Grants,PF,Capital Grants,PFL5,02/12/2015,PAY00819646,PSHG,Private Sector Housing,7372.43,Capital,Access Mobility
Brighton & Hove City Council,http://statistics.data.gov.uk/id/local-authority/00ML,Non I&E,BVANON,Cap - Housing Services - HRA,4HR,New Construction n Conversion,PB,New Construction n Conversion,PBL5,09/12/2015,PAY00821390,HPAI,Property & Investment,13801.42,Capital,Access Mobility
Brighton & Hove City Council,http://statistics.data.gov.uk/id/local-authority/00ML,Non I&E,BVANON,Cap - Housing Services - HRA,4HR,New Construction n Conversion,PB,New Construction n Conversion,PBL5,18/12/2015,PAY00824607,HPAI,Property & Investment,12371.14,Capital,Access Mobility
Brighton & Hove City Council,http://statistics.data.gov.uk/id/local-authority/00ML,Non I&E,BVANON,Cap - Housing Services - HRA,4HR,New Construction n Conversion,PB,New Construction n Conversion,PBL5,31/12/2015,PAY00827596,HPAI,Property & Investment,8712.01,Capital,Access Mobility
Brighton & Hove City Council,http://statistics.data.gov.uk/id/local-authority/00ML,Adult Social Care,BVASOC,Assistive Equipment & Tech,AET,Supplies and Services,E,Equip't Furniture n Materials,EA,31/12/2015,PAY00828088,SSCT,S75 SCT,560,Revenue,Accora
Brighton & Hove City Council,http://statistics.data.gov.uk/id/local-authority/00ML,Children`s & Education Serv,BVAEDU,Ed Ed Other LA Attrib Sch,ELA,Transport Related,D,Other Transport Costs,DG,02/12/2015,PAY00819729,OEDS,Other Education Support,1440,Revenue,Ace Travel Ltd
Brighton & Hove City Council,http://statistics.data.gov.uk/id/local-authority/00ML,Children`s & Education Serv,BVAEDU,Ed Ed Other LA Attrib Sch,ELA,Transport Related,D,Other Transport Costs,DG,24/12/2015,PAY00826618,OEDS,Other Education Support,1740,Revenue,Ace Travel Ltd
Brighton & Hove City Council,http://statistics.data.gov.uk/id/local-authority/00ML,Children`s & Education Serv,BVAEDU,Ed Mgmt and Support Services,EMG,Supplies and Services,E,Communications n Computing,EH,23/12/2015,PAY00825757,MUSE,Music Service,647.5,Revenue,Ackerman Music Ltd
Brighton & Hove City Council,http://statistics.data.gov.uk/id/local-authority/00ML,Adult Social Care,BVASOC,ASC Learning Disabilities,ALD,Customer n Client Receipts,M,Fees n Charges,MB,18/12/2015,PAY00824908,LDIS,Learning Disabilities,-1786.96,Revenue,Acorn (Watford) Ltd
Brighton & Hove City Council,http://statistics.data.gov.uk/id/local-authority/00ML,Adult Social Care,BVASOC,ASC Learning Disabilities,ALD,Third Party Payments,F,Other Establishments,FH,18/12/2015,PAY00824908,LDIS,Learning Disabilities,15329.84,Revenue,Acorn (Watford) Ltd
Brighton & Hove City Council,http://statistics.data.gov.uk/id/local-authority/00ML,Central Support and Overheads,BVACEN,Support Services (SSC),PPT,Premises Related,C,Cleaning n Domestic Supps,CH,23/12/2015,PAY00826023,PROP,Property and Design,1475.05,Revenue,Acorn Environmental
Brighton & Hove City Council,http://statistics.data.gov.uk/id/local-authority/00ML,Children`s & Education Serv,BVAEDU,Child Srvcs - Residential Svcs,FLR,Third Party Payments,F,Other Establishments,FH,16/12/2015,PAY00824277,AVFM,Agency Placements\VFM,14614.33,Revenue,Acorn Homes Uk Ltd
Brighton & Hove City Council,http://statistics.data.gov.uk/id/local-authority/00ML,Children`s & Education Serv,BVAEDU,Child Srvcs - Residential Svcs,FLR,Third Party Payments,F,Other Establishments,FH,18/12/2015,PAY00825507,AVFM,Agency Placements\VFM,7049.91,Revenue,Acorn Homes Uk Ltd
Brighton & Hove City Council,http://statistics.data.gov.uk/id/local-authority/00ML,Adult Social Care,BVASOC,Social Care Activities,ACM,Third Party Payments,F,Other Establishments,FH,18/12/2015,PAY00825342,ASIT,Assessment and SIT,300,Revenue,Action Deafness
Brighton & Hove City Council,http://statistics.data.gov.uk/id/local-authority/00ML,Adult Social Care,BVASOC,Social Care Activities,ACM,Supplies and Services,E,Services,EF,04/12/2015,PAY00821193,ASIT,Assessment and SIT,7670,Revenue,Action First iPeople Ltd
Brighton & Hove City Council,http://statistics.data.gov.uk/id/local-authority/00ML,Adult Social Care,BVASOC,Social Care Activities,ACM,Supplies and Services,E,Services,EF,23/12/2015,PAY00826240,ASIT,Assessment and SIT,10915,Revenue,Action First iPeople Ltd
Brighton & Hove City Council,http://statistics.data.gov.uk/id/local-authority/00ML,Adult Social Care,BVASOC,Social Care Activities,ACM,Supplies and Services,E,Services,EF,31/12/2015,PAY00828177,ASIT,Assessment and SIT,13474,Revenue,Action First iPeople Ltd
Brighton & Hove City Council,http://statistics.data.gov.uk/id/local-authority/00ML,Public Health,BVAPHE,Community Safety,CMY,Third Party Payments,F,Other Establishments,FH,02/12/2015,PAY00820253,CSTP,Comm Safety Team & Partnership,5500,Revenue,Active Change Foundation Ltd
Brighton & Hove City Council,http://statistics.data.gov.uk/id/local-authority/00ML,Children`s & Education Serv,BVAEDU,Ed EY PVI,ENP,Supplies and Services,E,Grants n Subscriptions,EK,16/12/2015,PAY00824179,EYRS,Early Years,2807,Revenue,ActiveKids Nursery
Brighton & Hove City Council,http://statistics.data.gov.uk/id/local-authority/00ML,Children`s & Education Serv,BVAEDU,Ed EY PVI,ENP,Supplies and Services,E,Grants n Subscriptions,EK,18/12/2015,PAY00825388,EYRS,Early Years,7427,Revenue,ActiveKids Nursery
Brighton & Hove City Council,http://statistics.data.gov.uk/id/local-authority/00ML,Adult Social Care,BVASOC,ASC Learning Disabilities,ALD,Supplies and Services,E,Equip't Furniture n Materials,EA,16/12/2015,PAY00824064,SUPE,Supported Employment,366.27,Revenue,AD Colour Ltd
Brighton & Hove City Council,http://statistics.data.gov.uk/id/local-authority/00ML,Adult Social Care,BVASOC,ASC Learning Disabilities,ALD,Supplies and Services,E,Equip't Furniture n Materials,EA,18/12/2015,PAY00825290,SUPE,Supported Employment,285.97,Revenue,AD Colour Ltd
Brighton & Hove City Council,http://statistics.data.gov.uk/id/local-authority/00ML,Environment & Regulatory Serv,BVAERS,Street Cleansing,CLE,Transport Related,D,Direct Transport Costs,DA,04/12/2015,PAY00821121,CICL,City Clean,2254.53,Revenue,Addex Trading
Brighton & Hove City Council,http://statistics.data.gov.uk/id/local-authority/00ML,Adult Social Care,BVASOC,ASC Physical Support,PHY,Customer n Client Receipts,M,Fees n Charges,MB,18/12/2015,PAY00825083,PHYS,Physical Support,-570.56,Revenue,Adelaide Healthcare Ltd
Brighton & Hove City Council,http://statistics.data.gov.uk/id/local-authority/00ML,Adult Social Care,BVASOC,ASC Physical Support,PHY,Third Party Payments,F,Other Establishments,FH,18/12/2015,PAY00825083,PHYS,Physical Support,2500.68,Revenue,Adelaide Healthcare Ltd
Brighton & Hove City Council,http://statistics.data.gov.uk/id/local-authority/00ML,Central Support and Overheads,BVACEN,Support Services (SSC),PPT,Third Party Payments,F,Other Establishments,FH,04/12/2015,PAY00820730,FINS,Financial Services,3777.2,Revenue,Adelaide Nursing Home
Brighton & Hove City Council,http://statistics.data.gov.uk/id/local-authority/00ML,Adult Social Care,BVASOC,ASC Physical Support,PHY,Customer n Client Receipts,M,Fees n Charges,MB,18/12/2015,PAY00824909,PHYS,Physical Support,-4875.24,Revenue,Adelaide Nursing Home
Brighton & Hove City Council,http://statistics.data.gov.uk/id/local-authority/00ML,Adult Social Care,BVASOC,ASC Physical Support,PHY,Third Party Payments,F,Other Establishments,FH,18/12/2015,PAY00824909,PHYS,Physical Support,31241.39,Revenue,Adelaide Nursing Home
Brighton & Hove City Council,http://statistics.data.gov.uk/id/local-authority/00ML,Children`s & Education Serv,BVAEDU,Management Services (DEC),MGT,Supplies and Services,E,Services,EF,09/12/2015,PAY00821869,SOCK,Social Work,1352,Revenue,Advanced Child Care Assessments Limited
Brighton & Hove City Council,http://statistics.data.gov.uk/id/local-authority/00ML,Central Services to the Public,BVACEN,Reg - Birth Death and Marriage,RBD,Supplies and Services,E,Goods for Resale,EG,11/12/2015,PAY00822526,LIFE,Life Events,858,Revenue,Advanta Marketing Ltd
Brighton & Hove City Council,http://statistics.data.gov.uk/id/local-authority/00ML,Cultural and Related Serv,BVACUL,Culture and Heritage,CHG,Customer n Client Receipts,M,Fees n Charges,MB,02/12/2015,PAY00819741,VENU,Venues,-14750,Revenue,AEG Live (UK) Ltd
Brighton & Hove City Council,http://statistics.data.gov.uk/id/local-authority/00ML,Cultural and Related Serv,BVACUL,Culture and Heritage,CHG,Customer n Client Receipts,M,Sales,MA,02/12/2015,PAY00819741,VENU,Venues,55110.42,Revenue,AEG Live (UK) Ltd
Brighton & Hove City Council,http://statistics.data.gov.uk/id/local-authority/00ML,Cultural and Related Serv,BVACUL,Culture and Heritage,CHG,Supplies and Services,E,Communications n Computing,EH,02/12/2015,PAY00819741,VENU,Venues,-25.65,Revenue,AEG Live (UK) Ltd
Brighton & Hove City Council,http://statistics.data.gov.uk/id/local-authority/00ML,Cultural and Related Serv,BVACUL,Culture and Heritage,CHG,Supplies and Services,E,Equip't Furniture n Materials,EA,02/12/2015,PAY00819741,VENU,Venues,-95,Revenue,AEG Live (UK) Ltd
Brighton & Hove City Council,http://statistics.data.gov.uk/id/local-authority/00ML,Cultural and Related Serv,BVACUL,Culture and Heritage,CHG,Supplies and Services,E,Miscellaneous Expenses,EM,02/12/2015,PAY00819741,VENU,Venues,-2173.5,Revenue,AEG Live (UK) Ltd
Brighton & Hove City Council,http://statistics.data.gov.uk/id/local-authority/00ML,Adult Social Care,BVASOC,ASC Learning Disabilities,ALD,Supplies and Services,E,Equip't Furniture n Materials,EA,11/12/2015,PAY00823417,SUPE,Supported Employment,362.5,Revenue,Aero Healthcare Ltd
Brighton & Hove City Council,http://statistics.data.gov.uk/id/local-authority/00ML,Housing General Fund,BVAHOG,Hsing Welfare,HGW,Transfer Payments,G,Supporting People,GF,02/12/2015,PAY00819772,AHRS,Housing Related Support,7750,Revenue,Affinity Sutton Homes Ltd
Brighton & Hove City Council,http://statistics.data.gov.uk/id/local-authority/00ML,Children`s & Education Serv,BVAEDU,Child Srvcs Leaving Care,FAL,Transfer Payments,G,Other Transfer Payments,GD,09/12/2015,PAY00821466,CHIC,Children In Care,349.76,Revenue,Affinity Sutton Homes Ltd
Brighton & Hove City Council,http://statistics.data.gov.uk/id/local-authority/00ML,Children`s & Education Serv,BVAEDU,Child Srvcs Leaving Care,FAL,Transfer Payments,G,Other Transfer Payments,GD,24/12/2015,PAY00827438,CHIC,Children In Care,450,Revenue,Affitto Estate Agents
Brighton & Hove City Council,http://statistics.data.gov.uk/id/local-authority/00ML,Central Services to the Public,BVACEN,Support Services (SSC),PPT,Supplies and Services,E,Services,EF,23/12/2015,PAY00826270,REVS,Revenues and Benefits,3699.61,Revenue,Agilisys Contact Services Ltd
Brighton & Hove City Council,http://statistics.data.gov.uk/id/local-authority/00ML,Adult Social Care,BVASOC,ASC Mental Health Support,MHP,Third Party Payments,F,Other Establishments,FH,02/12/2015,PAY00819720,MENH,Mental Health Support,15.1,Revenue,Agincare UK Ltd
Brighton & Hove City Council,http://statistics.data.gov.uk/id/local-authority/00ML,Adult Social Care,BVASOC,ASC Physical Support,PHY,Third Party Payments,F,Other Establishments,FH,02/12/2015,PAY00819720,PHYS,Physical Support,717.12,Revenue,Agincare UK Ltd
Brighton & Hove City Council,http://statistics.data.gov.uk/id/local-authority/00ML,Adult Social Care,BVASOC,ASC Memory Cognition Support,MEM,Customer n Client Receipts,M,Fees n Charges,MB,04/12/2015,PAY00820564,COGN,Memory Cognition Support,-262,Revenue,Agincare UK Ltd
Brighton & Hove City Council,http://statistics.data.gov.uk/id/local-authority/00ML,Adult Social Care,BVASOC,ASC Memory Cognition Support,MEM,Third Party Payments,F,Other Establishments,FH,04/12/2015,PAY00820564,COGN,Memory Cognition Support,1183.13,Revenue,Agincare UK Ltd
Brighton & Hove City Council,http://statistics.data.gov.uk/id/local-authority/00ML,Adult Social Care,BVASOC,ASC Mental Health Support,MHP,Third Party Payments,F,Other Establishments,FH,04/12/2015,PAY00820564,MENH,Mental Health Support,984.46,Revenue,Agincare UK Ltd
Brighton & Hove City Council,http://statistics.data.gov.uk/id/local-authority/00ML,Adult Social Care,BVASOC,ASC Physical Support,PHY,Customer n Client Receipts,M,Fees n Charges,MB,04/12/2015,PAY00820564,PHYS,Physical Support,-3018,Revenue,Agincare UK Ltd
Brighton & Hove City Council,http://statistics.data.gov.uk/id/local-authority/00ML,Adult Social Care,BVASOC,ASC Physical Support,PHY,Third Party Payments,F,Other Establishments,FH,04/12/2015,PAY00820564,PHYS,Physical Support,21185.67,Revenue,Agincare UK Ltd
Brighton & Hove City Council,http://statistics.data.gov.uk/id/local-authority/00ML,Adult Social Care,BVASOC,ASC Substance Misuse,ADM,Customer n Client Receipts,M,Fees n Charges,MB,04/12/2015,PAY00820564,SUBM,Substance Misuse Support,-17,Revenue,Agincare UK Ltd
Brighton & Hove City Council,http://statistics.data.gov.uk/id/local-authority/00ML,Adult Social Care,BVASOC,ASC Substance Misuse,ADM,Third Party Payments,F,Other Establishments,FH,04/12/2015,PAY00820564,SUBM,Substance Misuse Support,253.18,Revenue,Agincare UK Ltd
Brighton & Hove City Council,http://statistics.data.gov.uk/id/local-authority/00ML,Adult Social Care,BVASOC,ASC Memory Cognition Support,MEM,Customer n Client Receipts,M,Fees n Charges,MB,09/12/2015,PAY00821462,COGN,Memory Cognition Support,-450,Revenue,Agincare UK Ltd
Brighton & Hove City Council,http://statistics.data.gov.uk/id/local-authority/00ML,Adult Social Care,BVASOC,ASC Memory Cognition Support,MEM,Third Party Payments,F,Other Establishments,FH,09/12/2015,PAY00821462,COGN,Memory Cognition Support,1018.71,Revenue,Agincare UK Ltd
Brighton & Hove City Council,http://statistics.data.gov.uk/id/local-authority/00ML,Adult Social Care,BVASOC,ASC Memory Cognition Support,MEM,Customer n Client Receipts,M,Fees n Charges,MB,11/12/2015,PAY00822296,COGN,Memory Cognition Support,-287,Revenue,Agincare UK Ltd
Brighton & Hove City Council,http://statistics.data.gov.uk/id/local-authority/00ML,Adult Social Care,BVASOC,ASC Memory Cognition Support,MEM,Third Party Payments,F,Other Establishments,FH,11/12/2015,PAY00822296,COGN,Memory Cognition Support,1239.12,Revenue,Agincare UK Ltd
Brighton & Hove City Council,http://statistics.data.gov.uk/id/local-authority/00ML,Adult Social Care,BVASOC,ASC Mental Health Support,MHP,Third Party Payments,F,Other Establishments,FH,11/12/2015,PAY00822296,MENH,Mental Health Support,946.69,Revenue,Agincare UK Ltd
Brighton & Hove City Council,http://statistics.data.gov.uk/id/local-authority/00ML,Adult Social Care,BVASOC,ASC Physical Support,PHY,Customer n Client Receipts,M,Fees n Charges,MB,11/12/2015,PAY00822296,PHYS,Physical Support,-2931,Revenue,Agincare UK Ltd
Brighton & Hove City Council,http://statistics.data.gov.uk/id/local-authority/00ML,Adult Social Care,BVASOC,ASC Physical Support,PHY,Third Party Payments,F,Other Establishments,FH,11/12/2015,PAY00822296,PHYS,Physical Support,21101.78,Revenue,Agincare UK Ltd
Brighton & Hove City Council,http://statistics.data.gov.uk/id/local-authority/00ML,Adult Social Care,BVASOC,ASC Substance Misuse,ADM,Customer n Client Receipts,M,Fees n Charges,MB,11/12/2015,PAY00822296,SUBM,Substance Misuse Support,-17,Revenue,Agincare UK Ltd
Brighton & Hove City Council,http://statistics.data.gov.uk/id/local-authority/00ML,Adult Social Care,BVASOC,ASC Substance Misuse,ADM,Third Party Payments,F,Other Establishments,FH,11/12/2015,PAY00822296,SUBM,Substance Misuse Support,230.53,Revenue,Agincare UK Ltd
Brighton & Hove City Council,http://statistics.data.gov.uk/id/local-authority/00ML,Adult Social Care,BVASOC,ASC Sensory Support,AHV,Third Party Payments,F,Other Establishments,FH,16/12/2015,PAY00823675,SORY,Sensory Support,255.02,Revenue,Agincare UK Ltd
Brighton & Hove City Council,http://statistics.data.gov.uk/id/local-authority/00ML,Adult Social Care,BVASOC,ASC Memory Cognition Support,MEM,Customer n Client Receipts,M,Fees n Charges,MB,24/12/2015,PAY00826608,COGN,Memory Cognition Support,-262,Revenue,Agincare UK Ltd
Brighton & Hove City Council,http://statistics.data.gov.uk/id/local-authority/00ML,Adult Social Care,BVASOC,ASC Memory Cognition Support,MEM,Third Party Payments,F,Other Establishments,FH,24/12/2015,PAY00826608,COGN,Memory Cognition Support,1010.66,Revenue,Agincare UK Ltd
Brighton & Hove City Council,http://statistics.data.gov.uk/id/local-authority/00ML,Adult Social Care,BVASOC,ASC Mental Health Support,MHP,Third Party Payments,F,Other Establishments,FH,24/12/2015,PAY00826608,MENH,Mental Health Support,951.8,Revenue,Agincare UK Ltd
Brighton & Hove City Council,http://statistics.data.gov.uk/id/local-authority/00ML,Adult Social Care,BVASOC,ASC Physical Support,PHY,Customer n Client Receipts,M,Fees n Charges,MB,24/12/2015,PAY00826608,PHYS,Physical Support,-2797,Revenue,Agincare UK Ltd
Brighton & Hove City Council,http://statistics.data.gov.uk/id/local-authority/00ML,Adult Social Care,BVASOC,ASC Physical Support,PHY,Third Party Payments,F,Other Establishments,FH,24/12/2015,PAY00826608,PHYS,Physical Support,21461.45,Revenue,Agincare UK Ltd
Brighton & Hove City Council,http://statistics.data.gov.uk/id/local-authority/00ML,Adult Social Care,BVASOC,ASC Sensory Support,AHV,Customer n Client Receipts,M,Fees n Charges,MB,24/12/2015,PAY00826608,SORY,Sensory Support,-89,Revenue,Agincare UK Ltd
Brighton & Hove City Council,http://statistics.data.gov.uk/id/local-authority/00ML,Adult Social Care,BVASOC,ASC Sensory Support,AHV,Third Party Payments,F,Other Establishments,FH,24/12/2015,PAY00826608,SORY,Sensory Support,130.62,Revenue,Agincare UK Ltd
Brighton & Hove City Council,http://statistics.data.gov.uk/id/local-authority/00ML,Adult Social Care,BVASOC,ASC Substance Misuse,ADM,Customer n Client Receipts,M,Fees n Charges,MB,24/12/2015,PAY00826608,SUBM,Substance Misuse Support,-17,Revenue,Agincare UK Ltd
Brighton & Hove City Council,http://statistics.data.gov.uk/id/local-authority/00ML,Adult Social Care,BVASOC,ASC Substance Misuse,ADM,Third Party Payments,F,Other Establishments,FH,24/12/2015,PAY00826608,SUBM,Substance Misuse Support,253.18,Revenue,Agincare UK Ltd
Brighton & Hove City Council,http://statistics.data.gov.uk/id/local-authority/00ML,Adult Social Care,BVASOC,ASC Physical Support,PHY,Customer n Client Receipts,M,Fees n Charges,MB,31/12/2015,PAY00827717,PHYS,Physical Support,-31,Revenue,Agincare UK Ltd
Brighton & Hove City Council,http://statistics.data.gov.uk/id/local-authority/00ML,Adult Social Care,BVASOC,ASC Physical Support,PHY,Third Party Payments,F,Other Establishments,FH,31/12/2015,PAY00827717,PHYS,Physical Support,440.99,Revenue,Agincare UK Ltd
Brighton & Hove City Council,http://statistics.data.gov.uk/id/local-authority/00ML,Non I&E,BVANON,CAP Sport and Recreation,4RC,New Construction n Conversion,PB,New Construction n Conversion,PBL5,24/12/2015,PAY00827471,CIPK,City Parks,48727.46,Capital,Agripower Limited
Brighton & Hove City Council,http://statistics.data.gov.uk/id/local-authority/00ML,Housing General Fund,BVAHOG,Homelessness,HML,Premises Related,C,Rents Payable,CC,11/12/2015,PAY00823415,TAAS,Temp Accom and Allocations,650,Revenue,AHJ Holdings Ltd
Brighton & Hove City Council,http://statistics.data.gov.uk/id/local-authority/00ML,Adult Social Care,BVASOC,ASC Learning Disabilities,ALD,Customer n Client Receipts,M,Fees n Charges,MB,18/12/2015,PAY00824734,LDIS,Learning Disabilities,-2882.2,Revenue,Aitch Care Homes (London) Ltd
Brighton & Hove City Council,http://statistics.data.gov.uk/id/local-authority/00ML,Adult Social Care,BVASOC,ASC Learning Disabilities,ALD,Third Party Payments,F,Other Establishments,FH,18/12/2015,PAY00824734,LDIS,Learning Disabilities,45271,Revenue,Aitch Care Homes (London) Ltd
Brighton & Hove City Council,http://statistics.data.gov.uk/id/local-authority/00ML,Environment & Regulatory Serv,BVAERS,Environmental Health,EVH,Supplies and Services,E,Print Stat & Gen Office Exps,ED,16/12/2015,PAY00823703,PUPO,Public Protection,468.1,Revenue,Aldrington Press Ltd
Brighton & Hove City Council,http://statistics.data.gov.uk/id/local-authority/00ML,Central Support and Overheads,BVACEN,Support Services (SSC),PPT,Supplies and Services,E,Services,EF,02/12/2015,PAY00819717,LEGS,Legal Services,1337,Revenue,Alere Toxicology PLC
Brighton & Hove City Council,http://statistics.data.gov.uk/id/local-authority/00ML,Children`s & Education Serv,BVAEDU,Management Services (DEC),MGT,Supplies and Services,E,Services,EF,02/12/2015,PAY00819717,SOCK,Social Work,130,Revenue,Alere Toxicology PLC
Brighton & Hove City Council,http://statistics.data.gov.uk/id/local-authority/00ML,Children`s & Education Serv,BVAEDU,Child Srvcs Com and Scl Work,FCW,Supplies and Services,E,Equip't Furniture n Materials,EA,16/12/2015,PAY00823668,SOCK,Social Work,255.5,Revenue,Alere Toxicology PLC
Brighton & Hove City Council,http://statistics.data.gov.uk/id/local-authority/00ML,Children`s & Education Serv,BVAEDU,Management Services (DEC),MGT,Supplies and Services,E,Services,EF,18/12/2015,PAY00824721,SOCK,Social Work,228.33,Revenue,Alere Toxicology PLC
Brighton & Hove City Council,http://statistics.data.gov.uk/id/local-authority/00ML,Children`s & Education Serv,BVAEDU,Management Services (DEC),MGT,Supplies and Services,E,Services,EF,23/12/2015,PAY00825813,SOCK,Social Work,745,Revenue,Alere Toxicology PLC
Brighton & Hove City Council,http://statistics.data.gov.uk/id/local-authority/00ML,Children`s & Education Serv,BVAEDU,Child Srvcs - Other Fam Supp,FFX,Transfer Payments,G,Other Transfer Payments,GD,24/12/2015,PAY00826602,FAMP,Families\Prevention,832.8,Revenue,Alere Toxicology PLC
Brighton & Hove City Council,http://statistics.data.gov.uk/id/local-authority/00ML,Children`s & Education Serv,BVAEDU,Management Services (DEC),MGT,Supplies and Services,E,Services,EF,24/12/2015,PAY00826602,SOCK,Social Work,338,Revenue,Alere Toxicology PLC
Brighton & Hove City Council,http://statistics.data.gov.uk/id/local-authority/00ML,Children`s & Education Serv,BVAEDU,Child Srvcs - Other Fam Supp,FFX,Transfer Payments,G,Other Transfer Payments,GD,31/12/2015,PAY00827709,FAMP,Families\Prevention,1185.9,Revenue,Alere Toxicology PLC
Brighton & Hove City Council,http://statistics.data.gov.uk/id/local-authority/00ML,Children`s & Education Serv,BVAEDU,Management Services (DEC),MGT,Supplies and Services,E,Services,EF,31/12/2015,PAY00827709,SOCK,Social Work,539,Revenue,Alere Toxicology PLC
Brighton & Hove City Council,http://statistics.data.gov.uk/id/local-authority/00ML,Children`s & Education Serv,BVAEDU,Ed Ed Other Other,ENF,Premises Related,C,Repair Maint n Alterations,CA,16/12/2015,PAY00823887,PROP,Property and Design,892.56,Revenue,Alfa Electric Ltd
Brighton & Hove City Council,http://statistics.data.gov.uk/id/local-authority/00ML,Adult Social Care,BVASOC,ASC Physical Support,PHY,Customer n Client Receipts,M,Fees n Charges,MB,18/12/2015,PAY00825422,PHYS,Physical Support,-577.71,Revenue,Alina Homecare Ltd
Brighton & Hove City Council,http://statistics.data.gov.uk/id/local-authority/00ML,Adult Social Care,BVASOC,ASC Physical Support,PHY,Third Party Payments,F,Other Establishments,FH,18/12/2015,PAY00825422,PHYS,Physical Support,974.59,Revenue,Alina Homecare Ltd
Brighton & Hove City Council,http://statistics.data.gov.uk/id/local-authority/00ML,Adult Social Care,BVASOC,ASC Memory Cognition Support,MEM,Third Party Payments,F,Other Establishments,FH,23/12/2015,PAY00826199,COGN,Memory Cognition Support,79.3,Revenue,Alina Homecare Ltd
Brighton & Hove City Council,http://statistics.data.gov.uk/id/local-authority/00ML,Adult Social Care,BVASOC,ASC Physical Support,PHY,Customer n Client Receipts,M,Fees n Charges,MB,23/12/2015,PAY00826199,PHYS,Physical Support,-2184,Revenue,Alina Homecare Ltd
Brighton & Hove City Council,http://statistics.data.gov.uk/id/local-authority/00ML,Adult Social Care,BVASOC,ASC Physical Support,PHY,Third Party Payments,F,Other Establishments,FH,23/12/2015,PAY00826199,PHYS,Physical Support,12788.74,Revenue,Alina Homecare Ltd
Brighton & Hove City Council,http://statistics.data.gov.uk/id/local-authority/00ML,Adult Social Care,BVASOC,ASC Learning Disabilities,ALD,Customer n Client Receipts,M,Fees n Charges,MB,02/12/2015,PAY00819689,LDIS,Learning Disabilities,-25,Revenue,Allied Healthcare
Brighton & Hove City Council,http://statistics.data.gov.uk/id/local-authority/00ML,Adult Social Care,BVASOC,ASC Learning Disabilities,ALD,Third Party Payments,F,Other Establishments,FH,02/12/2015,PAY00819689,LDIS,Learning Disabilities,124.57,Revenue,Allied Healthcare
Brighton & Hove City Council,http://statistics.data.gov.uk/id/local-authority/00ML,Adult Social Care,BVASOC,ASC Memory Cognition Support,MEM,Customer n Client Receipts,M,Fees n Charges,MB,02/12/2015,PAY00819689,COGN,Memory Cognition Support,-104,Revenue,Allied Healthcare
Brighton & Hove City Council,http://statistics.data.gov.uk/id/local-authority/00ML,Adult Social Care,BVASOC,ASC Memory Cognition Support,MEM,Third Party Payments,F,Other Establishments,FH,02/12/2015,PAY00819689,COGN,Memory Cognition Support,683.62,Revenue,Allied Healthcare
Brighton & Hove City Council,http://statistics.data.gov.uk/id/local-authority/00ML,Adult Social Care,BVASOC,ASC Mental Health Support,MHP,Customer n Client Receipts,M,Fees n Charges,MB,02/12/2015,PAY00819689,MENH,Mental Health Support,-189,Revenue,Allied Healthcare
Brighton & Hove City Council,http://statistics.data.gov.uk/id/local-authority/00ML,Adult Social Care,BVASOC,ASC Mental Health Support,MHP,Third Party Payments,F,Other Establishments,FH,02/12/2015,PAY00819689,MENH,Mental Health Support,609.77,Revenue,Allied Healthcare
Brighton & Hove City Council,http://statistics.data.gov.uk/id/local-authority/00ML,Adult Social Care,BVASOC,ASC Physical Support,PHY,Customer n Client Receipts,M,Fees n Charges,MB,02/12/2015,PAY00819689,PHYS,Physical Support,-1138,Revenue,Allied Healthcare
Brighton & Hove City Council,http://statistics.data.gov.uk/id/local-authority/00ML,Adult Social Care,BVASOC,ASC Physical Support,PHY,Third Party Payments,F,Other Establishments,FH,02/12/2015,PAY00819689,PHYS,Physical Support,9278.43,Revenue,Allied Healthcare
Brighton & Hove City Council,http://statistics.data.gov.uk/id/local-authority/00ML,Adult Social Care,BVASOC,ASC Memory Cognition Support,MEM,Third Party Payments,F,Other Establishments,FH,04/12/2015,PAY00820536,COGN,Memory Cognition Support,197.67,Revenue,Allied Healthcare
Brighton & Hove City Council,http://statistics.data.gov.uk/id/local-authority/00ML,Adult Social Care,BVASOC,ASC Physical Support,PHY,Customer n Client Receipts,M,Fees n Charges,MB,04/12/2015,PAY00820536,PHYS,Physical Support,-42,Revenue,Allied Healthcare
Brighton & Hove City Council,http://statistics.data.gov.uk/id/local-authority/00ML,Adult Social Care,BVASOC,ASC Physical Support,PHY,Third Party Payments,F,Other Establishments,FH,04/12/2015,PAY00820536,PHYS,Physical Support,111.49,Revenue,Allied Healthcare
Brighton & Hove City Council,http://statistics.data.gov.uk/id/local-authority/00ML,Adult Social Care,BVASOC,ASC Memory Cognition Support,MEM,Third Party Payments,F,Other Establishments,FH,09/12/2015,PAY00821431,COGN,Memory Cognition Support,459.03,Revenue,Allied Healthcare
Brighton & Hove City Council,http://statistics.data.gov.uk/id/local-authority/00ML,Adult Social Care,BVASOC,ASC Physical Support,PHY,Customer n Client Receipts,M,Fees n Charges,MB,09/12/2015,PAY00821431,PHYS,Physical Support,-42,Revenue,Allied Healthcare
Brighton & Hove City Council,http://statistics.data.gov.uk/id/local-authority/00ML,Adult Social Care,BVASOC,ASC Physical Support,PHY,Third Party Payments,F,Other Establishments,FH,09/12/2015,PAY00821431,PHYS,Physical Support,49.76,Revenue,Allied Healthcare
Brighton & Hove City Council,http://statistics.data.gov.uk/id/local-authority/00ML,Adult Social Care,BVASOC,ASC Learning Disabilities,ALD,Customer n Client Receipts,M,Fees n Charges,MB,11/12/2015,PAY00822252,LDIS,Learning Disabilities,-50,Revenue,Allied Healthcare
Brighton & Hove City Council,http://statistics.data.gov.uk/id/local-authority/00ML,Adult Social Care,BVASOC,ASC Learning Disabilities,ALD,Third Party Payments,F,Other Establishments,FH,11/12/2015,PAY00822252,LDIS,Learning Disabilities,252.93,Revenue,Allied Healthcare
Brighton & Hove City Council,http://statistics.data.gov.uk/id/local-authority/00ML,Adult Social Care,BVASOC,ASC Memory Cognition Support,MEM,Customer n Client Receipts,M,Fees n Charges,MB,11/12/2015,PAY00822252,COGN,Memory Cognition Support,-208,Revenue,Allied Healthcare
Brighton & Hove City Council,http://statistics.data.gov.uk/id/local-authority/00ML,Adult Social Care,BVASOC,ASC Memory Cognition Support,MEM,Third Party Payments,F,Other Establishments,FH,11/12/2015,PAY00822252,COGN,Memory Cognition Support,730.83,Revenue,Allied Healthcare
Brighton & Hove City Council,http://statistics.data.gov.uk/id/local-authority/00ML,Adult Social Care,BVASOC,ASC Mental Health Support,MHP,Customer n Client Receipts,M,Fees n Charges,MB,11/12/2015,PAY00822252,MENH,Mental Health Support,-378,Revenue,Allied Healthcare
Brighton & Hove City Council,http://statistics.data.gov.uk/id/local-authority/00ML,Adult Social Care,BVASOC,ASC Mental Health Support,MHP,Third Party Payments,F,Other Establishments,FH,11/12/2015,PAY00822252,MENH,Mental Health Support,1236.7,Revenue,Allied Healthcare
Brighton & Hove City Council,http://statistics.data.gov.uk/id/local-authority/00ML,Adult Social Care,BVASOC,ASC Physical Support,PHY,Customer n Client Receipts,M,Fees n Charges,MB,11/12/2015,PAY00822252,PHYS,Physical Support,-2236,Revenue,Allied Healthcare
Brighton & Hove City Council,http://statistics.data.gov.uk/id/local-authority/00ML,Adult Social Care,BVASOC,ASC Physical Support,PHY,Third Party Payments,F,Other Establishments,FH,11/12/2015,PAY00822252,PHYS,Physical Support,17725.93,Revenue,Allied Healthcare
Brighton & Hove City Council,http://statistics.data.gov.uk/id/local-authority/00ML,Adult Social Care,BVASOC,ASC Sensory Support,AHV,Customer n Client Receipts,M,Fees n Charges,MB,11/12/2015,PAY00822252,SORY,Sensory Support,-16,Revenue,Allied Healthcare
Brighton & Hove City Council,http://statistics.data.gov.uk/id/local-authority/00ML,Adult Social Care,BVASOC,ASC Sensory Support,AHV,Third Party Payments,F,Other Establishments,FH,11/12/2015,PAY00822252,SORY,Sensory Support,18.66,Revenue,Allied Healthcare
Brighton & Hove City Council,http://statistics.data.gov.uk/id/local-authority/00ML,Adult Social Care,BVASOC,ASC Memory Cognition Support,MEM,Third Party Payments,F,Other Establishments,FH,16/12/2015,PAY00823625,COGN,Memory Cognition Support,508.11,Revenue,Allied Healthcare
Brighton & Hove City Council,http://statistics.data.gov.uk/id/local-authority/00ML,Adult Social Care,BVASOC,ASC Physical Support,PHY,Customer n Client Receipts,M,Fees n Charges,MB,16/12/2015,PAY00823625,PHYS,Physical Support,-1496,Revenue,Allied Healthcare
Brighton & Hove City Council,http://statistics.data.gov.uk/id/local-authority/00ML,Adult Social Care,BVASOC,ASC Physical Support,PHY,Third Party Payments,F,Other Establishments,FH,16/12/2015,PAY00823625,PHYS,Physical Support,6820.24,Revenue,Allied Healthcare
Brighton & Hove City Council,http://statistics.data.gov.uk/id/local-authority/00ML,Adult Social Care,BVASOC,ASC Learning Disabilities,ALD,Customer n Client Receipts,M,Fees n Charges,MB,18/12/2015,PAY00824671,LDIS,Learning Disabilities,-25,Revenue,Allied Healthcare
Brighton & Hove City Council,http://statistics.data.gov.uk/id/local-authority/00ML,Adult Social Care,BVASOC,ASC Learning Disabilities,ALD,Third Party Payments,F,Other Establishments,FH,18/12/2015,PAY00824671,LDIS,Learning Disabilities,113.25,Revenue,Allied Healthcare
Brighton & Hove City Council,http://statistics.data.gov.uk/id/local-authority/00ML,Adult Social Care,BVASOC,ASC Memory Cognition Support,MEM,Customer n Client Receipts,M,Fees n Charges,MB,18/12/2015,PAY00824671,COGN,Memory Cognition Support,-62,Revenue,Allied Healthcare
Brighton & Hove City Council,http://statistics.data.gov.uk/id/local-authority/00ML,Adult Social Care,BVASOC,ASC Memory Cognition Support,MEM,Third Party Payments,F,Other Establishments,FH,18/12/2015,PAY00824671,COGN,Memory Cognition Support,531.86,Revenue,Allied Healthcare
Brighton & Hove City Council,http://statistics.data.gov.uk/id/local-authority/00ML,Adult Social Care,BVASOC,ASC Mental Health Support,MHP,Customer n Client Receipts,M,Fees n Charges,MB,18/12/2015,PAY00824671,MENH,Mental Health Support,-189,Revenue,Allied Healthcare
Brighton & Hove City Council,http://statistics.data.gov.uk/id/local-authority/00ML,Adult Social Care,BVASOC,ASC Mental Health Support,MHP,Third Party Payments,F,Other Establishments,FH,18/12/2015,PAY00824671,MENH,Mental Health Support,643.57,Revenue,Allied Healthcare
Brighton & Hove City Council,http://statistics.data.gov.uk/id/local-authority/00ML,Adult Social Care,BVASOC,ASC Physical Support,PHY,Customer n Client Receipts,M,Fees n Charges,MB,18/12/2015,PAY00824671,PHYS,Physical Support,-1241,Revenue,Allied Healthcare
Brighton & Hove City Council,http://statistics.data.gov.uk/id/local-authority/00ML,Adult Social Care,BVASOC,ASC Physical Support,PHY,Third Party Payments,F,Other Establishments,FH,18/12/2015,PAY00824671,PHYS,Physical Support,9047.26,Revenue,Allied Healthcare
Brighton & Hove City Council,http://statistics.data.gov.uk/id/local-authority/00ML,Adult Social Care,BVASOC,ASC Learning Disabilities,ALD,Customer n Client Receipts,M,Fees n Charges,MB,24/12/2015,PAY00826569,LDIS,Learning Disabilities,-50,Revenue,Allied Healthcare
Brighton & Hove City Council,http://statistics.data.gov.uk/id/local-authority/00ML,Adult Social Care,BVASOC,ASC Learning Disabilities,ALD,Third Party Payments,F,Other Establishments,FH,24/12/2015,PAY00826569,LDIS,Learning Disabilities,256.7,Revenue,Allied Healthcare
Brighton & Hove City Council,http://statistics.data.gov.uk/id/local-authority/00ML,Adult Social Care,BVASOC,ASC Memory Cognition Support,MEM,Customer n Client Receipts,M,Fees n Charges,MB,24/12/2015,PAY00826569,COGN,Memory Cognition Support,-208,Revenue,Allied Healthcare
Brighton & Hove City Council,http://statistics.data.gov.uk/id/local-authority/00ML,Adult Social Care,BVASOC,ASC Memory Cognition Support,MEM,Third Party Payments,F,Other Establishments,FH,24/12/2015,PAY00826569,COGN,Memory Cognition Support,959.5,Revenue,Allied Healthcare
Brighton & Hove City Council,http://statistics.data.gov.uk/id/local-authority/00ML,Adult Social Care,BVASOC,ASC Mental Health Support,MHP,Customer n Client Receipts,M,Fees n Charges,MB,24/12/2015,PAY00826569,MENH,Mental Health Support,-378,Revenue,Allied Healthcare
Brighton & Hove City Council,http://statistics.data.gov.uk/id/local-authority/00ML,Adult Social Care,BVASOC,ASC Mental Health Support,MHP,Third Party Payments,F,Other Establishments,FH,24/12/2015,PAY00826569,MENH,Mental Health Support,1279.23,Revenue,Allied Healthcare
Brighton & Hove City Council,http://statistics.data.gov.uk/id/local-authority/00ML,Adult Social Care,BVASOC,ASC Physical Support,PHY,Customer n Client Receipts,M,Fees n Charges,MB,24/12/2015,PAY00826569,PHYS,Physical Support,-2294,Revenue,Allied Healthcare
Brighton & Hove City Council,http://statistics.data.gov.uk/id/local-authority/00ML,Adult Social Care,BVASOC,ASC Physical Support,PHY,Third Party Payments,F,Other Establishments,FH,24/12/2015,PAY00826569,PHYS,Physical Support,17401.06,Revenue,Allied Healthcare
Brighton & Hove City Council,http://statistics.data.gov.uk/id/local-authority/00ML,Adult Social Care,BVASOC,ASC Physical Support,PHY,Customer n Client Receipts,M,Fees n Charges,MB,31/12/2015,PAY00827672,PHYS,Physical Support,-71,Revenue,Allied Healthcare
Brighton & Hove City Council,http://statistics.data.gov.uk/id/local-authority/00ML,Adult Social Care,BVASOC,ASC Physical Support,PHY,Third Party Payments,F,Other Establishments,FH,31/12/2015,PAY00827672,PHYS,Physical Support,1720.92,Revenue,Allied Healthcare
Brighton & Hove City Council,http://statistics.data.gov.uk/id/local-authority/00ML,Housing Revenue Account,BVAHOU,Hsing Management - HRA,HGM,Premises Related,C,Repair Maint n Alterations,CA,02/12/2015,PAY00819865,HPAI,Property & Investment,423.85,Revenue,Allied Protection Ltd
Brighton & Hove City Council,http://statistics.data.gov.uk/id/local-authority/00ML,Housing Revenue Account,BVAHOU,Hsing Management - HRA,HGM,Premises Related,C,Repair Maint n Alterations,CA,09/12/2015,PAY00821603,HPAI,Property & Investment,6588.6,Revenue,Allied Protection Ltd
Brighton & Hove City Council,http://statistics.data.gov.uk/id/local-authority/00ML,Non I&E,BVANON,Cap - Housing Services - HRA,4HR,New Construction n Conversion,PB,New Construction n Conversion,PBL5,31/12/2015,PAY00827890,HREG,Head of Regeneration,1438.28,Capital,Allied Protection Ltd
Brighton & Hove City Council,http://statistics.data.gov.uk/id/local-authority/00ML,Central Support and Overheads,BVACEN,Support Services (SSC),PPT,Premises Related,C,Repair Maint n Alterations,CA,18/12/2015,PAY00824661,PROP,Property and Design,928.47,Revenue,Allsop & Francis Ltd
Brighton & Hove City Council,http://statistics.data.gov.uk/id/local-authority/00ML,Central Support and Overheads,BVACEN,Support Services (SSC),PPT,Premises Related,C,Repair Maint n Alterations,CA,31/12/2015,PAY00827654,PROP,Property and Design,270,Revenue,Allsop & Francis Ltd
Brighton & Hove City Council,http://statistics.data.gov.uk/id/local-authority/00ML,Public Health,BVAPHE,Public Health,PHE,Third Party Payments,F,Voluntary Associations,FG,24/12/2015,PAY00826524,PHCM,PH Commissioning,10796.25,Revenue,Allsorts Youth Project
Brighton & Hove City Council,http://statistics.data.gov.uk/id/local-authority/00ML,Planning and Development,BVAPLA,Economic Development,ECD,Supplies and Services,E,Grants n Subscriptions,EK,31/12/2015,PAY00827607,CMNY,Communities and Equalities,5500,Revenue,Allsorts Youth Project
Brighton & Hove City Council,http://statistics.data.gov.uk/id/local-authority/00ML,Central Support and Overheads,BVACEN,Holding Accounts,PPH,Transport Related,D,Direct Transport Costs,DA,02/12/2015,PAY00820030,CICL,City Clean,5963.03,Revenue,Allstar Business Solutions Ltd
Brighton & Hove City Council,http://statistics.data.gov.uk/id/local-authority/00ML,Central Support and Overheads,BVACEN,Holding Accounts,PPH,Transport Related,D,Direct Transport Costs,DA,09/12/2015,PAY00821745,CICL,City Clean,5813.52,Revenue,Allstar Business Solutions Ltd
Brighton & Hove City Council,http://statistics.data.gov.uk/id/local-authority/00ML,Central Support and Overheads,BVACEN,Holding Accounts,PPH,Transport Related,D,Direct Transport Costs,DA,16/12/2015,PAY00824054,CICL,City Clean,5818.55,Revenue,Allstar Business Solutions Ltd
Brighton & Hove City Council,http://statistics.data.gov.uk/id/local-authority/00ML,Cultural and Related Serv,BVACUL,Culture and Heritage,CHG,Transport Related,D,Direct Transport Costs,DA,16/12/2015,PAY00824054,RPMU,Royal Pavilion and Museums,1.2,Revenue,Allstar Business Solutions Ltd
Brighton & Hove City Council,http://statistics.data.gov.uk/id/local-authority/00ML,Children`s & Education Serv,BVAEDU,Ed Ed Other Other,ENF,Premises Related,C,Repair Maint n Alterations,CA,31/12/2015,PAY00827809,PROP,Property and Design,750,Revenue,Allweather Roofing & Construction
Brighton & Hove City Council,http://statistics.data.gov.uk/id/local-authority/00ML,Non I&E,BVANON,CAP Education Services,4ED,New Construction n Conversion,PB,New Construction n Conversion,PBL5,31/12/2015,PAY00827809,OEDS,Other Education Support,4995,Capital,Allweather Roofing & Construction
Brighton & Hove City Council,http://statistics.data.gov.uk/id/local-authority/00ML,Children`s & Education Serv,BVAEDU,Management Services (DEC),MGT,Supplies and Services,E,Services,EF,09/12/2015,PAY00821945,SOCK,Social Work,305,Revenue,Alpha Biolaboratories International Limited
Brighton & Hove City Council,http://statistics.data.gov.uk/id/local-authority/00ML,Adult Social Care,BVASOC,ASC Physical Support,PHY,Transport Related,D,Contract Hire n Operating Leas,DB,02/12/2015,PAY00819867,RCOP,Resource Centres Older People,511.81,Revenue,Alphabet (UK) Fleet Management Ltd
Brighton & Hove City Council,http://statistics.data.gov.uk/id/local-authority/00ML,Adult Social Care,BVASOC,Social Care Activities,ACM,Transport Related,D,Contract Hire n Operating Leas,DB,02/12/2015,PAY00819867,ASIT,Assessment and SIT,286.13,Revenue,Alphabet (UK) Fleet Management Ltd
Brighton & Hove City Council,http://statistics.data.gov.uk/id/local-authority/00ML,Adult Social Care,BVASOC,Social Care Activities,ACM,Transport Related,D,Contract Hire n Operating Leas,DB,02/12/2015,PAY00819867,SPFT,S75 SPFT,172.67,Revenue,Alphabet (UK) Fleet Management Ltd
Brighton & Hove City Council,http://statistics.data.gov.uk/id/local-authority/00ML,Children`s & Education Serv,BVAEDU,Child Srvcs Com and Scl Work,FCW,Transport Related,D,Contract Hire n Operating Leas,DB,02/12/2015,PAY00819867,SOCK,Social Work,722.61,Revenue,Alphabet (UK) Fleet Management Ltd
Brighton & Hove City Council,http://statistics.data.gov.uk/id/local-authority/00ML,Children`s & Education Serv,BVAEDU,Child Srvcs - Other Fam Supp,FFX,Transport Related,D,Contract Hire n Operating Leas,DB,02/12/2015,PAY00819867,DISS,Disability Services,298.84,Revenue,Alphabet (UK) Fleet Management Ltd
Brighton & Hove City Council,http://statistics.data.gov.uk/id/local-authority/00ML,Children`s & Education Serv,BVAEDU,Support Services (SSC),PPT,Transport Related,D,Contract Hire n Operating Leas,DB,02/12/2015,PAY00819867,OEDS,Other Education Support,501.58,Revenue,Alphabet (UK) Fleet Management Ltd
Brighton & Hove City Council,http://statistics.data.gov.uk/id/local-authority/00ML,Highways and Transportation,BVAHRT,Parking Services,PRK,Transport Related,D,Contract Hire n Operating Leas,DB,02/12/2015,PAY00819867,PARK,Parking,381.3,Revenue,Alphabet (UK) Fleet Management Ltd
Brighton & Hove City Council,http://statistics.data.gov.uk/id/local-authority/00ML,Housing General Fund,BVAHOG,Homelessness,HML,Transport Related,D,Contract Hire n Operating Leas,DB,02/12/2015,PAY00819867,TAAS,Temp Accom and Allocations,400.21,Revenue,Alphabet (UK) Fleet Management Ltd
Brighton & Hove City Council,http://statistics.data.gov.uk/id/local-authority/00ML,Housing Revenue Account,BVAHOU,Hsing Management - HRA,HGM,Transport Related,D,Contract Hire n Operating Leas,DB,02/12/2015,PAY00819867,HTEN,Tenancy Services,163.06,Revenue,Alphabet (UK) Fleet Management Ltd
Brighton & Hove City Council,http://statistics.data.gov.uk/id/local-authority/00ML,Housing Revenue Account,BVAHOU,Hsing Strategy - HRA,HGT,Transport Related,D,Contract Hire n Operating Leas,DB,02/12/2015,PAY00819867,HSTR,Housing Strategy,248.62,Revenue,Alphabet (UK) Fleet Management Ltd
Brighton & Hove City Council,http://statistics.data.gov.uk/id/local-authority/00ML,Adult Social Care,BVASOC,ASC Memory Cognition Support,MEM,Transport Related,D,Contract Hire n Operating Leas,DB,24/12/2015,PAY00826915,RCOP,Resource Centres Older People,974.12,Revenue,Alphabet (UK) Fleet Management Ltd
Brighton & Hove City Council,http://statistics.data.gov.uk/id/local-authority/00ML,Adult Social Care,BVASOC,ASC Physical Support,PHY,Transport Related,D,Contract Hire n Operating Leas,DB,24/12/2015,PAY00826915,RCOP,Resource Centres Older People,452.1,Revenue,Alphabet (UK) Fleet Management Ltd
Brighton & Hove City Council,http://statistics.data.gov.uk/id/local-authority/00ML,Adult Social Care,BVASOC,Social Care Activities,ACM,Transport Related,D,Contract Hire n Operating Leas,DB,24/12/2015,PAY00826915,ASIT,Assessment and SIT,276.9,Revenue,Alphabet (UK) Fleet Management Ltd
Brighton & Hove City Council,http://statistics.data.gov.uk/id/local-authority/00ML,Adult Social Care,BVASOC,Social Care Activities,ACM,Transport Related,D,Contract Hire n Operating Leas,DB,24/12/2015,PAY00826915,SPFT,S75 SPFT,167.1,Revenue,Alphabet (UK) Fleet Management Ltd
Brighton & Hove City Council,http://statistics.data.gov.uk/id/local-authority/00ML,Adult Social Care,BVASOC,Social Care Activities,ACM,Transport Related,D,Direct Transport Costs,DA,24/12/2015,PAY00826915,SPFT,S75 SPFT,57.67,Revenue,Alphabet (UK) Fleet Management Ltd
Brighton & Hove City Council,http://statistics.data.gov.uk/id/local-authority/00ML,Children`s & Education Serv,BVAEDU,Child Srvcs Com and Scl Work,FCW,Transport Related,D,Contract Hire n Operating Leas,DB,24/12/2015,PAY00826915,SOCK,Social Work,699.3,Revenue,Alphabet (UK) Fleet Management Ltd
Brighton & Hove City Council,http://statistics.data.gov.uk/id/local-authority/00ML,Children`s & Education Serv,BVAEDU,Child Srvcs - Other Fam Supp,FFX,Transport Related,D,Contract Hire n Operating Leas,DB,24/12/2015,PAY00826915,DISS,Disability Services,289.2,Revenue,Alphabet (UK) Fleet Management Ltd
Brighton & Hove City Council,http://statistics.data.gov.uk/id/local-authority/00ML,Children`s & Education Serv,BVAEDU,Support Services (SSC),PPT,Transport Related,D,Contract Hire n Operating Leas,DB,24/12/2015,PAY00826915,OEDS,Other Education Support,485.4,Revenue,Alphabet (UK) Fleet Management Ltd
Brighton & Hove City Council,http://statistics.data.gov.uk/id/local-authority/00ML,Highways and Transportation,BVAHRT,Parking Services,PRK,Transport Related,D,Contract Hire n Operating Leas,DB,24/12/2015,PAY00826915,PARK,Parking,369,Revenue,Alphabet (UK) Fleet Management Ltd
Brighton & Hove City Council,http://statistics.data.gov.uk/id/local-authority/00ML,Housing General Fund,BVAHOG,Homelessness,HML,Transport Related,D,Contract Hire n Operating Leas,DB,24/12/2015,PAY00826915,TAAS,Temp Accom and Allocations,387.3,Revenue,Alphabet (UK) Fleet Management Ltd
Brighton & Hove City Council,http://statistics.data.gov.uk/id/local-authority/00ML,Housing Revenue Account,BVAHOU,Hsing Management - HRA,HGM,Transport Related,D,Contract Hire n Operating Leas,DB,24/12/2015,PAY00826915,HTEN,Tenancy Services,157.8,Revenue,Alphabet (UK) Fleet Management Ltd
Brighton & Hove City Council,http://statistics.data.gov.uk/id/local-authority/00ML,Housing Revenue Account,BVAHOU,Hsing Strategy - HRA,HGT,Transport Related,D,Contract Hire n Operating Leas,DB,24/12/2015,PAY00826915,HSTR,Housing Strategy,240.6,Revenue,Alphabet (UK) Fleet Management Ltd
Brighton & Hove City Council,http://statistics.data.gov.uk/id/local-authority/00ML,Central Support and Overheads,BVACEN,Support Services (SSC),PPT,Supplies and Services,E,Communications n Computing,EH,24/12/2015,PAY00826951,ICTA,ICT,140,Revenue,Altodigital Networks Ltd
Brighton & Hove City Council,http://statistics.data.gov.uk/id/local-authority/00ML,Children`s & Education Serv,BVAEDU,Child Srvcs - Residential Svcs,FLR,Supplies and Services,E,Communications n Computing,EH,24/12/2015,PAY00826951,DISS,Disability Services,90,Revenue,Altodigital Networks Ltd
Brighton & Hove City Council,http://statistics.data.gov.uk/id/local-authority/00ML,Adult Social Care,BVASOC,Support to Carer,CAR,Other Grants Reimbs n Conts,L,Contributions,LC,23/12/2015,PAY00825889,CONT,Contracts,-1328,Revenue,Alzheimers Society (Sussex Locality)
Brighton & Hove City Council,http://statistics.data.gov.uk/id/local-authority/00ML,Adult Social Care,BVASOC,Support to Carer,CAR,Third Party Payments,F,Other Establishments,FH,23/12/2015,PAY00825889,CONT,Contracts,13677,Revenue,Alzheimers Society (Sussex Locality)
Brighton & Hove City Council,http://statistics.data.gov.uk/id/local-authority/00ML,Central Support and Overheads,BVACEN,Holding Accounts,PPH,Premises Related,C,Repair Maint n Alterations,CA,18/12/2015,PAY00824756,PROP,Property and Design,97.02,Revenue,AM Fire & Security Group
Brighton & Hove City Council,http://statistics.data.gov.uk/id/local-authority/00ML,Central Support and Overheads,BVACEN,Support Services (SSC),PPT,Premises Related,C,Repair Maint n Alterations,CA,18/12/2015,PAY00824756,PROP,Property and Design,395.51,Revenue,AM Fire & Security Group
Brighton & Hove City Council,http://statistics.data.gov.uk/id/local-authority/00ML,Central Support and Overheads,BVACEN,Support Services (SSC),PPT,Premises Related,C,Repair Maint n Alterations,CA,31/12/2015,PAY00827745,PROP,Property and Design,97.02,Revenue,AM Fire & Security Group
Brighton & Hove City Council,http://statistics.data.gov.uk/id/local-authority/00ML,Central Support and Overheads,BVACEN,Support Services (SSC),PPT,Supplies and Services,E,Equip't Furniture n Materials,EA,31/12/2015,PAY00827745,PROP,Property and Design,1980,Revenue,AM Fire & Security Group
Brighton & Hove City Council,http://statistics.data.gov.uk/id/local-authority/00ML,Children`s & Education Serv,BVAEDU,Child Srvcs Other,FAX,Third Party Payments,F,Other Establishments,FH,24/12/2015,PAY00826507,SEN,SEN,9000,Revenue,Amaze Brighton & Hove
Brighton & Hove City Council,http://statistics.data.gov.uk/id/local-authority/00ML,Planning and Development,BVAPLA,Economic Development,ECD,Supplies and Services,E,Grants n Subscriptions,EK,31/12/2015,PAY00827579,CMNY,Communities and Equalities,1250,Revenue,Amaze Brighton & Hove
Brighton & Hove City Council,http://statistics.data.gov.uk/id/local-authority/00ML,Cultural and Related Serv,BVACUL,Tourism,TRM,Customer n Client Receipts,M,Fees n Charges,MB,09/12/2015,PAY00821371,TOMA,Tourism and Marketing,285,Revenue,Ambassador Hotel
Brighton & Hove City Council,http://statistics.data.gov.uk/id/local-authority/00ML,Cultural and Related Serv,BVACUL,Management Services (DEC),MGT,Supplies and Services,E,Equip't Furniture n Materials,EA,11/12/2015,PAY00822525,CIPK,City Parks,494.5,Revenue,Amethyst Horticulture Ltd
Brighton & Hove City Council,http://statistics.data.gov.uk/id/local-authority/00ML,Non I&E,BVANON,CAP Transport,4TR,New Construction n Conversion,PB,New Construction n Conversion,PBL5,02/12/2015,PAY00819637,HWEN,Highways Engineering,12554.99,Capital,Amey OW Limited
Brighton & Hove City Council,http://statistics.data.gov.uk/id/local-authority/00ML,Highways and Transportation,BVAHRT,Highways and Roads - Mntnce,HRM,Supplies and Services,E,Services,EF,31/12/2015,PAY00827587,HIGH,Highways,1691.3,Revenue,Amey OW Limited
Brighton & Hove City Council,http://statistics.data.gov.uk/id/local-authority/00ML,Children`s & Education Serv,BVAEDU,Ed EY PVI,ENP,Supplies and Services,E,Grants n Subscriptions,EK,16/12/2015,PAY00823778,EYRS,Early Years,1275,Revenue,Amigos Pre-School Playgroup
Brighton & Hove City Council,http://statistics.data.gov.uk/id/local-authority/00ML,Children`s & Education Serv,BVAEDU,Ed EY PVI,ENP,Supplies and Services,E,Grants n Subscriptions,EK,18/12/2015,PAY00824926,EYRS,Early Years,6432,Revenue,Amigos Pre-School Playgroup
Brighton & Hove City Council,http://statistics.data.gov.uk/id/local-authority/00ML,Cultural and Related Serv,BVACUL,Management Services (DEC),MGT,Transport Related,D,Direct Transport Costs,DA,18/12/2015,PAY00824755,CIPK,City Parks,2858.65,Revenue,AMP Groundcare Machinery Services Ltd
Brighton & Hove City Council,http://statistics.data.gov.uk/id/local-authority/00ML,Central Support and Overheads,BVACEN,Support Services (SSC),PPT,Premises Related,C,Rents Payable,CC,23/12/2015,PAY00826161,COMU,Communications,10000,Revenue,Amplicon Group Ltd
Brighton & Hove City Council,http://statistics.data.gov.uk/id/local-authority/00ML,Cultural and Related Serv,BVACUL,Open Spaces,PEN,Supplies and Services,E,Equip't Furniture n Materials,EA,23/12/2015,PAY00826327,CIPK,City Parks,1030,Revenue,AMT Vehicle Rental Ltd
Brighton & Hove City Council,http://statistics.data.gov.uk/id/local-authority/00ML,Cultural and Related Serv,BVACUL,Open Spaces,PEN,Supplies and Services,E,Equip't Furniture n Materials,EA,24/12/2015,PAY00827469,CIPK,City Parks,769.74,Revenue,AMT Vehicle Rental Ltd
Brighton & Hove City Council,http://statistics.data.gov.uk/id/local-authority/00ML,Housing General Fund,BVAHOG,Hsing Welfare,HGW,Transfer Payments,G,Supporting People,GF,02/12/2015,PAY00819708,AHRS,Housing Related Support,535.33,Revenue,Anchor Trust Rent Account
Brighton & Hove City Council,http://statistics.data.gov.uk/id/local-authority/00ML,Housing General Fund,BVAHOG,Hsing Welfare,HGW,Transfer Payments,G,Supporting People,GF,24/12/2015,PAY00826593,AHRS,Housing Related Support,535.33,Revenue,Anchor Trust Rent Account
Brighton & Hove City Council,http://statistics.data.gov.uk/id/local-authority/00ML,Children`s & Education Serv,BVAEDU,Child Srvcs - Residential Svcs,FLR,Third Party Payments,F,Other Establishments,FH,09/12/2015,PAY00821691,AVFM,Agency Placements\VFM,19540,Revenue,Anderida Adolescent Care Ltd
Brighton & Hove City Council,http://statistics.data.gov.uk/id/local-authority/00ML,Children`s & Education Serv,BVAEDU,Child Srvcs - Residential Svcs,FLR,Third Party Payments,F,Other Establishments,FH,31/12/2015,PAY00827983,AVFM,Agency Placements\VFM,19540,Revenue,Anderida Adolescent Care Ltd
Brighton & Hove City Council,http://statistics.data.gov.uk/id/local-authority/00ML,Cultural and Related Serv,BVACUL,Tourism,TRM,Customer n Client Receipts,M,Fees n Charges,MB,09/12/2015,PAY00821571,TOMA,Tourism and Marketing,317.25,Revenue,Andorra Guest Accommodation
Brighton & Hove City Council,http://statistics.data.gov.uk/id/local-authority/00ML,Cultural and Related Serv,BVACUL,Recreation and Sport,REC,Premises Related,C,Repair Maint n Alterations,CA,24/12/2015,PAY00826643,SEAS,Seafront Services,266,Revenue,Andrews Sykes Group PLC
Brighton & Hove City Council,http://statistics.data.gov.uk/id/local-authority/00ML,Cultural and Related Serv,BVACUL,Tourism,TRM,Supplies and Services,E,Miscellaneous Expenses,EM,11/12/2015,PAY00822521,TOMA,Tourism and Marketing,2250,Revenue,Angel House
Brighton & Hove City Council,http://statistics.data.gov.uk/id/local-authority/00ML,Children`s & Education Serv,BVAEDU,Ed EY PVI,ENP,Supplies and Services,E,Grants n Subscriptions,EK,16/12/2015,PAY00823945,EYRS,Early Years,4461,Revenue,Angmering Day Nurseries Ltd
Brighton & Hove City Council,http://statistics.data.gov.uk/id/local-authority/00ML,Children`s & Education Serv,BVAEDU,Ed EY PVI,ENP,Supplies and Services,E,Grants n Subscriptions,EK,18/12/2015,PAY00825158,EYRS,Early Years,7172,Revenue,Angmering Day Nurseries Ltd
Brighton & Hove City Council,http://statistics.data.gov.uk/id/local-authority/00ML,Cultural and Related Serv,BVACUL,Culture and Heritage,CHG,Supplies and Services,E,Equip't Furniture n Materials,EA,16/12/2015,PAY00824118,RPMU,Royal Pavilion and Museums,2000,Revenue,Antenna Audio Ltd
Brighton & Hove City Council,http://statistics.data.gov.uk/id/local-authority/00ML,Cultural and Related Serv,BVACUL,Culture and Heritage,CHG,Supplies and Services,E,Equip't Furniture n Materials,EA,31/12/2015,PAY00828079,RPMU,Royal Pavilion and Museums,2000,Revenue,Antenna Audio Ltd
Brighton & Hove City Council,http://statistics.data.gov.uk/id/local-authority/00ML,Central Support and Overheads,BVACEN,Support Services (SSC),PPT,Supplies and Services,E,Services,EF,09/12/2015,PAY00821797,PROP,Property and Design,48606.76,Revenue,AP Security (APS) Ltd
Brighton & Hove City Council,http://statistics.data.gov.uk/id/local-authority/00ML,Central Support and Overheads,BVACEN,Support Services (SSC),PPT,Supplies and Services,E,Services,EF,18/12/2015,PAY00825339,PROP,Property and Design,49619.01,Revenue,AP Security (APS) Ltd
Brighton & Hove City Council,http://statistics.data.gov.uk/id/local-authority/00ML,Housing Revenue Account,BVAHOU,Hsing Management - HRA,HGM,Premises Related,C,Repair Maint n Alterations,CA,09/12/2015,PAY00821558,HPAI,Property & Investment,3050.4,Revenue,Appello
Brighton & Hove City Council,http://statistics.data.gov.uk/id/local-authority/00ML,Housing Revenue Account,BVAHOU,Hsing Management - HRA,HGM,Supplies and Services,E,Equip't Furniture n Materials,EA,09/12/2015,PAY00821558,HPAI,Property & Investment,763.18,Revenue,Appello
Brighton & Hove City Council,http://statistics.data.gov.uk/id/local-authority/00ML,Housing Revenue Account,BVAHOU,Hsing Management - HRA,HGM,Third Party Payments,F,Independent Units of Council,FA,09/12/2015,PAY00821558,HPAI,Property & Investment,8607.25,Revenue,Appello
Brighton & Hove City Council,http://statistics.data.gov.uk/id/local-authority/00ML,Housing General Fund,BVAHOG,Homelessness,HML,Premises Related,C,Rents Payable,CC,11/12/2015,PAY00822616,TAAS,Temp Accom and Allocations,2250,Revenue,Applegate Properties Ltd
Brighton & Hove City Council,http://statistics.data.gov.uk/id/local-authority/00ML,Highways and Transportation,BVAHRT,Parking Services,PRK,Premises Related,C,Repair Maint n Alterations,CA,02/12/2015,PAY00819982,PARK,Parking,2076.4,Revenue,APS Aegis Limited
Brighton & Hove City Council,http://statistics.data.gov.uk/id/local-authority/00ML,Highways and Transportation,BVAHRT,Parking Services,PRK,Premises Related,C,Repair Maint n Alterations,CA,18/12/2015,PAY00825221,PARK,Parking,6980,Revenue,APS Aegis Limited
Brighton & Hove City Council,http://statistics.data.gov.uk/id/local-authority/00ML,Highways and Transportation,BVAHRT,Parking Services,PRK,Premises Related,C,Repair Maint n Alterations,CA,23/12/2015,PAY00826027,PARK,Parking,1744.8,Revenue,APS Aegis Limited
Brighton & Hove City Council,http://statistics.data.gov.uk/id/local-authority/00ML,Highways and Transportation,BVAHRT,Parking Services,PRK,Supplies and Services,E,Print Stat & Gen Office Exps,ED,23/12/2015,PAY00825812,PARK,Parking,500,Revenue,APT Skidata Ltd
Brighton & Hove City Council,http://statistics.data.gov.uk/id/local-authority/00ML,Highways and Transportation,BVAHRT,Parking Services,PRK,Premises Related,C,Repair Maint n Alterations,CA,24/12/2015,PAY00826601,PARK,Parking,559.12,Revenue,APT Skidata Ltd
Brighton & Hove City Council,http://statistics.data.gov.uk/id/local-authority/00ML,Highways and Transportation,BVAHRT,Parking Services,PRK,Supplies and Services,E,Equip't Furniture n Materials,EA,31/12/2015,PAY00827706,PARK,Parking,210,Revenue,APT Skidata Ltd
Brighton & Hove City Council,http://statistics.data.gov.uk/id/local-authority/00ML,Planning and Development,BVAPLA,Economic Development,ECD,Supplies and Services,E,Grants n Subscriptions,EK,02/12/2015,PAY00819854,CMNY,Communities and Equalities,1000,Revenue,Aqua Seniors
Brighton & Hove City Council,http://statistics.data.gov.uk/id/local-authority/00ML,Cultural and Related Serv,BVACUL,Highways and Roads - Mntnce,HRM,Premises Related,C,Repair Maint n Alterations,CA,04/12/2015,PAY00821243,PROP,Property and Design,192.5,Revenue,Aquam Water Services
Brighton & Hove City Council,http://statistics.data.gov.uk/id/local-authority/00ML,Cultural and Related Serv,BVACUL,Highways and Roads - Mntnce,HRM,Premises Related,C,Water Services,CE,04/12/2015,PAY00821243,PROP,Property and Design,192.5,Revenue,Aquam Water Services
Brighton & Hove City Council,http://statistics.data.gov.uk/id/local-authority/00ML,Children`s & Education Serv,BVAEDU,Ed Special Ed,EKE,Third Party Payments,F,Other Agencies,FL,18/12/2015,PAY00825494,SEN,SEN,82060.67,Revenue,Aran Hall School Ltd
Brighton & Hove City Council,http://statistics.data.gov.uk/id/local-authority/00ML,Children`s & Education Serv,BVAEDU,Child Srvcs - Residential Svcs,FLR,Third Party Payments,F,Other Establishments,FH,09/12/2015,PAY00821497,AVFM,Agency Placements\VFM,43600,Revenue,ARC Adventure (Sussex) Ltd
Brighton & Hove City Council,http://statistics.data.gov.uk/id/local-authority/00ML,Children`s & Education Serv,BVAEDU,Child Srvcs - Residential Svcs,FLR,Third Party Payments,F,Other Establishments,FH,31/12/2015,PAY00827740,AVFM,Agency Placements\VFM,15600,Revenue,ARC Adventure (Sussex) Ltd
Brighton & Hove City Council,http://statistics.data.gov.uk/id/local-authority/00ML,Adult Social Care,BVASOC,ASC Memory Cognition Support,MEM,Customer n Client Receipts,M,Fees n Charges,MB,18/12/2015,PAY00825551,COGN,Memory Cognition Support,-452.8,Revenue,Archmore Care Services
Brighton & Hove City Council,http://statistics.data.gov.uk/id/local-authority/00ML,Adult Social Care,BVASOC,ASC Memory Cognition Support,MEM,Third Party Payments,F,Other Establishments,FH,18/12/2015,PAY00825551,COGN,Memory Cognition Support,2420.68,Revenue,Archmore Care Services
Brighton & Hove City Council,http://statistics.data.gov.uk/id/local-authority/00ML,Children`s & Education Serv,BVAEDU,Child Srvcs Leaving Care,FAL,Transfer Payments,G,Other Transfer Payments,GD,04/12/2015,PAY00820575,CHIC,Children In Care,435.54,Revenue,Argos Business Solutions Ltd
Brighton & Hove City Council,http://statistics.data.gov.uk/id/local-authority/00ML,Cultural and Related Serv,BVACUL,Culture and Heritage,CHG,Supplies and Services,E,Equip't Furniture n Materials,EA,09/12/2015,PAY00821486,RPMU,Royal Pavilion and Museums,386.49,Revenue,Argos Business Solutions Ltd
Brighton & Hove City Council,http://statistics.data.gov.uk/id/local-authority/00ML,Children`s & Education Serv,BVAEDU,Child Srvcs Leaving Care,FAL,Transfer Payments,G,Other Transfer Payments,GD,24/12/2015,PAY00826626,CHIC,Children In Care,795.94,Revenue,Argos Business Solutions Ltd
Brighton & Hove City Council,http://statistics.data.gov.uk/id/local-authority/00ML,Adult Social Care,BVASOC,Assistive Equipment & Tech,AET,Supplies and Services,E,Communications n Computing,EH,31/12/2015,PAY00827732,SSCT,S75 SCT,3.29,Revenue,Argos Business Solutions Ltd
Brighton & Hove City Council,http://statistics.data.gov.uk/id/local-authority/00ML,Adult Social Care,BVASOC,Assistive Equipment & Tech,AET,Supplies and Services,E,Equip't Furniture n Materials,EA,31/12/2015,PAY00827732,SSCT,S75 SCT,74.98,Revenue,Argos Business Solutions Ltd
Brighton & Hove City Council,http://statistics.data.gov.uk/id/local-authority/00ML,Children`s & Education Serv,BVAEDU,Child Srvcs Leaving Care,FAL,Transfer Payments,G,Other Transfer Payments,GD,31/12/2015,PAY00827732,CHIC,Children In Care,196.08,Revenue,Argos Business Solutions Ltd
Brighton & Hove City Council,http://statistics.data.gov.uk/id/local-authority/00ML,Housing General Fund,BVAHOG,Homelessness,HML,Premises Related,C,Cleaning n Domestic Supps,CH,31/12/2015,PAY00827732,ASSA,Hostel Accommodation,82.44,Revenue,Argos Business Solutions Ltd
Brighton & Hove City Council,http://statistics.data.gov.uk/id/local-authority/00ML,Adult Social Care,BVASOC,ASC Physical Support,PHY,Supplies and Services,E,Equip't Furniture n Materials,EA,11/12/2015,PAY00822204,RCOP,Resource Centres Older People,646,Revenue,ArjoHuntleigh UK
Brighton & Hove City Council,http://statistics.data.gov.uk/id/local-authority/00ML,Adult Social Care,BVASOC,ASC Memory Cognition Support,MEM,Customer n Client Receipts,M,Fees n Charges,MB,18/12/2015,PAY00824910,COGN,Memory Cognition Support,-6710.48,Revenue,Arlington House
Brighton & Hove City Council,http://statistics.data.gov.uk/id/local-authority/00ML,Adult Social Care,BVASOC,ASC Memory Cognition Support,MEM,Third Party Payments,F,Other Establishments,FH,18/12/2015,PAY00824910,COGN,Memory Cognition Support,21175.2,Revenue,Arlington House
Brighton & Hove City Council,http://statistics.data.gov.uk/id/local-authority/00ML,Adult Social Care,BVASOC,ASC Physical Support,PHY,Customer n Client Receipts,M,Fees n Charges,MB,18/12/2015,PAY00824910,PHYS,Physical Support,-4662.36,Revenue,Arlington House
Brighton & Hove City Council,http://statistics.data.gov.uk/id/local-authority/00ML,Adult Social Care,BVASOC,ASC Physical Support,PHY,Third Party Payments,F,Other Establishments,FH,18/12/2015,PAY00824910,PHYS,Physical Support,23361.68,Revenue,Arlington House
Brighton & Hove City Council,http://statistics.data.gov.uk/id/local-authority/00ML,Central Support and Overheads,BVACEN,Support Services (SSC),PPT,Supplies and Services,E,Communications n Computing,EH,31/12/2015,PAY00827996,ICTA,ICT,1211.05,Revenue,Armadillo Managed Services Ltd
Brighton & Hove City Council,http://statistics.data.gov.uk/id/local-authority/00ML,Children`s & Education Serv,BVAEDU,Ed Mgmt and Support Services,EMG,Supplies and Services,E,Miscellaneous Expenses,EM,23/12/2015,PAY00825672,MUSE,Music Service,260,Revenue,Arnolds of Lewes
Brighton & Hove City Council,http://statistics.data.gov.uk/id/local-authority/00ML,Adult Social Care,BVASOC,ASC Learning Disabilities,ALD,Customer n Client Receipts,M,Fees n Charges,MB,11/12/2015,PAY00822688,LDIS,Learning Disabilities,-81,Revenue,Arundel Domiciliary Care Services
Brighton & Hove City Council,http://statistics.data.gov.uk/id/local-authority/00ML,Adult Social Care,BVASOC,ASC Learning Disabilities,ALD,Third Party Payments,F,Other Establishments,FH,11/12/2015,PAY00822688,LDIS,Learning Disabilities,46816,Revenue,Arundel Domiciliary Care Services
Brighton & Hove City Council,http://statistics.data.gov.uk/id/local-authority/00ML,Adult Social Care,BVASOC,ASC Learning Disabilities,ALD,Customer n Client Receipts,M,Fees n Charges,MB,16/12/2015,PAY00823927,LDIS,Learning Disabilities,-2416,Revenue,Arundel Domiciliary Care Services
Brighton & Hove City Council,http://statistics.data.gov.uk/id/local-authority/00ML,Adult Social Care,BVASOC,ASC Learning Disabilities,ALD,Third Party Payments,F,Other Establishments,FH,16/12/2015,PAY00823927,LDIS,Learning Disabilities,102099.92,Revenue,Arundel Domiciliary Care Services
Brighton & Hove City Council,http://statistics.data.gov.uk/id/local-authority/00ML,Adult Social Care,BVASOC,ASC Physical Support,PHY,Customer n Client Receipts,M,Fees n Charges,MB,02/12/2015,PAY00819811,PHYS,Physical Support,412.34,Revenue,Arundel Park Lodge
Brighton & Hove City Council,http://statistics.data.gov.uk/id/local-authority/00ML,Central Support and Overheads,BVACEN,Support Services (SSC),PPT,Third Party Payments,F,Other Establishments,FH,04/12/2015,PAY00820731,FINS,Financial Services,4756,Revenue,Arundel Park Lodge
Brighton & Hove City Council,http://statistics.data.gov.uk/id/local-authority/00ML,Adult Social Care,BVASOC,ASC Physical Support,PHY,Customer n Client Receipts,M,Fees n Charges,MB,18/12/2015,PAY00824911,PHYS,Physical Support,-5097.16,Revenue,Arundel Park Lodge
Brighton & Hove City Council,http://statistics.data.gov.uk/id/local-authority/00ML,Adult Social Care,BVASOC,ASC Physical Support,PHY,Third Party Payments,F,Other Establishments,FH,18/12/2015,PAY00824911,PHYS,Physical Support,19111.16,Revenue,Arundel Park Lodge
Brighton & Hove City Council,http://statistics.data.gov.uk/id/local-authority/00ML,Cultural and Related Serv,BVACUL,Culture and Heritage,CHG,Supplies and Services,E,Equip't Furniture n Materials,EA,31/12/2015,PAY00827735,RPMU,Royal Pavilion and Museums,5486.4,Revenue,AS Handover Ltd
Brighton & Hove City Council,http://statistics.data.gov.uk/id/local-authority/00ML,Children`s & Education Serv,BVAEDU,Ed Ed Other Other,ENF,Premises Related,C,Repair Maint n Alterations,CA,31/12/2015,PAY00828048,PROP,Property and Design,547.25,Revenue,Asbestos First Ltd
Brighton & Hove City Council,http://statistics.data.gov.uk/id/local-authority/00ML,Adult Social Care,BVASOC,ASC Learning Disabilities,ALD,Customer n Client Receipts,M,Fees n Charges,MB,11/12/2015,PAY00822197,LDIS,Learning Disabilities,-321.8,Revenue,ASD Unique Services LLP
Brighton & Hove City Council,http://statistics.data.gov.uk/id/local-authority/00ML,Adult Social Care,BVASOC,ASC Learning Disabilities,ALD,Third Party Payments,F,Other Establishments,FH,11/12/2015,PAY00822197,LDIS,Learning Disabilities,4486.2,Revenue,ASD Unique Services LLP
Brighton & Hove City Council,http://statistics.data.gov.uk/id/local-authority/00ML,Adult Social Care,BVASOC,ASC Mental Health Support,MHP,Third Party Payments,F,Other Establishments,FH,11/12/2015,PAY00822181,MENH,Mental Health Support,6129.44,Revenue,Ashford House Ltd
Brighton & Hove City Council,http://statistics.data.gov.uk/id/local-authority/00ML,Adult Social Care,BVASOC,ASC Mental Health Support,MHP,Third Party Payments,F,Other Establishments,FH,31/12/2015,PAY00827557,MENH,Mental Health Support,3064.72,Revenue,Ashford House Ltd
Brighton & Hove City Council,http://statistics.data.gov.uk/id/local-authority/00ML,Adult Social Care,BVASOC,ASC Learning Disabilities,ALD,Customer n Client Receipts,M,Fees n Charges,MB,04/12/2015,PAY00820959,LDIS,Learning Disabilities,-332,Revenue,Ashmeadows House Ltd
Brighton & Hove City Council,http://statistics.data.gov.uk/id/local-authority/00ML,Adult Social Care,BVASOC,ASC Learning Disabilities,ALD,Third Party Payments,F,Other Establishments,FH,04/12/2015,PAY00820959,LDIS,Learning Disabilities,3672.48,Revenue,Ashmeadows House Ltd
Brighton & Hove City Council,http://statistics.data.gov.uk/id/local-authority/00ML,Adult Social Care,BVASOC,ASC Mental Health Support,MHP,Customer n Client Receipts,M,Fees n Charges,MB,04/12/2015,PAY00820959,MENH,Mental Health Support,-246,Revenue,Ashmeadows House Ltd
Brighton & Hove City Council,http://statistics.data.gov.uk/id/local-authority/00ML,Adult Social Care,BVASOC,ASC Mental Health Support,MHP,Third Party Payments,F,Other Establishments,FH,04/12/2015,PAY00820959,MENH,Mental Health Support,1548.85,Revenue,Ashmeadows House Ltd
Brighton & Hove City Council,http://statistics.data.gov.uk/id/local-authority/00ML,Adult Social Care,BVASOC,ASC Learning Disabilities,ALD,Customer n Client Receipts,M,Fees n Charges,MB,31/12/2015,PAY00827987,LDIS,Learning Disabilities,-376,Revenue,Ashmeadows House Ltd
Brighton & Hove City Council,http://statistics.data.gov.uk/id/local-authority/00ML,Adult Social Care,BVASOC,ASC Learning Disabilities,ALD,Third Party Payments,F,Other Establishments,FH,31/12/2015,PAY00827987,LDIS,Learning Disabilities,4369.98,Revenue,Ashmeadows House Ltd
Brighton & Hove City Council,http://statistics.data.gov.uk/id/local-authority/00ML,Adult Social Care,BVASOC,ASC Mental Health Support,MHP,Customer n Client Receipts,M,Fees n Charges,MB,31/12/2015,PAY00827987,MENH,Mental Health Support,-205,Revenue,Ashmeadows House Ltd
Brighton & Hove City Council,http://statistics.data.gov.uk/id/local-authority/00ML,Adult Social Care,BVASOC,ASC Mental Health Support,MHP,Third Party Payments,F,Other Establishments,FH,31/12/2015,PAY00827987,MENH,Mental Health Support,1548.85,Revenue,Ashmeadows House Ltd
Brighton & Hove City Council,http://statistics.data.gov.uk/id/local-authority/00ML,Adult Social Care,BVASOC,ASC Physical Support,PHY,Third Party Payments,F,Other Establishments,FH,11/12/2015,PAY00823258,PHYS,Physical Support,4359.75,Revenue,Ashton House
Brighton & Hove City Council,http://statistics.data.gov.uk/id/local-authority/00ML,Adult Social Care,BVASOC,ASC Memory Cognition Support,MEM,Customer n Client Receipts,M,Fees n Charges,MB,18/12/2015,PAY00825450,COGN,Memory Cognition Support,-719.76,Revenue,Ashton House
Brighton & Hove City Council,http://statistics.data.gov.uk/id/local-authority/00ML,Adult Social Care,BVASOC,ASC Memory Cognition Support,MEM,Third Party Payments,F,Other Establishments,FH,18/12/2015,PAY00825450,COGN,Memory Cognition Support,4958.24,Revenue,Ashton House
Brighton & Hove City Council,http://statistics.data.gov.uk/id/local-authority/00ML,Adult Social Care,BVASOC,ASC Physical Support,PHY,Third Party Payments,F,Other Establishments,FH,18/12/2015,PAY00825450,PHYS,Physical Support,1968.92,Revenue,Ashton House
Brighton & Hove City Council,http://statistics.data.gov.uk/id/local-authority/00ML,Children`s & Education Serv,BVAEDU,Child Srvcs - Fostering,FLF,Third Party Payments,F,Other Establishments,FH,09/12/2015,PAY00821397,AVFM,Agency Placements\VFM,8250.57,Revenue,Asphaleia Ltd
Brighton & Hove City Council,http://statistics.data.gov.uk/id/local-authority/00ML,Children`s & Education Serv,BVAEDU,Child Srvcs - Fostering,FLF,Third Party Payments,F,Other Establishments,FH,31/12/2015,PAY00827611,AVFM,Agency Placements\VFM,5209.71,Revenue,Asphaleia Ltd
Brighton & Hove City Council,http://statistics.data.gov.uk/id/local-authority/00ML,Adult Social Care,BVASOC,ASC Learning Disabilities,ALD,Third Party Payments,F,Other Establishments,FH,09/12/2015,PAY00821553,LDIS,Learning Disabilities,17837.64,Revenue,Aspirations Active
Brighton & Hove City Council,http://statistics.data.gov.uk/id/local-authority/00ML,Adult Social Care,BVASOC,ASC Mental Health Support,MHP,Third Party Payments,F,Other Establishments,FH,09/12/2015,PAY00821905,MENH,Mental Health Support,4890.95,Revenue,Aspirations Care Ltd
Brighton & Hove City Council,http://statistics.data.gov.uk/id/local-authority/00ML,Adult Social Care,BVASOC,ASC Physical Support,PHY,Customer n Client Receipts,M,Fees n Charges,MB,16/12/2015,PAY00824239,PHYS,Physical Support,-1194.64,Revenue,Aspire Life Care
Brighton & Hove City Council,http://statistics.data.gov.uk/id/local-authority/00ML,Adult Social Care,BVASOC,ASC Physical Support,PHY,Third Party Payments,F,Other Establishments,FH,16/12/2015,PAY00824239,PHYS,Physical Support,1848.92,Revenue,Aspire Life Care
Brighton & Hove City Council,http://statistics.data.gov.uk/id/local-authority/00ML,Central Support and Overheads,BVACEN,Support Services (SSC),PPT,Premises Related,C,Repair Maint n Alterations,CA,18/12/2015,PAY00825002,PROP,Property and Design,212.86,Revenue,Assa Abloy Entrance Systems Ltd
Brighton & Hove City Council,http://statistics.data.gov.uk/id/local-authority/00ML,Central Services to the Public,BVACEN,Elections,ELE,Supplies and Services,E,Expenses,EJ,18/12/2015,PAY00824556,LIFE,Life Events,715,Revenue,Assoc Of Electoral Administrators Ltd
Brighton & Hove City Council,http://statistics.data.gov.uk/id/local-authority/00ML,Adult Social Care,BVASOC,Social Care Activities,ACM,Supplies and Services,E,Equip't Furniture n Materials,EA,31/12/2015,PAY00828066,ASIT,Assessment and SIT,717.44,Revenue,Associated Optical
Brighton & Hove City Council,http://statistics.data.gov.uk/id/local-authority/00ML,Non I&E,BVANON,CAP Other Env Services,4EV,New Construction n Conversion,PB,New Construction n Conversion,PBL5,31/12/2015,PAY00828199,HWEN,Highways Engineering,1122.5,Capital,AST Floodwall Systems Ltd
Brighton & Hove City Council,http://statistics.data.gov.uk/id/local-authority/00ML,Adult Social Care,BVASOC,ASC Learning Disabilities,ALD,Transport Related,D,Direct Transport Costs,DA,02/12/2015,PAY00819757,LDAS,LD Accommodation Services,126.08,Revenue,ATS Euromaster Ltd
Brighton & Hove City Council,http://statistics.data.gov.uk/id/local-authority/00ML,Adult Social Care,BVASOC,Social Care Activities,ACM,Transport Related,D,Direct Transport Costs,DA,02/12/2015,PAY00819757,ASIT,Assessment and SIT,8.79,Revenue,ATS Euromaster Ltd
Brighton & Hove City Council,http://statistics.data.gov.uk/id/local-authority/00ML,Adult Social Care,BVASOC,Social Care Activities,ACM,Transport Related,D,Direct Transport Costs,DA,02/12/2015,PAY00819757,SPFT,S75 SPFT,113.82,Revenue,ATS Euromaster Ltd
Brighton & Hove City Council,http://statistics.data.gov.uk/id/local-authority/00ML,Central Support and Overheads,BVACEN,Holding Accounts,PPH,Transport Related,D,Direct Transport Costs,DA,02/12/2015,PAY00819757,CICL,City Clean,69.4,Revenue,ATS Euromaster Ltd
Brighton & Hove City Council,http://statistics.data.gov.uk/id/local-authority/00ML,Central Support and Overheads,BVACEN,Support Services (SSC),PPT,Transport Related,D,Direct Transport Costs,DA,02/12/2015,PAY00819757,PROP,Property and Design,114.76,Revenue,ATS Euromaster Ltd
Brighton & Hove City Council,http://statistics.data.gov.uk/id/local-authority/00ML,Children`s & Education Serv,BVAEDU,Child Srvcs - Other Fam Supp,FFX,Transport Related,D,Direct Transport Costs,DA,02/12/2015,PAY00819757,DISS,Disability Services,154.33,Revenue,ATS Euromaster Ltd
Brighton & Hove City Council,http://statistics.data.gov.uk/id/local-authority/00ML,Children`s & Education Serv,BVAEDU,Ed Secondary Schools,EJJ,Transport Related,D,Public Transport,DD,02/12/2015,PAY00819757,SCHL,Schools,14.27,Revenue,ATS Euromaster Ltd
Brighton & Hove City Council,http://statistics.data.gov.uk/id/local-authority/00ML,Cultural and Related Serv,BVACUL,Management Services (DEC),MGT,Transport Related,D,Direct Transport Costs,DA,02/12/2015,PAY00819757,CIPK,City Parks,1611.47,Revenue,ATS Euromaster Ltd
Brighton & Hove City Council,http://statistics.data.gov.uk/id/local-authority/00ML,Environment & Regulatory Serv,BVAERS,Street Cleansing,CLE,Transport Related,D,Direct Transport Costs,DA,02/12/2015,PAY00819757,CICL,City Clean,753.66,Revenue,ATS Euromaster Ltd
Brighton & Hove City Council,http://statistics.data.gov.uk/id/local-authority/00ML,Environment & Regulatory Serv,BVAERS,Waste Management,WMT,Transport Related,D,Direct Transport Costs,DA,02/12/2015,PAY00819757,CICL,City Clean,7115.93,Revenue,ATS Euromaster Ltd
Brighton & Hove City Council,http://statistics.data.gov.uk/id/local-authority/00ML,Housing Revenue Account,BVAHOU,Hsing Management - HRA,HGM,Transport Related,D,Direct Transport Costs,DA,02/12/2015,PAY00819757,HTEN,Tenancy Services,69.4,Revenue,ATS Euromaster Ltd
Brighton & Hove City Council,http://statistics.data.gov.uk/id/local-authority/00ML,Children`s & Education Serv,BVAEDU,Child Srvcs Adoption,FAA,Customer n Client Receipts,M,Fees n Charges,MB,09/12/2015,PAY00821937,CHIC,Children In Care,637.5,Revenue,Attachment Works Ltd
Brighton & Hove City Council,http://statistics.data.gov.uk/id/local-authority/00ML,Adult Social Care,BVASOC,ASC Learning Disabilities,ALD,Customer n Client Receipts,M,Fees n Charges,MB,04/12/2015,PAY00820784,LDIS,Learning Disabilities,-468,Revenue,Autism Sussex Ltd
Brighton & Hove City Council,http://statistics.data.gov.uk/id/local-authority/00ML,Adult Social Care,BVASOC,ASC Learning Disabilities,ALD,Third Party Payments,F,Other Establishments,FH,04/12/2015,PAY00820784,LDIS,Learning Disabilities,3415.5,Revenue,Autism Sussex Ltd
Brighton & Hove City Council,http://statistics.data.gov.uk/id/local-authority/00ML,Adult Social Care,BVASOC,ASC Mental Health Support,MHP,Customer n Client Receipts,M,Fees n Charges,MB,04/12/2015,PAY00820784,MENH,Mental Health Support,-164,Revenue,Autism Sussex Ltd
Brighton & Hove City Council,http://statistics.data.gov.uk/id/local-authority/00ML,Adult Social Care,BVASOC,ASC Mental Health Support,MHP,Third Party Payments,F,Other Establishments,FH,04/12/2015,PAY00820784,MENH,Mental Health Support,2392.5,Revenue,Autism Sussex Ltd
Brighton & Hove City Council,http://statistics.data.gov.uk/id/local-authority/00ML,Adult Social Care,BVASOC,ASC Learning Disabilities,ALD,Third Party Payments,F,Other Establishments,FH,11/12/2015,PAY00822481,LDIS,Learning Disabilities,1816,Revenue,Autism Sussex Ltd
Brighton & Hove City Council,http://statistics.data.gov.uk/id/local-authority/00ML,Adult Social Care,BVASOC,ASC Learning Disabilities,ALD,Customer n Client Receipts,M,Fees n Charges,MB,16/12/2015,PAY00823809,LDIS,Learning Disabilities,-156,Revenue,Autism Sussex Ltd
Brighton & Hove City Council,http://statistics.data.gov.uk/id/local-authority/00ML,Adult Social Care,BVASOC,ASC Learning Disabilities,ALD,Third Party Payments,F,Other Establishments,FH,16/12/2015,PAY00823809,LDIS,Learning Disabilities,6070.8,Revenue,Autism Sussex Ltd
Brighton & Hove City Council,http://statistics.data.gov.uk/id/local-authority/00ML,Adult Social Care,BVASOC,ASC Mental Health Support,MHP,Third Party Payments,F,Other Establishments,FH,16/12/2015,PAY00823809,MENH,Mental Health Support,891,Revenue,Autism Sussex Ltd
Brighton & Hove City Council,http://statistics.data.gov.uk/id/local-authority/00ML,Adult Social Care,BVASOC,ASC Physical Support,PHY,Third Party Payments,F,Other Establishments,FH,16/12/2015,PAY00823809,PHYS,Physical Support,330,Revenue,Autism Sussex Ltd
Brighton & Hove City Council,http://statistics.data.gov.uk/id/local-authority/00ML,Adult Social Care,BVASOC,ASC Learning Disabilities,ALD,Customer n Client Receipts,M,Fees n Charges,MB,18/12/2015,PAY00824989,LDIS,Learning Disabilities,-1437.4,Revenue,Autism Sussex Ltd
Brighton & Hove City Council,http://statistics.data.gov.uk/id/local-authority/00ML,Adult Social Care,BVASOC,ASC Learning Disabilities,ALD,Third Party Payments,F,Other Establishments,FH,18/12/2015,PAY00824989,LDIS,Learning Disabilities,24697.6,Revenue,Autism Sussex Ltd
Brighton & Hove City Council,http://statistics.data.gov.uk/id/local-authority/00ML,Children`s & Education Serv,BVAEDU,Child Srvcs - Other Fam Supp,FFX,Transfer Payments,G,Other Transfer Payments,GD,24/12/2015,PAY00826830,DISS,Disability Services,406.12,Revenue,Autism Sussex Ltd
Brighton & Hove City Council,http://statistics.data.gov.uk/id/local-authority/00ML,Central Support and Overheads,BVACEN,Support Services (SSC),PPT,Supplies and Services,E,Miscellaneous Expenses,EM,23/12/2015,PAY00825783,ICTA,ICT,1500,Revenue,Aviation Projects Ltd
Brighton & Hove City Council,http://statistics.data.gov.uk/id/local-authority/00ML,Housing Revenue Account,BVAHOU,Hsing Management - HRA,HGM,Premises Related,C,Rents Payable,CC,24/12/2015,PAY00827103,HPAI,Property & Investment,41250,Revenue,Aviva Investors Global Services Limited
Brighton & Hove City Council,http://statistics.data.gov.uk/id/local-authority/00ML,Housing Revenue Account,BVAHOU,Hsing Management - HRA,HGM,Premises Related,C,Repair Maint n Alterations,CA,24/12/2015,PAY00827103,HPAI,Property & Investment,3657.25,Revenue,Aviva Investors Global Services Limited
Brighton & Hove City Council,http://statistics.data.gov.uk/id/local-authority/00ML,Children`s & Education Serv,BVAEDU,Child Srvcs - Other Fam Supp,FFX,Direct Employees,A,Salaries,AA,11/12/2015,PAY00822868,FAMP,Families\Prevention,2744.7,Revenue,Avocet Services Limited
Brighton & Hove City Council,http://statistics.data.gov.uk/id/local-authority/00ML,Housing General Fund,BVAHOG,Homelessness,HML,Premises Related,C,Rents Payable,CC,02/12/2015,PAY00819714,TAAS,Temp Accom and Allocations,950,Revenue,Avon Estates (London) Ltd
Brighton & Hove City Council,http://statistics.data.gov.uk/id/local-authority/00ML,Housing General Fund,BVAHOG,Homelessness,HML,Premises Related,C,Rents Payable,CC,11/12/2015,PAY00822278,TAAS,Temp Accom and Allocations,600,Revenue,Avon Estates (London) Ltd
Brighton & Hove City Council,http://statistics.data.gov.uk/id/local-authority/00ML,Housing General Fund,BVAHOG,Homelessness,HML,Premises Related,C,Rents Payable,CC,24/12/2015,PAY00826598,TAAS,Temp Accom and Allocations,950,Revenue,Avon Estates (London) Ltd
Brighton & Hove City Council,http://statistics.data.gov.uk/id/local-authority/00ML,Adult Social Care,BVASOC,ASC Memory Cognition Support,MEM,Customer n Client Receipts,M,Fees n Charges,MB,04/12/2015,PAY00820732,COGN,Memory Cognition Support,-2111.04,Revenue,Avon House (Cobham Care) Ltd
Brighton & Hove City Council,http://statistics.data.gov.uk/id/local-authority/00ML,Adult Social Care,BVASOC,ASC Memory Cognition Support,MEM,Third Party Payments,F,Other Establishments,FH,04/12/2015,PAY00820732,COGN,Memory Cognition Support,3000,Revenue,Avon House (Cobham Care) Ltd
Brighton & Hove City Council,http://statistics.data.gov.uk/id/local-authority/00ML,Central Support and Overheads,BVACEN,Support Services (SSC),PPT,Supplies and Services,E,Miscellaneous Expenses,EM,11/12/2015,PAY00822279,ICTA,ICT,4500,Revenue,AWCFA Limited
Brighton & Hove City Council,http://statistics.data.gov.uk/id/local-authority/00ML,Children`s & Education Serv,BVAEDU,Child Srvcs Com and Scl Work,FCW,Transport Related,D,Public Transport,DD,02/12/2015,PAY00819802,SPAS,Specialist Assessments,13.8,Revenue,B & H City Cabs
Brighton & Hove City Council,http://statistics.data.gov.uk/id/local-authority/00ML,Children`s & Education Serv,BVAEDU,Ed Ed Other LA Attrib Sch,ELA,Transport Related,D,Other Transport Costs,DG,02/12/2015,PAY00819802,OEDS,Other Education Support,80841.35,Revenue,B & H City Cabs
Brighton & Hove City Council,http://statistics.data.gov.uk/id/local-authority/00ML,Children`s & Education Serv,BVAEDU,Support Services (SSC),PPT,Transport Related,D,Public Transport,DD,02/12/2015,PAY00819802,OEDS,Other Education Support,8661.3,Revenue,B & H City Cabs
Brighton & Hove City Council,http://statistics.data.gov.uk/id/local-authority/00ML,Children`s & Education Serv,BVAEDU,Ed Ed Other LA Attrib Sch,ELA,Transport Related,D,Other Transport Costs,DG,11/12/2015,PAY00822465,OEDS,Other Education Support,40456.36,Revenue,B & H City Cabs
Brighton & Hove City Council,http://statistics.data.gov.uk/id/local-authority/00ML,Housing Revenue Account,BVAHOU,Hsing Management - HRA,HGM,Transport Related,D,Public Transport,DD,11/12/2015,PAY00822465,HTEN,Tenancy Services,34.23,Revenue,B & H City Cabs
Brighton & Hove City Council,http://statistics.data.gov.uk/id/local-authority/00ML,Children`s & Education Serv,BVAEDU,Ed Ed Other LA Attrib Sch,ELA,Transport Related,D,Other Transport Costs,DG,23/12/2015,PAY00825873,OEDS,Other Education Support,39025.7,Revenue,B & H City Cabs
Brighton & Hove City Council,http://statistics.data.gov.uk/id/local-authority/00ML,Children`s & Education Serv,BVAEDU,Ed Ed Other LA Attrib Sch,ELA,Transport Related,D,Other Transport Costs,DG,24/12/2015,PAY00826807,OEDS,Other Education Support,38169.47,Revenue,B & H City Cabs
Brighton & Hove City Council,http://statistics.data.gov.uk/id/local-authority/00ML,Children`s & Education Serv,BVAEDU,Support Services (SSC),PPT,Transport Related,D,Public Transport,DD,24/12/2015,PAY00826807,OEDS,Other Education Support,17225,Revenue,B & H City Cabs
Brighton & Hove City Council,http://statistics.data.gov.uk/id/local-authority/00ML,Adult Social Care,BVASOC,ASC Physical Support,PHY,Third Party Payments,F,Other Establishments,FH,31/12/2015,PAY00827796,PHYS,Physical Support,88.2,Revenue,B & H City Cabs
Brighton & Hove City Council,http://statistics.data.gov.uk/id/local-authority/00ML,Children`s & Education Serv,BVAEDU,Ed Ed Other LA Attrib Sch,ELA,Transport Related,D,Public Transport,DD,31/12/2015,PAY00827796,OEDS,Other Education Support,5339.95,Revenue,B & H City Cabs
Brighton & Hove City Council,http://statistics.data.gov.uk/id/local-authority/00ML,Housing General Fund,BVAHOG,Homelessness,HML,Premises Related,C,Repair Maint n Alterations,CA,23/12/2015,PAY00825771,TAAS,Temp Accom and Allocations,1658.39,Revenue,B & Q Plc
Brighton & Hove City Council,http://statistics.data.gov.uk/id/local-authority/00ML,Planning and Development,BVAPLA,Community Development,CDV,Supplies and Services,E,Services,EF,23/12/2015,PAY00825771,CMNY,Communities and Equalities,17.5,Revenue,B & Q Plc
Brighton & Hove City Council,http://statistics.data.gov.uk/id/local-authority/00ML,Housing General Fund,BVAHOG,Homelessness,HML,Premises Related,C,Repair Maint n Alterations,CA,24/12/2015,PAY00826561,TAAS,Temp Accom and Allocations,397.48,Revenue,B & Q Plc
Brighton & Hove City Council,http://statistics.data.gov.uk/id/local-authority/00ML,Planning and Development,BVAPLA,Community Development,CDV,Supplies and Services,E,Services,EF,24/12/2015,PAY00826561,CMNY,Communities and Equalities,106.9,Revenue,B & Q Plc
Brighton & Hove City Council,http://statistics.data.gov.uk/id/local-authority/00ML,Adult Social Care,BVASOC,ASC Learning Disabilities,ALD,Third Party Payments,F,Other Establishments,FH,18/12/2015,PAY00824709,LDIS,Learning Disabilities,1815,Revenue,B&H Home Care Service
Brighton & Hove City Council,http://statistics.data.gov.uk/id/local-authority/00ML,Adult Social Care,BVASOC,ASC Learning Disabilities,ALD,Customer n Client Receipts,M,Fees n Charges,MB,23/12/2015,PAY00825809,LDIS,Learning Disabilities,-215,Revenue,B&H Home Care Service
Brighton & Hove City Council,http://statistics.data.gov.uk/id/local-authority/00ML,Adult Social Care,BVASOC,ASC Learning Disabilities,ALD,Third Party Payments,F,Other Establishments,FH,23/12/2015,PAY00825809,LDIS,Learning Disabilities,6822.75,Revenue,B&H Home Care Service
Brighton & Hove City Council,http://statistics.data.gov.uk/id/local-authority/00ML,Adult Social Care,BVASOC,ASC Physical Support,PHY,Third Party Payments,F,Other Establishments,FH,23/12/2015,PAY00825809,PHYS,Physical Support,346.5,Revenue,B&H Home Care Service
Brighton & Hove City Council,http://statistics.data.gov.uk/id/local-authority/00ML,Children`s & Education Serv,BVAEDU,Ed EY PVI,ENP,Supplies and Services,E,Grants n Subscriptions,EK,16/12/2015,PAY00823700,EYRS,Early Years,1576,Revenue,Baby Ducks Playgroup
Brighton & Hove City Council,http://statistics.data.gov.uk/id/local-authority/00ML,Children`s & Education Serv,BVAEDU,Ed EY PVI,ENP,Supplies and Services,E,Grants n Subscriptions,EK,18/12/2015,PAY00824753,EYRS,Early Years,10110,Revenue,Baby Ducks Playgroup
Brighton & Hove City Council,http://statistics.data.gov.uk/id/local-authority/00ML,Adult Social Care,BVASOC,ASC Learning Disabilities,ALD,Customer n Client Receipts,M,Fees n Charges,MB,09/12/2015,PAY00821645,LDIS,Learning Disabilities,-321.8,Revenue,Ballater House
Brighton & Hove City Council,http://statistics.data.gov.uk/id/local-authority/00ML,Adult Social Care,BVASOC,ASC Learning Disabilities,ALD,Third Party Payments,F,Other Establishments,FH,09/12/2015,PAY00821645,LDIS,Learning Disabilities,7980,Revenue,Ballater House
Brighton & Hove City Council,http://statistics.data.gov.uk/id/local-authority/00ML,Central Support and Overheads,BVACEN,Holding Accounts,PPH,Premises Related,C,Repair Maint n Alterations,CA,18/12/2015,PAY00825413,PROP,Property and Design,976.5,Revenue,Banyard Maintenance Limited
Brighton & Hove City Council,http://statistics.data.gov.uk/id/local-authority/00ML,Central Support and Overheads,BVACEN,Support Services (SSC),PPT,Premises Related,C,Repair Maint n Alterations,CA,18/12/2015,PAY00825413,PROP,Property and Design,20924.06,Revenue,Banyard Maintenance Limited
Brighton & Hove City Council,http://statistics.data.gov.uk/id/local-authority/00ML,Central Support and Overheads,BVACEN,Holding Accounts,PPH,Premises Related,C,Repair Maint n Alterations,CA,23/12/2015,PAY00826190,PROP,Property and Design,511,Revenue,Banyard Maintenance Limited
Brighton & Hove City Council,http://statistics.data.gov.uk/id/local-authority/00ML,Central Support and Overheads,BVACEN,Support Services (SSC),PPT,Premises Related,C,Repair Maint n Alterations,CA,23/12/2015,PAY00826190,PROP,Property and Design,479.5,Revenue,Banyard Maintenance Limited
Brighton & Hove City Council,http://statistics.data.gov.uk/id/local-authority/00ML,Public Health,BVAPHE,Public Health,PHE,Third Party Payments,F,Voluntary Associations,FG,09/12/2015,PAY00821872,PHCM,PH Commissioning,5200,Revenue,Barbara Deacon-Hedges Limited
Brighton & Hove City Council,http://statistics.data.gov.uk/id/local-authority/00ML,Adult Social Care,BVASOC,ASC Memory Cognition Support,MEM,Third Party Payments,F,Other Establishments,FH,09/12/2015,PAY00821454,COGN,Memory Cognition Support,5600,Revenue,Barchester Healthcare Homes Ltd
Brighton & Hove City Council,http://statistics.data.gov.uk/id/local-authority/00ML,Children`s & Education Serv,BVAEDU,Child Srvcs - Fostering,FLF,Third Party Payments,F,Other Establishments,FH,09/12/2015,PAY00821407,AVFM,Agency Placements\VFM,11334.68,Revenue,Barnardo`s
Brighton & Hove City Council,http://statistics.data.gov.uk/id/local-authority/00ML,Children`s & Education Serv,BVAEDU,Child Srvcs - Fostering,FLF,Third Party Payments,F,Other Establishments,FH,18/12/2015,PAY00824638,CHIC,Children In Care,1478,Revenue,Barnardo`s
Brighton & Hove City Council,http://statistics.data.gov.uk/id/local-authority/00ML,Children`s & Education Serv,BVAEDU,Child Srvcs - Fostering,FLF,Third Party Payments,F,Other Establishments,FH,31/12/2015,PAY00827630,AVFM,Agency Placements\VFM,11334.68,Revenue,Barnardo`s
Brighton & Hove City Council,http://statistics.data.gov.uk/id/local-authority/00ML,Cultural and Related Serv,BVACUL,Management Services (DEC),MGT,Transport Related,D,Direct Transport Costs,DA,02/12/2015,PAY00819680,CIPK,City Parks,172.16,Revenue,Barnes DAF
Brighton & Hove City Council,http://statistics.data.gov.uk/id/local-authority/00ML,Environment & Regulatory Serv,BVAERS,Waste Management,WMT,Transport Related,D,Direct Transport Costs,DA,02/12/2015,PAY00819680,CICL,City Clean,173.2,Revenue,Barnes DAF
Brighton & Hove City Council,http://statistics.data.gov.uk/id/local-authority/00ML,Cultural and Related Serv,BVACUL,Management Services (DEC),MGT,Transport Related,D,Direct Transport Costs,DA,04/12/2015,PAY00820529,CIPK,City Parks,9.42,Revenue,Barnes DAF
Brighton & Hove City Council,http://statistics.data.gov.uk/id/local-authority/00ML,Environment & Regulatory Serv,BVAERS,Waste Management,WMT,Transport Related,D,Direct Transport Costs,DA,04/12/2015,PAY00820529,CICL,City Clean,640.6,Revenue,Barnes DAF
Brighton & Hove City Council,http://statistics.data.gov.uk/id/local-authority/00ML,Environment & Regulatory Serv,BVAERS,Management Services (DEC),MGT,Transport Related,D,Direct Transport Costs,DA,18/12/2015,PAY00824659,CICL,City Clean,346.4,Revenue,Barnes DAF
Brighton & Hove City Council,http://statistics.data.gov.uk/id/local-authority/00ML,Cultural and Related Serv,BVACUL,Management Services (DEC),MGT,Transport Related,D,Direct Transport Costs,DA,23/12/2015,PAY00825770,CIPK,City Parks,410.29,Revenue,Barnes DAF
Brighton & Hove City Council,http://statistics.data.gov.uk/id/local-authority/00ML,Housing General Fund,BVAHOG,Homelessness,HML,Premises Related,C,Rents Payable,CC,02/12/2015,PAY00820045,TAAS,Temp Accom and Allocations,847.32,Revenue,Baron Developments Ltd
Brighton & Hove City Council,http://statistics.data.gov.uk/id/local-authority/00ML,Housing General Fund,BVAHOG,Homelessness,HML,Premises Related,C,Rents Payable,CC,04/12/2015,PAY00821038,TAAS,Temp Accom and Allocations,847.32,Revenue,Baron Developments Ltd
Brighton & Hove City Council,http://statistics.data.gov.uk/id/local-authority/00ML,Housing General Fund,BVAHOG,Homelessness,HML,Premises Related,C,Rents Payable,CC,09/12/2015,PAY00821766,TAAS,Temp Accom and Allocations,2722.46,Revenue,Baron Developments Ltd
Brighton & Hove City Council,http://statistics.data.gov.uk/id/local-authority/00ML,Housing General Fund,BVAHOG,Homelessness,HML,Premises Related,C,Rents Payable,CC,11/12/2015,PAY00822987,TAAS,Temp Accom and Allocations,2541.96,Revenue,Baron Developments Ltd
Brighton & Hove City Council,http://statistics.data.gov.uk/id/local-authority/00ML,Housing General Fund,BVAHOG,Homelessness,HML,Premises Related,C,Rents Payable,CC,16/12/2015,PAY00824073,TAAS,Temp Accom and Allocations,847.32,Revenue,Baron Developments Ltd
Brighton & Hove City Council,http://statistics.data.gov.uk/id/local-authority/00ML,Housing General Fund,BVAHOG,Homelessness,HML,Premises Related,C,Rents Payable,CC,23/12/2015,PAY00826090,TAAS,Temp Accom and Allocations,847.32,Revenue,Baron Developments Ltd
Brighton & Hove City Council,http://statistics.data.gov.uk/id/local-authority/00ML,Housing General Fund,BVAHOG,Homelessness,HML,Premises Related,C,Rents Payable,CC,24/12/2015,PAY00827210,TAAS,Temp Accom and Allocations,5611.6,Revenue,Baron Developments Ltd
Brighton & Hove City Council,http://statistics.data.gov.uk/id/local-authority/00ML,Housing General Fund,BVAHOG,Homelessness,HML,Premises Related,C,Rents Payable,CC,09/12/2015,PAY00821595,TAAS,Temp Accom and Allocations,847.32,Revenue,Baron Management Ltd
Brighton & Hove City Council,http://statistics.data.gov.uk/id/local-authority/00ML,Housing General Fund,BVAHOG,Homelessness,HML,Premises Related,C,Rents Payable,CC,11/12/2015,PAY00822544,TAAS,Temp Accom and Allocations,2214.2,Revenue,Baron Management Ltd
Brighton & Hove City Council,http://statistics.data.gov.uk/id/local-authority/00ML,Housing General Fund,BVAHOG,Homelessness,HML,Premises Related,C,Rents Payable,CC,18/12/2015,PAY00825050,TAAS,Temp Accom and Allocations,9950,Revenue,Baron Management Ltd
Brighton & Hove City Council,http://statistics.data.gov.uk/id/local-authority/00ML,Housing General Fund,BVAHOG,Homelessness,HML,Premises Related,C,Rents Payable,CC,24/12/2015,PAY00826892,TAAS,Temp Accom and Allocations,847.32,Revenue,Baron Management Ltd
Brighton & Hove City Council,http://statistics.data.gov.uk/id/local-authority/00ML,Public Health,BVAPHE,Public Health,PHE,Third Party Payments,F,Health Authorities,FC,24/12/2015,PAY00827294,PHCM,PH Commissioning,2250.35,Revenue,Barts Health NHS Trust
Brighton & Hove City Council,http://statistics.data.gov.uk/id/local-authority/00ML,Cultural and Related Serv,BVACUL,Culture and Heritage,CHG,Supplies and Services,E,Miscellaneous Expenses,EM,18/12/2015,PAY00824715,VENU,Venues,2600,Revenue,Bay Media Ltd
Brighton & Hove City Council,http://statistics.data.gov.uk/id/local-authority/00ML,Non I&E,BVANON,Cap - Housing Services - HRA,4HR,New Construction n Conversion,PB,New Construction n Conversion,PBL5,31/12/2015,PAY00827935,HPAI,Property & Investment,1466.66,Capital,BBM Sustainable Design Ltd
Brighton & Hove City Council,http://statistics.data.gov.uk/id/local-authority/00ML,Central Support and Overheads,BVACEN,Support Services (SSC),PPT,Supplies and Services,E,Miscellaneous Expenses,EM,04/12/2015,PAY00821149,FINS,Financial Services,1214.79,Revenue,BDI Securities UK Ltd
Brighton & Hove City Council,http://statistics.data.gov.uk/id/local-authority/00ML,Cultural and Related Serv,BVACUL,Culture and Heritage,CHG,Supplies and Services,E,Miscellaneous Expenses,EM,04/12/2015,PAY00821149,RPMU,Royal Pavilion and Museums,250,Revenue,BDI Securities UK Ltd
Brighton & Hove City Council,http://statistics.data.gov.uk/id/local-authority/00ML,Highways and Transportation,BVAHRT,Parking Services,PRK,Customer n Client Receipts,M,Fees n Charges,MB,04/12/2015,PAY00821149,PARK,Parking,350,Revenue,BDI Securities UK Ltd
Brighton & Hove City Council,http://statistics.data.gov.uk/id/local-authority/00ML,Non-BHC Organisations,BVANON,Trusts,TRT,Supplies and Services,E,Miscellaneous Expenses,EM,04/12/2015,PAY00821149,NBHC,Non Council,2000,Revenue,BDI Securities UK Ltd
Brighton & Hove City Council,http://statistics.data.gov.uk/id/local-authority/00ML,Central Support and Overheads,BVACEN,Support Services (SSC),PPT,Supplies and Services,E,Miscellaneous Expenses,EM,11/12/2015,PAY00823227,FINS,Financial Services,6284.69,Revenue,BDI Securities UK Ltd
Brighton & Hove City Council,http://statistics.data.gov.uk/id/local-authority/00ML,Cultural and Related Serv,BVACUL,Culture and Heritage,CHG,Supplies and Services,E,Miscellaneous Expenses,EM,11/12/2015,PAY00823227,RPMU,Royal Pavilion and Museums,250,Revenue,BDI Securities UK Ltd
Brighton & Hove City Council,http://statistics.data.gov.uk/id/local-authority/00ML,Highways and Transportation,BVAHRT,Parking Services,PRK,Customer n Client Receipts,M,Fees n Charges,MB,11/12/2015,PAY00823227,PARK,Parking,350,Revenue,BDI Securities UK Ltd
Brighton & Hove City Council,http://statistics.data.gov.uk/id/local-authority/00ML,Central Support and Overheads,BVACEN,Support Services (SSC),PPT,Supplies and Services,E,Miscellaneous Expenses,EM,18/12/2015,PAY00825432,FINS,Financial Services,3716.01,Revenue,BDI Securities UK Ltd
Brighton & Hove City Council,http://statistics.data.gov.uk/id/local-authority/00ML,Cultural and Related Serv,BVACUL,Culture and Heritage,CHG,Supplies and Services,E,Miscellaneous Expenses,EM,18/12/2015,PAY00825432,RPMU,Royal Pavilion and Museums,250,Revenue,BDI Securities UK Ltd
Brighton & Hove City Council,http://statistics.data.gov.uk/id/local-authority/00ML,Highways and Transportation,BVAHRT,Parking Services,PRK,Customer n Client Receipts,M,Fees n Charges,MB,18/12/2015,PAY00825432,PARK,Parking,350,Revenue,BDI Securities UK Ltd
Brighton & Hove City Council,http://statistics.data.gov.uk/id/local-authority/00ML,Non-BHC Organisations,BVANON,Trusts,TRT,Supplies and Services,E,Miscellaneous Expenses,EM,18/12/2015,PAY00825432,NBHC,Non Council,1270,Revenue,BDI Securities UK Ltd
Brighton & Hove City Council,http://statistics.data.gov.uk/id/local-authority/00ML,Central Support and Overheads,BVACEN,Support Services (SSC),PPT,Supplies and Services,E,Miscellaneous Expenses,EM,24/12/2015,PAY00827345,FINS,Financial Services,4617.04,Revenue,BDI Securities UK Ltd
Brighton & Hove City Council,http://statistics.data.gov.uk/id/local-authority/00ML,Cultural and Related Serv,BVACUL,Culture and Heritage,CHG,Supplies and Services,E,Miscellaneous Expenses,EM,24/12/2015,PAY00827345,RPMU,Royal Pavilion and Museums,250,Revenue,BDI Securities UK Ltd
Brighton & Hove City Council,http://statistics.data.gov.uk/id/local-authority/00ML,Highways and Transportation,BVAHRT,Parking Services,PRK,Customer n Client Receipts,M,Fees n Charges,MB,24/12/2015,PAY00827345,PARK,Parking,350,Revenue,BDI Securities UK Ltd
Brighton & Hove City Council,http://statistics.data.gov.uk/id/local-authority/00ML,Non-BHC Organisations,BVANON,Trusts,TRT,Supplies and Services,E,Miscellaneous Expenses,EM,24/12/2015,PAY00827345,NBHC,Non Council,216,Revenue,BDI Securities UK Ltd
Brighton & Hove City Council,http://statistics.data.gov.uk/id/local-authority/00ML,Central Support and Overheads,BVACEN,Support Services (SSC),PPT,Supplies and Services,E,Miscellaneous Expenses,EM,31/12/2015,PAY00828146,FINS,Financial Services,4647.34,Revenue,BDI Securities UK Ltd
Brighton & Hove City Council,http://statistics.data.gov.uk/id/local-authority/00ML,Cultural and Related Serv,BVACUL,Culture and Heritage,CHG,Supplies and Services,E,Miscellaneous Expenses,EM,31/12/2015,PAY00828146,RPMU,Royal Pavilion and Museums,250,Revenue,BDI Securities UK Ltd
Brighton & Hove City Council,http://statistics.data.gov.uk/id/local-authority/00ML,Highways and Transportation,BVAHRT,Parking Services,PRK,Customer n Client Receipts,M,Fees n Charges,MB,31/12/2015,PAY00828146,PARK,Parking,350,Revenue,BDI Securities UK Ltd
Brighton & Hove City Council,http://statistics.data.gov.uk/id/local-authority/00ML,Adult Social Care,BVASOC,ASC Sensory Support,AHV,Customer n Client Receipts,M,Fees n Charges,MB,31/12/2015,PAY00828073,SORY,Sensory Support,-505.2,Revenue,Beachlands Care Ltd
Brighton & Hove City Council,http://statistics.data.gov.uk/id/local-authority/00ML,Adult Social Care,BVASOC,ASC Sensory Support,AHV,Third Party Payments,F,Other Establishments,FH,31/12/2015,PAY00828073,SORY,Sensory Support,1572,Revenue,Beachlands Care Ltd
Brighton & Hove City Council,http://statistics.data.gov.uk/id/local-authority/00ML,Adult Social Care,BVASOC,ASC Mental Health Support,MHP,Third Party Payments,F,Other Establishments,FH,18/12/2015,PAY00824726,MENH,Mental Health Support,4329.76,Revenue,Beachside Rest Home
Brighton & Hove City Council,http://statistics.data.gov.uk/id/local-authority/00ML,Cultural and Related Serv,BVACUL,Culture and Heritage,CHG,Direct Employees,A,Wages,AB,02/12/2015,PAY00820148,VENU,Venues,300,Revenue,Beacon Facilities Management Limited
Brighton & Hove City Council,http://statistics.data.gov.uk/id/local-authority/00ML,Cultural and Related Serv,BVACUL,Culture and Heritage,CHG,Direct Employees,A,Wages,AB,16/12/2015,PAY00824209,VENU,Venues,522,Revenue,Beacon Facilities Management Limited
Brighton & Hove City Council,http://statistics.data.gov.uk/id/local-authority/00ML,Cultural and Related Serv,BVACUL,Culture and Heritage,CHG,Direct Employees,A,Wages,AB,31/12/2015,PAY00828150,VENU,Venues,1278,Revenue,Beacon Facilities Management Limited
Brighton & Hove City Council,http://statistics.data.gov.uk/id/local-authority/00ML,Adult Social Care,BVASOC,ASC Physical Support,PHY,Customer n Client Receipts,M,Fees n Charges,MB,04/12/2015,PAY00821199,PHYS,Physical Support,532.86,Revenue,Beaumont NH Ltd
Brighton & Hove City Council,http://statistics.data.gov.uk/id/local-authority/00ML,Adult Social Care,BVASOC,ASC Physical Support,PHY,Third Party Payments,F,Other Establishments,FH,04/12/2015,PAY00821199,PHYS,Physical Support,-1501.49,Revenue,Beaumont NH Ltd
Brighton & Hove City Council,http://statistics.data.gov.uk/id/local-authority/00ML,Central Support and Overheads,BVACEN,Support Services (SSC),PPT,Third Party Payments,F,Other Establishments,FH,04/12/2015,PAY00821199,FINS,Financial Services,4700.8,Revenue,Beaumont NH Ltd
Brighton & Hove City Council,http://statistics.data.gov.uk/id/local-authority/00ML,Adult Social Care,BVASOC,ASC Physical Support,PHY,Customer n Client Receipts,M,Fees n Charges,MB,18/12/2015,PAY00825477,PHYS,Physical Support,-5190.92,Revenue,Beaumont NH Ltd
Brighton & Hove City Council,http://statistics.data.gov.uk/id/local-authority/00ML,Adult Social Care,BVASOC,ASC Physical Support,PHY,Third Party Payments,F,Other Establishments,FH,18/12/2015,PAY00825477,PHYS,Physical Support,18560.68,Revenue,Beaumont NH Ltd
Brighton & Hove City Council,http://statistics.data.gov.uk/id/local-authority/00ML,Children`s & Education Serv,BVAEDU,Ed EY PVI,ENP,Supplies and Services,E,Grants n Subscriptions,EK,16/12/2015,PAY00823596,EYRS,Early Years,6037,Revenue,BeCCA Pre-School Playgroup
Brighton & Hove City Council,http://statistics.data.gov.uk/id/local-authority/00ML,Children`s & Education Serv,BVAEDU,Ed EY PVI,ENP,Supplies and Services,E,Grants n Subscriptions,EK,18/12/2015,PAY00824647,EYRS,Early Years,2349,Revenue,BeCCA Pre-School Playgroup
Brighton & Hove City Council,http://statistics.data.gov.uk/id/local-authority/00ML,Adult Social Care,BVASOC,ASC Learning Disabilities,ALD,Customer n Client Receipts,M,Fees n Charges,MB,18/12/2015,PAY00824707,LDIS,Learning Disabilities,-670.4,Revenue,Beech Lodge
Brighton & Hove City Council,http://statistics.data.gov.uk/id/local-authority/00ML,Adult Social Care,BVASOC,ASC Learning Disabilities,ALD,Third Party Payments,F,Other Establishments,FH,18/12/2015,PAY00824707,LDIS,Learning Disabilities,10739.72,Revenue,Beech Lodge
Brighton & Hove City Council,http://statistics.data.gov.uk/id/local-authority/00ML,Adult Social Care,BVASOC,ASC Physical Support,PHY,Customer n Client Receipts,M,Fees n Charges,MB,18/12/2015,PAY00824707,PHYS,Physical Support,-337.6,Revenue,Beech Lodge
Brighton & Hove City Council,http://statistics.data.gov.uk/id/local-authority/00ML,Adult Social Care,BVASOC,ASC Physical Support,PHY,Third Party Payments,F,Other Establishments,FH,18/12/2015,PAY00824707,PHYS,Physical Support,6404.4,Revenue,Beech Lodge
Brighton & Hove City Council,http://statistics.data.gov.uk/id/local-authority/00ML,Adult Social Care,BVASOC,ASC Learning Disabilities,ALD,Supplies and Services,E,Equip't Furniture n Materials,EA,11/12/2015,PAY00823197,SUPE,Supported Employment,444,Revenue,Beeswift Ltd
Brighton & Hove City Council,http://statistics.data.gov.uk/id/local-authority/00ML,Adult Social Care,BVASOC,ASC Learning Disabilities,ALD,Supplies and Services,E,Equip't Furniture n Materials,EA,23/12/2015,PAY00826193,SUPE,Supported Employment,644.84,Revenue,Beeswift Ltd
Brighton & Hove City Council,http://statistics.data.gov.uk/id/local-authority/00ML,Adult Social Care,BVASOC,ASC Learning Disabilities,ALD,Supplies and Services,E,Equip't Furniture n Materials,EA,24/12/2015,PAY00827333,SUPE,Supported Employment,1478.7,Revenue,Beeswift Ltd
Brighton & Hove City Council,http://statistics.data.gov.uk/id/local-authority/00ML,Children`s & Education Serv,BVAEDU,Child Srvcs - Other Fam Supp,FFX,Transfer Payments,G,Other Transfer Payments,GD,09/12/2015,PAY00821622,FAMP,Families\Prevention,825,Revenue,Belvoir Lettings
Brighton & Hove City Council,http://statistics.data.gov.uk/id/local-authority/00ML,Highways and Transportation,BVAHRT,Parking Services,PRK,Supplies and Services,E,Print Stat & Gen Office Exps,ED,04/12/2015,PAY00820702,PARK,Parking,2385,Revenue,Bemrose Booth Paragon Ltd
Brighton & Hove City Council,http://statistics.data.gov.uk/id/local-authority/00ML,Cultural and Related Serv,BVACUL,Management Services (DEC),MGT,Supplies and Services,E,Clothing Uniforms n Laundry,EC,18/12/2015,PAY00824902,CIPK,City Parks,364.89,Revenue,Berendsen UK Ltd
Brighton & Hove City Council,http://statistics.data.gov.uk/id/local-authority/00ML,Environment & Regulatory Serv,BVAERS,Management Services (DEC),MGT,Supplies and Services,E,Clothing Uniforms n Laundry,EC,18/12/2015,PAY00824902,CICL,City Clean,282.29,Revenue,Berendsen UK Ltd
Brighton & Hove City Council,http://statistics.data.gov.uk/id/local-authority/00ML,Cultural and Related Serv,BVACUL,Recreation and Sport,REC,Premises Related,C,Repair Maint n Alterations,CA,24/12/2015,PAY00827289,SEAS,Seafront Services,480,Revenue,Best Demolition Limited
Brighton & Hove City Council,http://statistics.data.gov.uk/id/local-authority/00ML,Planning and Development,BVAPLA,Economic Development,ECD,Supplies and Services,E,Grants n Subscriptions,EK,02/12/2015,PAY00820036,CMNY,Communities and Equalities,500,Revenue,Better Breathing Singing Group
Brighton & Hove City Council,http://statistics.data.gov.uk/id/local-authority/00ML,Library Services,BVACUL,Library Service,LBR,Supplies and Services,E,Communications n Computing,EH,16/12/2015,PAY00823667,LIBS,Libraries,1650,Revenue,Bibliotheca Ltd
Brighton & Hove City Council,http://statistics.data.gov.uk/id/local-authority/00ML,Adult Social Care,BVASOC,ASC Physical Support,PHY,Supplies and Services,E,Catering,EB,02/12/2015,PAY00819759,RCOP,Resource Centres Older People,233.52,Revenue,Bidvest Foodservice
Brighton & Hove City Council,http://statistics.data.gov.uk/id/local-authority/00ML,Housing General Fund,BVAHOG,Homelessness,HML,Supplies and Services,E,Catering,EB,02/12/2015,PAY00819759,ASSA,Hostel Accommodation,140.63,Revenue,Bidvest Foodservice
Brighton & Hove City Council,http://statistics.data.gov.uk/id/local-authority/00ML,Adult Social Care,BVASOC,ASC Memory Cognition Support,MEM,Supplies and Services,E,Catering,EB,04/12/2015,PAY00820582,RCOP,Resource Centres Older People,343.67,Revenue,Bidvest Foodservice
Brighton & Hove City Council,http://statistics.data.gov.uk/id/local-authority/00ML,Housing General Fund,BVAHOG,Homelessness,HML,Supplies and Services,E,Catering,EB,04/12/2015,PAY00820582,ASSA,Hostel Accommodation,63.98,Revenue,Bidvest Foodservice
Brighton & Hove City Council,http://statistics.data.gov.uk/id/local-authority/00ML,Adult Social Care,BVASOC,ASC Memory Cognition Support,MEM,Supplies and Services,E,Catering,EB,09/12/2015,PAY00821501,RCOP,Resource Centres Older People,236.24,Revenue,Bidvest Foodservice
Brighton & Hove City Council,http://statistics.data.gov.uk/id/local-authority/00ML,Adult Social Care,BVASOC,ASC Physical Support,PHY,Supplies and Services,E,Catering,EB,09/12/2015,PAY00821501,RCOP,Resource Centres Older People,218.69,Revenue,Bidvest Foodservice
Brighton & Hove City Council,http://statistics.data.gov.uk/id/local-authority/00ML,Housing General Fund,BVAHOG,Homelessness,HML,Supplies and Services,E,Catering,EB,09/12/2015,PAY00821501,ASSA,Hostel Accommodation,379.61,Revenue,Bidvest Foodservice
Brighton & Hove City Council,http://statistics.data.gov.uk/id/local-authority/00ML,Adult Social Care,BVASOC,ASC Memory Cognition Support,MEM,Supplies and Services,E,Catering,EB,11/12/2015,PAY00822330,RCOP,Resource Centres Older People,113.26,Revenue,Bidvest Foodservice
Brighton & Hove City Council,http://statistics.data.gov.uk/id/local-authority/00ML,Adult Social Care,BVASOC,ASC Physical Support,PHY,Supplies and Services,E,Catering,EB,11/12/2015,PAY00822330,RCOP,Resource Centres Older People,198.22,Revenue,Bidvest Foodservice
Brighton & Hove City Council,http://statistics.data.gov.uk/id/local-authority/00ML,Adult Social Care,BVASOC,ASC Memory Cognition Support,MEM,Supplies and Services,E,Catering,EB,16/12/2015,PAY00823708,RCOP,Resource Centres Older People,237.48,Revenue,Bidvest Foodservice
Brighton & Hove City Council,http://statistics.data.gov.uk/id/local-authority/00ML,Adult Social Care,BVASOC,ASC Physical Support,PHY,Supplies and Services,E,Catering,EB,16/12/2015,PAY00823708,RCOP,Resource Centres Older People,315.05,Revenue,Bidvest Foodservice
Brighton & Hove City Council,http://statistics.data.gov.uk/id/local-authority/00ML,Housing General Fund,BVAHOG,Homelessness,HML,Premises Related,C,Cleaning n Domestic Supps,CH,16/12/2015,PAY00823708,ASSA,Hostel Accommodation,60.94,Revenue,Bidvest Foodservice
Brighton & Hove City Council,http://statistics.data.gov.uk/id/local-authority/00ML,Housing General Fund,BVAHOG,Homelessness,HML,Supplies and Services,E,Catering,EB,16/12/2015,PAY00823708,ASSA,Hostel Accommodation,225.09,Revenue,Bidvest Foodservice
Brighton & Hove City Council,http://statistics.data.gov.uk/id/local-authority/00ML,Adult Social Care,BVASOC,ASC Memory Cognition Support,MEM,Supplies and Services,E,Catering,EB,18/12/2015,PAY00824759,RCOP,Resource Centres Older People,340.77,Revenue,Bidvest Foodservice
Brighton & Hove City Council,http://statistics.data.gov.uk/id/local-authority/00ML,Adult Social Care,BVASOC,ASC Physical Support,PHY,Supplies and Services,E,Catering,EB,18/12/2015,PAY00824759,RCOP,Resource Centres Older People,231.38,Revenue,Bidvest Foodservice
Brighton & Hove City Council,http://statistics.data.gov.uk/id/local-authority/00ML,Adult Social Care,BVASOC,ASC Memory Cognition Support,MEM,Supplies and Services,E,Catering,EB,24/12/2015,PAY00826646,RCOP,Resource Centres Older People,646.25,Revenue,Bidvest Foodservice
Brighton & Hove City Council,http://statistics.data.gov.uk/id/local-authority/00ML,Adult Social Care,BVASOC,ASC Physical Support,PHY,Supplies and Services,E,Catering,EB,24/12/2015,PAY00826646,RCOP,Resource Centres Older People,637.64,Revenue,Bidvest Foodservice
Brighton & Hove City Council,http://statistics.data.gov.uk/id/local-authority/00ML,Housing General Fund,BVAHOG,Homelessness,HML,Supplies and Services,E,Catering,EB,24/12/2015,PAY00826646,ASSA,Hostel Accommodation,218.29,Revenue,Bidvest Foodservice
Brighton & Hove City Council,http://statistics.data.gov.uk/id/local-authority/00ML,Adult Social Care,BVASOC,ASC Memory Cognition Support,MEM,Supplies and Services,E,Catering,EB,31/12/2015,PAY00827750,RCOP,Resource Centres Older People,476.72,Revenue,Bidvest Foodservice
Brighton & Hove City Council,http://statistics.data.gov.uk/id/local-authority/00ML,Adult Social Care,BVASOC,ASC Physical Support,PHY,Supplies and Services,E,Catering,EB,31/12/2015,PAY00827750,RCOP,Resource Centres Older People,487.48,Revenue,Bidvest Foodservice
Brighton & Hove City Council,http://statistics.data.gov.uk/id/local-authority/00ML,Housing General Fund,BVAHOG,Homelessness,HML,Supplies and Services,E,Catering,EB,31/12/2015,PAY00827750,ASSA,Hostel Accommodation,464.23,Revenue,Bidvest Foodservice
Brighton & Hove City Council,http://statistics.data.gov.uk/id/local-authority/00ML,Cultural and Related Serv,BVACUL,Recreation and Sport,REC,Supplies and Services,E,Miscellaneous Expenses,EM,09/12/2015,PAY00821818,SDEV,Sports Development,3500,Revenue,Big Beach Screens Ltd
Brighton & Hove City Council,http://statistics.data.gov.uk/id/local-authority/00ML,Adult Social Care,BVASOC,ASC Mental Health Support,MHP,Third Party Payments,F,Other Establishments,FH,09/12/2015,PAY00821410,MENH,Mental Health Support,310.59,Revenue,Big Box Storage Co Ltd
Brighton & Hove City Council,http://statistics.data.gov.uk/id/local-authority/00ML,Adult Social Care,BVASOC,ASC Mental Health Support,MHP,Third Party Payments,F,Other Establishments,FH,16/12/2015,PAY00823587,MENH,Mental Health Support,828.43,Revenue,Big Box Storage Co Ltd
Brighton & Hove City Council,http://statistics.data.gov.uk/id/local-authority/00ML,Highways and Transportation,BVAHRT,Transport Plan Policy Strategy,TPP,Supplies and Services,E,Miscellaneous Expenses,EM,16/12/2015,PAY00823587,TPRS,Transport Plan and Road Safety,131.04,Revenue,Big Box Storage Co Ltd
Brighton & Hove City Council,http://statistics.data.gov.uk/id/local-authority/00ML,Highways and Transportation,BVAHRT,Transport Plan Policy Strategy,TPP,Supplies and Services,E,Services,EF,09/12/2015,PAY00821776,TPRS,Transport Plan and Road Safety,2500,Revenue,Bike for Life (South) CIC
Brighton & Hove City Council,http://statistics.data.gov.uk/id/local-authority/00ML,Adult Social Care,BVASOC,ASC Memory Cognition Support,MEM,Third Party Payments,F,Other Establishments,FH,04/12/2015,PAY00820556,COGN,Memory Cognition Support,362.74,Revenue,Birchgrove Healthcare (Sussex) Ltd
Brighton & Hove City Council,http://statistics.data.gov.uk/id/local-authority/00ML,Adult Social Care,BVASOC,ASC Physical Support,PHY,Third Party Payments,F,Other Establishments,FH,04/12/2015,PAY00820556,PHYS,Physical Support,686.05,Revenue,Birchgrove Healthcare (Sussex) Ltd
Brighton & Hove City Council,http://statistics.data.gov.uk/id/local-authority/00ML,Central Support and Overheads,BVACEN,Support Services (SSC),PPT,Third Party Payments,F,Other Establishments,FH,04/12/2015,PAY00820556,FINS,Financial Services,5982.72,Revenue,Birchgrove Healthcare (Sussex) Ltd
Brighton & Hove City Council,http://statistics.data.gov.uk/id/local-authority/00ML,Central Support and Overheads,BVACEN,Support Services (SSC),PPT,Third Party Payments,F,Other Establishments,FH,09/12/2015,PAY00821451,FINS,Financial Services,2072.26,Revenue,Birchgrove Healthcare (Sussex) Ltd
Brighton & Hove City Council,http://statistics.data.gov.uk/id/local-authority/00ML,Adult Social Care,BVASOC,ASC Physical Support,PHY,Customer n Client Receipts,M,Fees n Charges,MB,16/12/2015,PAY00823651,PHYS,Physical Support,190.43,Revenue,Birchgrove Healthcare (Sussex) Ltd
Brighton & Hove City Council,http://statistics.data.gov.uk/id/local-authority/00ML,Adult Social Care,BVASOC,ASC Physical Support,PHY,Third Party Payments,F,Other Establishments,FH,16/12/2015,PAY00823651,PHYS,Physical Support,-827.63,Revenue,Birchgrove Healthcare (Sussex) Ltd
Brighton & Hove City Council,http://statistics.data.gov.uk/id/local-authority/00ML,Central Support and Overheads,BVACEN,Support Services (SSC),PPT,Third Party Payments,F,Other Establishments,FH,16/12/2015,PAY00823651,FINS,Financial Services,1138.04,Revenue,Birchgrove Healthcare (Sussex) Ltd
Brighton & Hove City Council,http://statistics.data.gov.uk/id/local-authority/00ML,Adult Social Care,BVASOC,ASC Memory Cognition Support,MEM,Customer n Client Receipts,M,Fees n Charges,MB,18/12/2015,PAY00824702,COGN,Memory Cognition Support,-2979.08,Revenue,Birchgrove Healthcare (Sussex) Ltd
Brighton & Hove City Council,http://statistics.data.gov.uk/id/local-authority/00ML,Adult Social Care,BVASOC,ASC Memory Cognition Support,MEM,Third Party Payments,F,Other Establishments,FH,18/12/2015,PAY00824702,COGN,Memory Cognition Support,15035.68,Revenue,Birchgrove Healthcare (Sussex) Ltd
Brighton & Hove City Council,http://statistics.data.gov.uk/id/local-authority/00ML,Adult Social Care,BVASOC,ASC Physical Support,PHY,Customer n Client Receipts,M,Fees n Charges,MB,18/12/2015,PAY00824702,PHYS,Physical Support,-6089.08,Revenue,Birchgrove Healthcare (Sussex) Ltd
Brighton & Hove City Council,http://statistics.data.gov.uk/id/local-authority/00ML,Adult Social Care,BVASOC,ASC Physical Support,PHY,Third Party Payments,F,Other Establishments,FH,18/12/2015,PAY00824702,PHYS,Physical Support,28027.8,Revenue,Birchgrove Healthcare (Sussex) Ltd
Brighton & Hove City Council,http://statistics.data.gov.uk/id/local-authority/00ML,Housing General Fund,BVAHOG,Homelessness,HML,Supplies and Services,E,Miscellaneous Expenses,EM,31/12/2015,PAY00827906,TAAS,Temp Accom and Allocations,1450.8,Revenue,Bishop`s Move
Brighton & Hove City Council,http://statistics.data.gov.uk/id/local-authority/00ML,Adult Social Care,BVASOC,ASC Learning Disabilities,ALD,Premises Related,C,Energy Costs,CB,09/12/2015,PAY00821432,SUPE,Supported Employment,636.63,Revenue,Bizspace Ltd
Brighton & Hove City Council,http://statistics.data.gov.uk/id/local-authority/00ML,Adult Social Care,BVASOC,ASC Learning Disabilities,ALD,Premises Related,C,Rents Payable,CC,09/12/2015,PAY00821432,SUPE,Supported Employment,188,Revenue,Bizspace Ltd
Brighton & Hove City Council,http://statistics.data.gov.uk/id/local-authority/00ML,Central Support and Overheads,BVACEN,Support Services (SSC),PPT,Supplies and Services,E,Equip't Furniture n Materials,EA,16/12/2015,PAY00823648,COMU,Communications,747.55,Revenue,Blackburns Metals Ltd
Brighton & Hove City Council,http://statistics.data.gov.uk/id/local-authority/00ML,Adult Social Care,BVASOC,ASC Memory Cognition Support,MEM,Customer n Client Receipts,M,Fees n Charges,MB,09/12/2015,PAY00821738,COGN,Memory Cognition Support,-620.24,Revenue,Blatchington Court
Brighton & Hove City Council,http://statistics.data.gov.uk/id/local-authority/00ML,Adult Social Care,BVASOC,ASC Memory Cognition Support,MEM,Third Party Payments,F,Other Establishments,FH,09/12/2015,PAY00821738,COGN,Memory Cognition Support,1929.76,Revenue,Blatchington Court
Brighton & Hove City Council,http://statistics.data.gov.uk/id/local-authority/00ML,Adult Social Care,BVASOC,ASC Memory Cognition Support,MEM,Customer n Client Receipts,M,Fees n Charges,MB,23/12/2015,PAY00826067,COGN,Memory Cognition Support,-620.24,Revenue,Blatchington Court
Brighton & Hove City Council,http://statistics.data.gov.uk/id/local-authority/00ML,Adult Social Care,BVASOC,ASC Memory Cognition Support,MEM,Third Party Payments,F,Other Establishments,FH,23/12/2015,PAY00826067,COGN,Memory Cognition Support,1929.76,Revenue,Blatchington Court
Brighton & Hove City Council,http://statistics.data.gov.uk/id/local-authority/00ML,Housing Revenue Account,BVAHOU,Hsing Management - HRA,HGM,Supplies and Services,E,Services,EF,11/12/2015,PAY00822329,HPAI,Property & Investment,253,Revenue,BLB Surveyors Ltd
Brighton & Hove City Council,http://statistics.data.gov.uk/id/local-authority/00ML,Non I&E,BVANON,Cap - Housing Services - HRA,4HR,New Construction n Conversion,PB,New Construction n Conversion,PBL5,18/12/2015,PAY00824758,HREG,Head of Regeneration,3000,Capital,BLB Surveyors Ltd
Brighton & Hove City Council,http://statistics.data.gov.uk/id/local-authority/00ML,Non I&E,BVANON,Cap - Housing Services - HRA,4HR,New Construction n Conversion,PB,New Construction n Conversion,PBL5,31/12/2015,PAY00827748,HREG,Head of Regeneration,3000,Capital,BLB Surveyors Ltd
Brighton & Hove City Council,http://statistics.data.gov.uk/id/local-authority/00ML,Non I&E,BVANON,CAP Education Services,4ED,New Construction n Conversion,PB,New Construction n Conversion,PBL5,02/12/2015,PAY00820212,OEDS,Other Education Support,11400,Capital,Blenheim Roofing Service Ltd
Brighton & Hove City Council,http://statistics.data.gov.uk/id/local-authority/00ML,Central Support and Overheads,BVACEN,Support Services (SSC),PPT,Third Party Payments,F,Other Establishments,FH,04/12/2015,PAY00820516,FINS,Financial Services,1426.8,Revenue,Blind Veterans UK
Brighton & Hove City Council,http://statistics.data.gov.uk/id/local-authority/00ML,Cultural and Related Serv,BVACUL,Culture and Heritage,CHG,Supplies and Services,E,Services,EF,23/12/2015,PAY00826215,RPMU,Royal Pavilion and Museums,1000,Revenue,BlockBuilders Limited
Brighton & Hove City Council,http://statistics.data.gov.uk/id/local-authority/00ML,Non I&E,BVANON,CAP Education Services,4ED,New Construction n Conversion,PB,New Construction n Conversion,PBL5,02/12/2015,PAY00819668,OEDS,Other Education Support,5068,Capital,Blockbusters Contracts Ltd
Brighton & Hove City Council,http://statistics.data.gov.uk/id/local-authority/00ML,Cultural and Related Serv,BVACUL,Recreation and Sport,REC,Supplies and Services,E,Miscellaneous Expenses,EM,02/12/2015,PAY00820231,SDEV,Sports Development,750,Revenue,Blooming Health
Brighton & Hove City Council,http://statistics.data.gov.uk/id/local-authority/00ML,Environment & Regulatory Serv,BVAERS,Management Services (DEC),MGT,Supplies and Services,E,Communications n Computing,EH,18/12/2015,PAY00825334,CICL,City Clean,720,Revenue,Blue Crystal Solutions Ltd
Brighton & Hove City Council,http://statistics.data.gov.uk/id/local-authority/00ML,Public Health,BVAPHE,Public Health,PHE,Supplies and Services,E,Miscellaneous Expenses,EM,09/12/2015,PAY00821870,PHCM,PH Commissioning,265,Revenue,Blue Response Ltd
Brighton & Hove City Council,http://statistics.data.gov.uk/id/local-authority/00ML,Children`s & Education Serv,BVAEDU,Child Srvcs - Fostering,FLF,Third Party Payments,F,Other Establishments,FH,09/12/2015,PAY00821647,AVFM,Agency Placements\VFM,69123.09,Revenue,Blue Sky Fostering Limited
Brighton & Hove City Council,http://statistics.data.gov.uk/id/local-authority/00ML,Children`s & Education Serv,BVAEDU,Child Srvcs - Fostering,FLF,Third Party Payments,F,Other Establishments,FH,09/12/2015,PAY00821647,DISS,Disability Services,5880,Revenue,Blue Sky Fostering Limited
Brighton & Hove City Council,http://statistics.data.gov.uk/id/local-authority/00ML,Children`s & Education Serv,BVAEDU,Child Srvcs Leaving Care,FAL,Transfer Payments,G,Other Transfer Payments,GD,11/12/2015,PAY00822668,CHIC,Children In Care,5571.46,Revenue,Blue Sky Fostering Limited
Brighton & Hove City Council,http://statistics.data.gov.uk/id/local-authority/00ML,Children`s & Education Serv,BVAEDU,Child Srvcs - Fostering,FLF,Third Party Payments,F,Other Establishments,FH,31/12/2015,PAY00827933,AVFM,Agency Placements\VFM,71493.23,Revenue,Blue Sky Fostering Limited
Brighton & Hove City Council,http://statistics.data.gov.uk/id/local-authority/00ML,Children`s & Education Serv,BVAEDU,Child Srvcs - Fostering,FLF,Third Party Payments,F,Other Establishments,FH,31/12/2015,PAY00827933,DISS,Disability Services,5880,Revenue,Blue Sky Fostering Limited
Brighton & Hove City Council,http://statistics.data.gov.uk/id/local-authority/00ML,Cultural and Related Serv,BVACUL,Culture and Heritage,CHG,Supplies and Services,E,Goods for Resale,EG,16/12/2015,PAY00824230,RPMU,Royal Pavilion and Museums,960,Revenue,Blue Stevens
Brighton & Hove City Council,http://statistics.data.gov.uk/id/local-authority/00ML,Cultural and Related Serv,BVACUL,Culture and Heritage,CHG,Supplies and Services,E,Services,EF,23/12/2015,PAY00826317,RPMU,Royal Pavilion and Museums,650,Revenue,Blue Town Remembered
Brighton & Hove City Council,http://statistics.data.gov.uk/id/local-authority/00ML,Children`s & Education Serv,BVAEDU,Ed EY PVI,ENP,Supplies and Services,E,Grants n Subscriptions,EK,16/12/2015,PAY00823802,EYRS,Early Years,1275,Revenue,Blueberry Nursery & Early Learning Organisation Ld
Brighton & Hove City Council,http://statistics.data.gov.uk/id/local-authority/00ML,Children`s & Education Serv,BVAEDU,Ed EY PVI,ENP,Supplies and Services,E,Grants n Subscriptions,EK,18/12/2015,PAY00824978,EYRS,Early Years,32786,Revenue,Blueberry Nursery & Early Learning Organisation Ld
Brighton & Hove City Council,http://statistics.data.gov.uk/id/local-authority/00ML,Highways and Transportation,BVAHRT,Transport Plan Policy Strategy,TPP,Supplies and Services,E,Miscellaneous Expenses,EM,23/12/2015,PAY00826194,TPRS,Transport Plan and Road Safety,750,Revenue,BN1 Media
Brighton & Hove City Council,http://statistics.data.gov.uk/id/local-authority/00ML,Highways and Transportation,BVAHRT,Transport Plan Policy Strategy,TPP,Supplies and Services,E,Miscellaneous Expenses,EM,31/12/2015,PAY00828138,TPRS,Transport Plan and Road Safety,1000,Revenue,BN1 Media
Brighton & Hove City Council,http://statistics.data.gov.uk/id/local-authority/00ML,Housing General Fund,BVAHOG,Homelessness,HML,Supplies and Services,E,Services,EF,09/12/2015,PAY00821608,TAAS,Temp Accom and Allocations,6839,Revenue,BNK Jevington LLP
Brighton & Hove City Council,http://statistics.data.gov.uk/id/local-authority/00ML,Housing General Fund,BVAHOG,Homelessness,HML,Supplies and Services,E,Services,EF,23/12/2015,PAY00825929,TAAS,Temp Accom and Allocations,10074,Revenue,BNK Jevington LLP
Brighton & Hove City Council,http://statistics.data.gov.uk/id/local-authority/00ML,Children`s & Education Serv,BVAEDU,Ed Special Ed,EKE,Supplies and Services,E,Services,EF,24/12/2015,PAY00827376,SEN,SEN,4725,Revenue,Bob Wall & Co Limited
Brighton & Hove City Council,http://statistics.data.gov.uk/id/local-authority/00ML,Cultural and Related Serv,BVACUL,Culture and Heritage,CHG,Premises Related,C,Repair Maint n Alterations,CA,16/12/2015,PAY00823707,VENU,Venues,60.6,Revenue,BOC Ltd
Brighton & Hove City Council,http://statistics.data.gov.uk/id/local-authority/00ML,Environment & Regulatory Serv,BVAERS,Management Services (DEC),MGT,Transport Related,D,Direct Transport Costs,DA,16/12/2015,PAY00823707,CICL,City Clean,1326.45,Revenue,BOC Ltd
Brighton & Hove City Council,http://statistics.data.gov.uk/id/local-authority/00ML,Central Support and Overheads,BVACEN,Support Services (SSC),PPT,Third Party Payments,F,Other Establishments,FH,04/12/2015,PAY00821008,FINS,Financial Services,3274,Revenue,Bon Accord Care Home
Brighton & Hove City Council,http://statistics.data.gov.uk/id/local-authority/00ML,Central Support and Overheads,BVACEN,Support Services (SSC),PPT,Third Party Payments,F,Other Establishments,FH,11/12/2015,PAY00822914,FINS,Financial Services,3210.3,Revenue,Bon Accord Care Home
Brighton & Hove City Council,http://statistics.data.gov.uk/id/local-authority/00ML,Adult Social Care,BVASOC,ASC Memory Cognition Support,MEM,Customer n Client Receipts,M,Fees n Charges,MB,18/12/2015,PAY00825260,COGN,Memory Cognition Support,-8471.48,Revenue,Bon Accord Care Home
Brighton & Hove City Council,http://statistics.data.gov.uk/id/local-authority/00ML,Adult Social Care,BVASOC,ASC Memory Cognition Support,MEM,Third Party Payments,F,Other Establishments,FH,18/12/2015,PAY00825260,COGN,Memory Cognition Support,34152.48,Revenue,Bon Accord Care Home
Brighton & Hove City Council,http://statistics.data.gov.uk/id/local-authority/00ML,Cultural and Related Serv,BVACUL,Culture and Heritage,CHG,Supplies and Services,E,Goods for Resale,EG,18/12/2015,PAY00824630,RPMU,Royal Pavilion and Museums,377.87,Revenue,Bookspeed
Brighton & Hove City Council,http://statistics.data.gov.uk/id/local-authority/00ML,Cultural and Related Serv,BVACUL,Culture and Heritage,CHG,Supplies and Services,E,Goods for Resale,EG,23/12/2015,PAY00825748,RPMU,Royal Pavilion and Museums,904.11,Revenue,Bookspeed
Brighton & Hove City Council,http://statistics.data.gov.uk/id/local-authority/00ML,Children`s & Education Serv,BVAEDU,Ed EY PVI,ENP,Supplies and Services,E,Grants n Subscriptions,EK,16/12/2015,PAY00823605,EYRS,Early Years,3051,Revenue,Boomerang Kids
Brighton & Hove City Council,http://statistics.data.gov.uk/id/local-authority/00ML,Children`s & Education Serv,BVAEDU,Ed EY PVI,ENP,Supplies and Services,E,Grants n Subscriptions,EK,18/12/2015,PAY00824655,EYRS,Early Years,29624,Revenue,Boomerang Kids
Brighton & Hove City Council,http://statistics.data.gov.uk/id/local-authority/00ML,Children`s & Education Serv,BVAEDU,Child Srvcs - Other Fam Supp,FFX,Transfer Payments,G,Other Transfer Payments,GD,02/12/2015,PAY00820232,FAMP,Families\Prevention,219.1,Revenue,Bostico International
Brighton & Hove City Council,http://statistics.data.gov.uk/id/local-authority/00ML,Adult Social Care,BVASOC,ASC Learning Disabilities,ALD,Customer n Client Receipts,M,Fees n Charges,MB,18/12/2015,PAY00825103,LDIS,Learning Disabilities,-321.8,Revenue,Bradfield House
Brighton & Hove City Council,http://statistics.data.gov.uk/id/local-authority/00ML,Adult Social Care,BVASOC,ASC Learning Disabilities,ALD,Third Party Payments,F,Other Establishments,FH,18/12/2015,PAY00825103,LDIS,Learning Disabilities,12960,Revenue,Bradfield House
Brighton & Hove City Council,http://statistics.data.gov.uk/id/local-authority/00ML,Adult Social Care,BVASOC,ASC Learning Disabilities,ALD,Supplies and Services,E,Catering,EB,16/12/2015,PAY00823560,RESP,Respite Services,357.4,Revenue,Brakes Catering Equipment
Brighton & Hove City Council,http://statistics.data.gov.uk/id/local-authority/00ML,Non I&E,BVANON,CAP Education Services,4ED,New Construction n Conversion,PB,New Construction n Conversion,PBL5,02/12/2015,PAY00819824,OEDS,Other Education Support,52942.5,Capital,Bramber Construction Co Ltd
Brighton & Hove City Council,http://statistics.data.gov.uk/id/local-authority/00ML,Non I&E,BVANON,CAP Social Services,4RV,New Construction n Conversion,PB,New Construction n Conversion,PBL5,16/12/2015,PAY00823812,PROP,Property and Design,43284.22,Capital,Bramber Construction Co Ltd
Brighton & Hove City Council,http://statistics.data.gov.uk/id/local-authority/00ML,Adult Social Care,BVASOC,ASC Memory Cognition Support,MEM,Customer n Client Receipts,M,Fees n Charges,MB,18/12/2015,PAY00825363,COGN,Memory Cognition Support,-500.08,Revenue,Bramber Nursing Home
Brighton & Hove City Council,http://statistics.data.gov.uk/id/local-authority/00ML,Adult Social Care,BVASOC,ASC Memory Cognition Support,MEM,Third Party Payments,F,Other Establishments,FH,18/12/2015,PAY00825363,COGN,Memory Cognition Support,1936,Revenue,Bramber Nursing Home
Brighton & Hove City Council,http://statistics.data.gov.uk/id/local-authority/00ML,Adult Social Care,BVASOC,ASC Physical Support,PHY,Customer n Client Receipts,M,Fees n Charges,MB,18/12/2015,PAY00824690,PHYS,Physical Support,-2978.12,Revenue,Bramble Care Homes Ltd
Brighton & Hove City Council,http://statistics.data.gov.uk/id/local-authority/00ML,Adult Social Care,BVASOC,ASC Physical Support,PHY,Third Party Payments,F,Other Establishments,FH,18/12/2015,PAY00824690,PHYS,Physical Support,3940,Revenue,Bramble Care Homes Ltd
Brighton & Hove City Council,http://statistics.data.gov.uk/id/local-authority/00ML,Children`s & Education Serv,BVAEDU,Ed Special Ed,EKE,Third Party Payments,F,Other Agencies,FL,24/12/2015,PAY00827408,SEN,SEN,14574,Revenue,Brantridge School
Brighton & Hove City Council,http://statistics.data.gov.uk/id/local-authority/00ML,Adult Social Care,BVASOC,ASC Memory Cognition Support,MEM,Customer n Client Receipts,M,Fees n Charges,MB,18/12/2015,PAY00824962,COGN,Memory Cognition Support,-1057.11,Revenue,Bravery Care
Brighton & Hove City Council,http://statistics.data.gov.uk/id/local-authority/00ML,Adult Social Care,BVASOC,ASC Memory Cognition Support,MEM,Third Party Payments,F,Other Establishments,FH,18/12/2015,PAY00824962,COGN,Memory Cognition Support,11236.81,Revenue,Bravery Care
Brighton & Hove City Council,http://statistics.data.gov.uk/id/local-authority/00ML,Cultural and Related Serv,BVACUL,Culture and Heritage,CHG,Supplies and Services,E,Equip't Furniture n Materials,EA,24/12/2015,PAY00827465,RPMU,Royal Pavilion and Museums,2485,Revenue,Brian Turner Trimmings Ltd
Brighton & Hove City Council,http://statistics.data.gov.uk/id/local-authority/00ML,Cultural and Related Serv,BVACUL,Recreation and Sport,REC,Premises Related,C,Repair Maint n Alterations,CA,24/12/2015,PAY00827377,SEAS,Seafront Services,417.44,Revenue,Bricks 2 Mortar Ltd
Brighton & Hove City Council,http://statistics.data.gov.uk/id/local-authority/00ML,Children`s & Education Serv,BVAEDU,Child Srvcs - Fostering,FLF,Third Party Payments,F,Other Establishments,FH,09/12/2015,PAY00821642,AVFM,Agency Placements\VFM,25277.94,Revenue,Brighter Futures Foster Care Ltd
Brighton & Hove City Council,http://statistics.data.gov.uk/id/local-authority/00ML,Children`s & Education Serv,BVAEDU,Child Srvcs - Fostering,FLF,Third Party Payments,F,Other Establishments,FH,31/12/2015,PAY00827925,AVFM,Agency Placements\VFM,20582.22,Revenue,Brighter Futures Foster Care Ltd
Brighton & Hove City Council,http://statistics.data.gov.uk/id/local-authority/00ML,Children`s & Education Serv,BVAEDU,Ed EY PVI,ENP,Supplies and Services,E,Grants n Subscriptions,EK,16/12/2015,PAY00823830,EYRS,Early Years,2078,Revenue,Brighthelm Pre-School 
Brighton & Hove City Council,http://statistics.data.gov.uk/id/local-authority/00ML,Children`s & Education Serv,BVAEDU,Ed EY PVI,ENP,Supplies and Services,E,Grants n Subscriptions,EK,18/12/2015,PAY00825024,EYRS,Early Years,5772,Revenue,Brighthelm Pre-School 
Brighton & Hove City Council,http://statistics.data.gov.uk/id/local-authority/00ML,Children`s & Education Serv,BVAEDU,Ed EY Central,EAE,Supplies and Services,E,Miscellaneous Expenses,EM,04/12/2015,PAY00820584,EYRS,Early Years,306.75,Revenue,Brighthelm Trading Ltd
Brighton & Hove City Council,http://statistics.data.gov.uk/id/local-authority/00ML,Children`s & Education Serv,BVAEDU,Ed EY Central,EAE,Supplies and Services,E,Miscellaneous Expenses,EM,09/12/2015,PAY00821505,EYRS,Early Years,259,Revenue,Brighthelm Trading Ltd
Brighton & Hove City Council,http://statistics.data.gov.uk/id/local-authority/00ML,Central Support and Overheads,BVACEN,Support Services (SSC),PPT,Indirect Employees,B,Training,BM,18/12/2015,PAY00824764,ORGD,Organisational Development,188,Revenue,Brighthelm Trading Ltd
Brighton & Hove City Council,http://statistics.data.gov.uk/id/local-authority/00ML,Children`s & Education Serv,BVAEDU,Ed Mgmt and Support Services,EMG,Premises Related,C,Rents Payable,CC,18/12/2015,PAY00824764,SACH,Standards and Achievement,329,Revenue,Brighthelm Trading Ltd
Brighton & Hove City Council,http://statistics.data.gov.uk/id/local-authority/00ML,Housing General Fund,BVAHOG,Homelessness,HML,Supplies and Services,E,Expenses,EJ,18/12/2015,PAY00824764,ASSA,Hostel Accommodation,794,Revenue,Brighthelm Trading Ltd
Brighton & Hove City Council,http://statistics.data.gov.uk/id/local-authority/00ML,Central Support and Overheads,BVACEN,Support Services (SSC),PPT,Premises Related,C,Rents Payable,CC,23/12/2015,PAY00825847,PROP,Property and Design,392.4,Revenue,Brighthelm Trading Ltd
Brighton & Hove City Council,http://statistics.data.gov.uk/id/local-authority/00ML,Cultural and Related Serv,BVACUL,Open Spaces,PEN,Supplies and Services,E,Grants n Subscriptions,EK,18/12/2015,PAY00824724,CIPK,City Parks,770,Revenue,Brighton & Hove Allotment Federation
Brighton & Hove City Council,http://statistics.data.gov.uk/id/local-authority/00ML,Adult Social Care,BVASOC,ASC Physical Support,PHY,Customer n Client Receipts,M,Fees n Charges,MB,18/12/2015,PAY00824568,PHYS,Physical Support,-2801.56,Revenue,Brighton & Hove Bethesda Home
Brighton & Hove City Council,http://statistics.data.gov.uk/id/local-authority/00ML,Adult Social Care,BVASOC,ASC Physical Support,PHY,Third Party Payments,F,Other Establishments,FH,18/12/2015,PAY00824568,PHYS,Physical Support,6089.64,Revenue,Brighton & Hove Bethesda Home
Brighton & Hove City Council,http://statistics.data.gov.uk/id/local-authority/00ML,Adult Social Care,BVASOC,Social Care Activities,ACM,Transport Related,D,Public Transport,DD,02/12/2015,PAY00819834,ASIT,Assessment and SIT,175,Revenue,Brighton & Hove Bus and Coach Co Ltd
Brighton & Hove City Council,http://statistics.data.gov.uk/id/local-authority/00ML,Children`s & Education Serv,BVAEDU,Child Srvcs - Other Fam Supp,FFX,Transfer Payments,G,Other Transfer Payments,GD,02/12/2015,PAY00819834,FAMP,Families\Prevention,608.8,Revenue,Brighton & Hove Bus and Coach Co Ltd
Brighton & Hove City Council,http://statistics.data.gov.uk/id/local-authority/00ML,Children`s & Education Serv,BVAEDU,Ed Ed Other LA Attrib Sch,ELA,Transport Related,D,Public Transport,DD,02/12/2015,PAY00819834,OEDS,Other Education Support,1138.72,Revenue,Brighton & Hove Bus and Coach Co Ltd
Brighton & Hove City Council,http://statistics.data.gov.uk/id/local-authority/00ML,Environment & Regulatory Serv,BVAERS,Environmental Health,EVH,Transport Related,D,Contract Hire n Operating Leas,DB,02/12/2015,PAY00819834,PUPO,Public Protection,1379.29,Revenue,Brighton & Hove Bus and Coach Co Ltd
Brighton & Hove City Council,http://statistics.data.gov.uk/id/local-authority/00ML,Environment & Regulatory Serv,BVAERS,Management Services (DEC),MGT,Premises Related,C,Rents Payable,CC,02/12/2015,PAY00819834,CICL,City Clean,12000,Revenue,Brighton & Hove Bus and Coach Co Ltd
Brighton & Hove City Council,http://statistics.data.gov.uk/id/local-authority/00ML,Housing Revenue Account,BVAHOU,Hsing Management - HRA,HGM,Transport Related,D,Public Transport,DD,02/12/2015,PAY00819834,HIII,Income Involvement Improvement,884,Revenue,Brighton & Hove Bus and Coach Co Ltd
Brighton & Hove City Council,http://statistics.data.gov.uk/id/local-authority/00ML,Adult Social Care,BVASOC,ASC Learning Disabilities,ALD,Transport Related,D,Public Transport,DD,04/12/2015,PAY00820804,HOME,Home Care,221,Revenue,Brighton & Hove Bus and Coach Co Ltd
Brighton & Hove City Council,http://statistics.data.gov.uk/id/local-authority/00ML,Children`s & Education Serv,BVAEDU,Child Srvcs - Other Fam Supp,FFX,Transport Related,D,Public Transport,DD,04/12/2015,PAY00820804,SFSC,Stronger Families Stronger Com,884,Revenue,Brighton & Hove Bus and Coach Co Ltd
Brighton & Hove City Council,http://statistics.data.gov.uk/id/local-authority/00ML,Children`s & Education Serv,BVAEDU,Ed EY Central,EAE,Supplies and Services,E,Print Stat & Gen Office Exps,ED,04/12/2015,PAY00820804,EYRS,Early Years,221,Revenue,Brighton & Hove Bus and Coach Co Ltd
Brighton & Hove City Council,http://statistics.data.gov.uk/id/local-authority/00ML,Highways and Transportation,BVAHRT,Public Transport,PTR,Third Party Payments,F,Private Contractors,FJ,04/12/2015,PAY00820804,TPRS,Transport Plan and Road Safety,40666.43,Revenue,Brighton & Hove Bus and Coach Co Ltd
Brighton & Hove City Council,http://statistics.data.gov.uk/id/local-authority/00ML,Children`s & Education Serv,BVAEDU,Child Srvcs - Fostering,FLF,Third Party Payments,F,Other Establishments,FH,09/12/2015,PAY00821563,CHIC,Children In Care,370.7,Revenue,Brighton & Hove Bus and Coach Co Ltd
Brighton & Hove City Council,http://statistics.data.gov.uk/id/local-authority/00ML,Children`s & Education Serv,BVAEDU,Child Srvcs - Other Fam Supp,FFX,Transfer Payments,G,Other Transfer Payments,GD,11/12/2015,PAY00822494,FAMP,Families\Prevention,536.3,Revenue,Brighton & Hove Bus and Coach Co Ltd
Brighton & Hove City Council,http://statistics.data.gov.uk/id/local-authority/00ML,Children`s & Education Serv,BVAEDU,Ed Ed Other LA Attrib Sch,ELA,Transport Related,D,Public Transport,DD,11/12/2015,PAY00822494,OEDS,Other Education Support,41.86,Revenue,Brighton & Hove Bus and Coach Co Ltd
Brighton & Hove City Council,http://statistics.data.gov.uk/id/local-authority/00ML,Environment & Regulatory Serv,BVAERS,Environmental Health,EVH,Transport Related,D,Public Transport,DD,11/12/2015,PAY00822494,PUPO,Public Protection,265.2,Revenue,Brighton & Hove Bus and Coach Co Ltd
Brighton & Hove City Council,http://statistics.data.gov.uk/id/local-authority/00ML,Adult Social Care,BVASOC,Social Care Activities,ACM,Transport Related,D,Public Transport,DD,16/12/2015,PAY00823823,SPFT,S75 SPFT,715,Revenue,Brighton & Hove Bus and Coach Co Ltd
Brighton & Hove City Council,http://statistics.data.gov.uk/id/local-authority/00ML,Children`s & Education Serv,BVAEDU,Child Srvcs Com and Scl Work,FCW,Transport Related,D,Public Transport,DD,16/12/2015,PAY00823823,DISS,Disability Services,432,Revenue,Brighton & Hove Bus and Coach Co Ltd
Brighton & Hove City Council,http://statistics.data.gov.uk/id/local-authority/00ML,Children`s & Education Serv,BVAEDU,Child Srvcs - Other Fam Supp,FFX,Transfer Payments,G,Other Transfer Payments,GD,16/12/2015,PAY00823823,FAMP,Families\Prevention,941,Revenue,Brighton & Hove Bus and Coach Co Ltd
Brighton & Hove City Council,http://statistics.data.gov.uk/id/local-authority/00ML,Children`s & Education Serv,BVAEDU,Ed Ed Other LA Attrib Sch,ELA,Transport Related,D,Public Transport,DD,16/12/2015,PAY00823823,OEDS,Other Education Support,6236.95,Revenue,Brighton & Hove Bus and Coach Co Ltd
Brighton & Hove City Council,http://statistics.data.gov.uk/id/local-authority/00ML,Highways and Transportation,BVAHRT,Public Transport,PTR,Third Party Payments,F,Private Contractors,FJ,16/12/2015,PAY00823823,TPRS,Transport Plan and Road Safety,25161.72,Revenue,Brighton & Hove Bus and Coach Co Ltd
Brighton & Hove City Council,http://statistics.data.gov.uk/id/local-authority/00ML,Highways and Transportation,BVAHRT,Transport Plan Policy Strategy,TPP,Third Party Payments,F,Private Contractors,FJ,16/12/2015,PAY00823823,TPRS,Transport Plan and Road Safety,19590.25,Revenue,Brighton & Hove Bus and Coach Co Ltd
Brighton & Hove City Council,http://statistics.data.gov.uk/id/local-authority/00ML,Adult Social Care,BVASOC,Social Care Activities,ACM,Transport Related,D,Public Transport,DD,18/12/2015,PAY00825009,ASIT,Assessment and SIT,594,Revenue,Brighton & Hove Bus and Coach Co Ltd
Brighton & Hove City Council,http://statistics.data.gov.uk/id/local-authority/00ML,Children`s & Education Serv,BVAEDU,Child Srvcs Other,FAX,Supplies and Services,E,Miscellaneous Expenses,EM,18/12/2015,PAY00825009,YOTS,Youth Service,198.9,Revenue,Brighton & Hove Bus and Coach Co Ltd
Brighton & Hove City Council,http://statistics.data.gov.uk/id/local-authority/00ML,Children`s & Education Serv,BVAEDU,Ed Srvcs YP Youth Srvcs,ENY,Transport Related,D,Public Transport,DD,18/12/2015,PAY00825009,YOTS,Youth Service,574.6,Revenue,Brighton & Hove Bus and Coach Co Ltd
Brighton & Hove City Council,http://statistics.data.gov.uk/id/local-authority/00ML,Environment & Regulatory Serv,BVAERS,Environmental Health,EVH,Transport Related,D,Contract Hire n Operating Leas,DB,18/12/2015,PAY00825009,PUPO,Public Protection,538,Revenue,Brighton & Hove Bus and Coach Co Ltd
Brighton & Hove City Council,http://statistics.data.gov.uk/id/local-authority/00ML,Housing General Fund,BVAHOG,Homelessness,HML,Transport Related,D,Contract Hire n Operating Leas,DB,18/12/2015,PAY00825009,TRAV,Travellers,253.71,Revenue,Brighton & Hove Bus and Coach Co Ltd
Brighton & Hove City Council,http://statistics.data.gov.uk/id/local-authority/00ML,Children`s & Education Serv,BVAEDU,Child Srvcs - Fostering,FLF,Transport Related,D,Public Transport,DD,23/12/2015,PAY00825903,CHIC,Children In Care,221,Revenue,Brighton & Hove Bus and Coach Co Ltd
Brighton & Hove City Council,http://statistics.data.gov.uk/id/local-authority/00ML,Children`s & Education Serv,BVAEDU,Child Srvcs Leaving Care,FAL,Transfer Payments,G,Other Transfer Payments,GD,23/12/2015,PAY00825903,CHIC,Children In Care,3514.5,Revenue,Brighton & Hove Bus and Coach Co Ltd
Brighton & Hove City Council,http://statistics.data.gov.uk/id/local-authority/00ML,Children`s & Education Serv,BVAEDU,Child Srvcs Other,FAX,Transport Related,D,Public Transport,DD,23/12/2015,PAY00825903,FAMP,Families\Prevention,190.06,Revenue,Brighton & Hove Bus and Coach Co Ltd
Brighton & Hove City Council,http://statistics.data.gov.uk/id/local-authority/00ML,Children`s & Education Serv,BVAEDU,Child Srvcs - Other Fam Supp,FFX,Transfer Payments,G,Other Transfer Payments,GD,23/12/2015,PAY00825903,FAMP,Families\Prevention,542.5,Revenue,Brighton & Hove Bus and Coach Co Ltd
Brighton & Hove City Council,http://statistics.data.gov.uk/id/local-authority/00ML,Children`s & Education Serv,BVAEDU,Ed Srvcs YP Youth Srvcs,ENY,Transport Related,D,Public Transport,DD,23/12/2015,PAY00825903,YOTS,Youth Service,221,Revenue,Brighton & Hove Bus and Coach Co Ltd
Brighton & Hove City Council,http://statistics.data.gov.uk/id/local-authority/00ML,Adult Social Care,BVASOC,ASC Learning Disabilities,ALD,Transport Related,D,Public Transport,DD,24/12/2015,PAY00826849,HOME,Home Care,221,Revenue,Brighton & Hove Bus and Coach Co Ltd
Brighton & Hove City Council,http://statistics.data.gov.uk/id/local-authority/00ML,Children`s & Education Serv,BVAEDU,Child Srvcs - Fostering,FLF,Third Party Payments,F,Other Establishments,FH,24/12/2015,PAY00826849,CHIC,Children In Care,720,Revenue,Brighton & Hove Bus and Coach Co Ltd
Brighton & Hove City Council,http://statistics.data.gov.uk/id/local-authority/00ML,Children`s & Education Serv,BVAEDU,Child Srvcs - Other Fam Supp,FFX,Transfer Payments,G,Other Transfer Payments,GD,24/12/2015,PAY00826849,FAMP,Families\Prevention,442,Revenue,Brighton & Hove Bus and Coach Co Ltd
Brighton & Hove City Council,http://statistics.data.gov.uk/id/local-authority/00ML,Environment & Regulatory Serv,BVAERS,Environmental Health,EVH,Transport Related,D,Contract Hire n Operating Leas,DB,24/12/2015,PAY00826849,PUPO,Public Protection,247.06,Revenue,Brighton & Hove Bus and Coach Co Ltd
Brighton & Hove City Council,http://statistics.data.gov.uk/id/local-authority/00ML,Highways and Transportation,BVAHRT,Public Transport,PTR,Transport Related,D,Public Transport,DD,24/12/2015,PAY00826849,CONF,Concessionary Fares,790942,Revenue,Brighton & Hove Bus and Coach Co Ltd
Brighton & Hove City Council,http://statistics.data.gov.uk/id/local-authority/00ML,Children`s & Education Serv,BVAEDU,Child Srvcs - Fostering,FLF,Third Party Payments,F,Other Establishments,FH,31/12/2015,PAY00827864,CHIC,Children In Care,1255.4,Revenue,Brighton & Hove Bus and Coach Co Ltd
Brighton & Hove City Council,http://statistics.data.gov.uk/id/local-authority/00ML,Children`s & Education Serv,BVAEDU,Child Srvcs - Other Fam Supp,FFX,Transfer Payments,G,Other Transfer Payments,GD,31/12/2015,PAY00827864,FAMP,Families\Prevention,720,Revenue,Brighton & Hove Bus and Coach Co Ltd
Brighton & Hove City Council,http://statistics.data.gov.uk/id/local-authority/00ML,Children`s & Education Serv,BVAEDU,Ed Ed Other LA Attrib Sch,ELA,Transport Related,D,Public Transport,DD,31/12/2015,PAY00827864,OEDS,Other Education Support,-172.67,Revenue,Brighton & Hove Bus and Coach Co Ltd
Brighton & Hove City Council,http://statistics.data.gov.uk/id/local-authority/00ML,Environment & Regulatory Serv,BVAERS,Environmental Health,EVH,Transport Related,D,Contract Hire n Operating Leas,DB,31/12/2015,PAY00827864,PUPO,Public Protection,1844.66,Revenue,Brighton & Hove Bus and Coach Co Ltd
Brighton & Hove City Council,http://statistics.data.gov.uk/id/local-authority/00ML,Planning and Development,BVAPLA,Economic Development,ECD,Supplies and Services,E,Miscellaneous Expenses,EM,11/12/2015,PAY00822232,ECOD,Economic Development,1500,Revenue,Brighton & Hove Business Forum Ltd
Brighton & Hove City Council,http://statistics.data.gov.uk/id/local-authority/00ML,Adult Social Care,BVASOC,ASC Learning Disabilities,ALD,Supplies and Services,E,Miscellaneous Expenses,EM,16/12/2015,PAY00823831,SUPE,Supported Employment,450,Revenue,Brighton & Hove Chamber of Commerce
Brighton & Hove City Council,http://statistics.data.gov.uk/id/local-authority/00ML,Planning and Development,BVAPLA,Community Development,CDV,Government Grants,K,Specific Grants,KB,16/12/2015,PAY00823712,CMNY,Communities and Equalities,6250,Revenue,Brighton & Hove Citizens Advice Bureau
Brighton & Hove City Council,http://statistics.data.gov.uk/id/local-authority/00ML,Planning and Development,BVAPLA,Community Development,CDV,Supplies and Services,E,Miscellaneous Expenses,EM,16/12/2015,PAY00823712,CMNY,Communities and Equalities,44375,Revenue,Brighton & Hove Citizens Advice Bureau
Brighton & Hove City Council,http://statistics.data.gov.uk/id/local-authority/00ML,Planning and Development,BVAPLA,Economic Development,ECD,Supplies and Services,E,Grants n Subscriptions,EK,31/12/2015,PAY00827753,CMNY,Communities and Equalities,25000,Revenue,Brighton & Hove Citizens Advice Bureau
Brighton & Hove City Council,http://statistics.data.gov.uk/id/local-authority/00ML,Children`s & Education Serv,BVAEDU,Ed Secondary Ed,EJE,Supplies and Services,E,Services,EF,09/12/2015,PAY00821435,OEDS,Other Education Support,257862.65,Revenue,Brighton & Hove City Schools Services Ltd
Brighton & Hove City Council,http://statistics.data.gov.uk/id/local-authority/00ML,Cultural and Related Serv,BVACUL,Management Services (DEC),MGT,Supplies and Services,E,Services,EF,18/12/2015,PAY00824623,CIPK,City Parks,500,Revenue,Brighton & Hove Community Works
Brighton & Hove City Council,http://statistics.data.gov.uk/id/local-authority/00ML,Planning and Development,BVAPLA,Economic Development,ECD,Supplies and Services,E,Grants n Subscriptions,EK,31/12/2015,PAY00827613,CMNY,Communities and Equalities,15000,Revenue,Brighton & Hove Community Works
Brighton & Hove City Council,http://statistics.data.gov.uk/id/local-authority/00ML,Planning and Development,BVAPLA,Economic Development,ECD,Supplies and Services,E,Grants n Subscriptions,EK,31/12/2015,PAY00827869,CMNY,Communities and Equalities,3000,Revenue,Brighton & Hove FareShare
Brighton & Hove City Council,http://statistics.data.gov.uk/id/local-authority/00ML,Adult Social Care,BVASOC,Info & Early Intervention,PRV,Third Party Payments,F,Other Establishments,FH,24/12/2015,PAY00826652,CONT,Contracts,24256.5,Revenue,Brighton & Hove Federation of Disabled People 
Brighton & Hove City Council,http://statistics.data.gov.uk/id/local-authority/00ML,Environment & Regulatory Serv,BVAERS,Waste Management,WMT,Third Party Payments,F,Private Contractors,FJ,31/12/2015,PAY00827907,CICL,City Clean,635.46,Revenue,Brighton & Hove Food Partnership
Brighton & Hove City Council,http://statistics.data.gov.uk/id/local-authority/00ML,Planning and Development,BVAPLA,Economic Development,ECD,Supplies and Services,E,Grants n Subscriptions,EK,31/12/2015,PAY00827907,CMNY,Communities and Equalities,1250,Revenue,Brighton & Hove Food Partnership
Brighton & Hove City Council,http://statistics.data.gov.uk/id/local-authority/00ML,Public Health,BVAPHE,Public Health,PHE,Third Party Payments,F,Voluntary Associations,FG,31/12/2015,PAY00827907,PHCM,PH Commissioning,131722.5,Revenue,Brighton & Hove Food Partnership
Brighton & Hove City Council,http://statistics.data.gov.uk/id/local-authority/00ML,Children`s & Education Serv,BVAEDU,Ed EY PVI,ENP,Supplies and Services,E,Grants n Subscriptions,EK,18/12/2015,PAY00824599,EYRS,Early Years,16552,Revenue,Brighton & Hove High School
Brighton & Hove City Council,http://statistics.data.gov.uk/id/local-authority/00ML,Planning and Development,BVAPLA,Economic Development,ECD,Supplies and Services,E,Grants n Subscriptions,EK,31/12/2015,PAY00827614,CMNY,Communities and Equalities,6250,Revenue,Brighton & Hove Impetus Ltd
Brighton & Hove City Council,http://statistics.data.gov.uk/id/local-authority/00ML,Housing General Fund,BVAHOG,Hsing Welfare,HGW,Transfer Payments,G,Supporting People,GF,02/12/2015,PAY00819636,AHRS,Housing Related Support,10473.08,Revenue,Brighton & Hove Mencap
Brighton & Hove City Council,http://statistics.data.gov.uk/id/local-authority/00ML,Housing General Fund,BVAHOG,Hsing Welfare,HGW,Transfer Payments,G,Supporting People,GF,24/12/2015,PAY00826508,AHRS,Housing Related Support,10473.08,Revenue,Brighton & Hove Mencap
Brighton & Hove City Council,http://statistics.data.gov.uk/id/local-authority/00ML,Children`s & Education Serv,BVAEDU,Ed Special Ed,EKE,Third Party Payments,F,Other Agencies,FL,16/12/2015,PAY00823534,SEN,SEN,2326,Revenue,Brighton & Hove Montessori School
Brighton & Hove City Council,http://statistics.data.gov.uk/id/local-authority/00ML,Children`s & Education Serv,BVAEDU,Ed EY PVI,ENP,Supplies and Services,E,Grants n Subscriptions,EK,18/12/2015,PAY00824584,EYRS,Early Years,4844,Revenue,Brighton & Hove Montessori School
Brighton & Hove City Council,http://statistics.data.gov.uk/id/local-authority/00ML,Planning and Development,BVAPLA,Economic Development,ECD,Supplies and Services,E,Grants n Subscriptions,EK,31/12/2015,PAY00827867,CMNY,Communities and Equalities,2500,Revenue,Brighton & Hove Organic Gardening Group
Brighton & Hove City Council,http://statistics.data.gov.uk/id/local-authority/00ML,Children`s & Education Serv,BVAEDU,Ed Ed Other LA Attrib Sch,ELA,Transport Related,D,Public Transport,DD,02/12/2015,PAY00819832,OEDS,Other Education Support,1886.2,Revenue,Brighton & Hove Radio Cabs Ltd
Brighton & Hove City Council,http://statistics.data.gov.uk/id/local-authority/00ML,Children`s & Education Serv,BVAEDU,Support Services (SSC),PPT,Transport Related,D,Public Transport,DD,02/12/2015,PAY00819832,OEDS,Other Education Support,4266,Revenue,Brighton & Hove Radio Cabs Ltd
Brighton & Hove City Council,http://statistics.data.gov.uk/id/local-authority/00ML,Children`s & Education Serv,BVAEDU,Ed Ed Other LA Attrib Sch,ELA,Transport Related,D,Other Transport Costs,DG,16/12/2015,PAY00823821,OEDS,Other Education Support,6194.4,Revenue,Brighton & Hove Radio Cabs Ltd
Brighton & Hove City Council,http://statistics.data.gov.uk/id/local-authority/00ML,Children`s & Education Serv,BVAEDU,Ed Ed Other LA Attrib Sch,ELA,Transport Related,D,Public Transport,DD,16/12/2015,PAY00823821,OEDS,Other Education Support,3985.1,Revenue,Brighton & Hove Radio Cabs Ltd
Brighton & Hove City Council,http://statistics.data.gov.uk/id/local-authority/00ML,Children`s & Education Serv,BVAEDU,Support Services (SSC),PPT,Transport Related,D,Public Transport,DD,16/12/2015,PAY00823821,OEDS,Other Education Support,3421.4,Revenue,Brighton & Hove Radio Cabs Ltd
Brighton & Hove City Council,http://statistics.data.gov.uk/id/local-authority/00ML,Cultural and Related Serv,BVACUL,Culture and Heritage,CHG,Transport Related,D,Public Transport,DD,16/12/2015,PAY00823821,VENU,Venues,580.77,Revenue,Brighton & Hove Radio Cabs Ltd
Brighton & Hove City Council,http://statistics.data.gov.uk/id/local-authority/00ML,Children`s & Education Serv,BVAEDU,Child Srvcs - Fostering,FLF,Third Party Payments,F,Other Establishments,FH,31/12/2015,PAY00827862,CHIC,Children In Care,118,Revenue,Brighton & Hove Radio Cabs Ltd
Brighton & Hove City Council,http://statistics.data.gov.uk/id/local-authority/00ML,Children`s & Education Serv,BVAEDU,Support Services (SSC),PPT,Transport Related,D,Public Transport,DD,31/12/2015,PAY00827862,OEDS,Other Education Support,3031.8,Revenue,Brighton & Hove Radio Cabs Ltd
Brighton & Hove City Council,http://statistics.data.gov.uk/id/local-authority/00ML,Highways and Transportation,BVAHRT,Public Transport,PTR,Transport Related,D,Public Transport,DD,31/12/2015,PAY00827862,CONF,Concessionary Fares,354,Revenue,Brighton & Hove Radio Cabs Ltd
Brighton & Hove City Council,http://statistics.data.gov.uk/id/local-authority/00ML,Housing Revenue Account,BVAHOU,Hsing Management - HRA,HGM,Supplies and Services,E,Grants n Subscriptions,EK,09/12/2015,PAY00821500,HIII,Income Involvement Improvement,8859.06,Revenue,Brighton & Hove Social Welfare Educational Trust
Brighton & Hove City Council,http://statistics.data.gov.uk/id/local-authority/00ML,Planning and Development,BVAPLA,Economic Development,ECD,Supplies and Services,E,Grants n Subscriptions,EK,31/12/2015,PAY00827747,CMNY,Communities and Equalities,22500,Revenue,Brighton & Hove Social Welfare Educational Trust
Brighton & Hove City Council,http://statistics.data.gov.uk/id/local-authority/00ML,Adult Social Care,BVASOC,Info & Early Intervention,PRV,Third Party Payments,F,Other Establishments,FH,23/12/2015,PAY00825752,CONT,Contracts,20000,Revenue,Brighton & Hove Speak Out
Brighton & Hove City Council,http://statistics.data.gov.uk/id/local-authority/00ML,Adult Social Care,BVASOC,Commission & Service Delivery,CMM,Transport Related,D,Public Transport,DD,18/12/2015,PAY00824760,COMM,Commissioning,14.3,Revenue,Brighton & Hove Streamline Taxis Ltd
Brighton & Hove City Council,http://statistics.data.gov.uk/id/local-authority/00ML,Central Support and Overheads,BVACEN,Support Services (SSC),PPT,Transport Related,D,Public Transport,DD,18/12/2015,PAY00824760,DEMO,Democratic Services,176.44,Revenue,Brighton & Hove Streamline Taxis Ltd
Brighton & Hove City Council,http://statistics.data.gov.uk/id/local-authority/00ML,Central Support and Overheads,BVACEN,Support Services (SSC),PPT,Transport Related,D,Public Transport,DD,18/12/2015,PAY00824760,POLY,Policy,35.42,Revenue,Brighton & Hove Streamline Taxis Ltd
Brighton & Hove City Council,http://statistics.data.gov.uk/id/local-authority/00ML,Children`s & Education Serv,BVAEDU,Ed EY Central,EAE,Transport Related,D,Public Transport,DD,18/12/2015,PAY00824760,EYRS,Early Years,321.64,Revenue,Brighton & Hove Streamline Taxis Ltd
Brighton & Hove City Council,http://statistics.data.gov.uk/id/local-authority/00ML,Highways and Transportation,BVAHRT,Parking Services,PRK,Transport Related,D,Public Transport,DD,18/12/2015,PAY00824760,PARK,Parking,64.2,Revenue,Brighton & Hove Streamline Taxis Ltd
Brighton & Hove City Council,http://statistics.data.gov.uk/id/local-authority/00ML,Central Support and Overheads,BVACEN,Support Services (SSC),PPT,Transport Related,D,Public Transport,DD,23/12/2015,PAY00825845,COMU,Communications,31.35,Revenue,Brighton & Hove Streamline Taxis Ltd
Brighton & Hove City Council,http://statistics.data.gov.uk/id/local-authority/00ML,Central Support and Overheads,BVACEN,Support Services (SSC),PPT,Transport Related,D,Public Transport,DD,23/12/2015,PAY00825845,ICTA,ICT,10.56,Revenue,Brighton & Hove Streamline Taxis Ltd
Brighton & Hove City Council,http://statistics.data.gov.uk/id/local-authority/00ML,Cultural and Related Serv,BVACUL,Management Services (DEC),MGT,Transport Related,D,Public Transport,DD,23/12/2015,PAY00825845,RPMU,Royal Pavilion and Museums,222.2,Revenue,Brighton & Hove Streamline Taxis Ltd
Brighton & Hove City Council,http://statistics.data.gov.uk/id/local-authority/00ML,Library Services,BVACUL,Library Service,LBR,Transport Related,D,Public Transport,DD,23/12/2015,PAY00825845,LIBS,Libraries,12.32,Revenue,Brighton & Hove Streamline Taxis Ltd
Brighton & Hove City Council,http://statistics.data.gov.uk/id/local-authority/00ML,Children`s & Education Serv,BVAEDU,Ed Mgmt and Support Services,EMG,Transport Related,D,Public Transport,DD,31/12/2015,PAY00827752,SACH,Standards and Achievement,9.4,Revenue,Brighton & Hove Streamline Taxis Ltd
Brighton & Hove City Council,http://statistics.data.gov.uk/id/local-authority/00ML,Children`s & Education Serv,BVAEDU,Ed Special Ed,EKE,Transport Related,D,Public Transport,DD,31/12/2015,PAY00827752,SEN,SEN,21,Revenue,Brighton & Hove Streamline Taxis Ltd
Brighton & Hove City Council,http://statistics.data.gov.uk/id/local-authority/00ML,Children`s & Education Serv,BVAEDU,Management Services (DEC),MGT,Transport Related,D,Public Transport,DD,31/12/2015,PAY00827752,OEDS,Other Education Support,52.1,Revenue,Brighton & Hove Streamline Taxis Ltd
Brighton & Hove City Council,http://statistics.data.gov.uk/id/local-authority/00ML,Children`s & Education Serv,BVAEDU,Management Services (DEC),MGT,Transport Related,D,Public Transport,DD,31/12/2015,PAY00827752,SOCK,Social Work,11.88,Revenue,Brighton & Hove Streamline Taxis Ltd
Brighton & Hove City Council,http://statistics.data.gov.uk/id/local-authority/00ML,Children`s & Education Serv,BVAEDU,Support Services (SSC),PPT,Transport Related,D,Public Transport,DD,31/12/2015,PAY00827752,OEDS,Other Education Support,9314.25,Revenue,Brighton & Hove Streamline Taxis Ltd
Brighton & Hove City Council,http://statistics.data.gov.uk/id/local-authority/00ML,Housing General Fund,BVAHOG,Homelessness,HML,Transport Related,D,Public Transport,DD,31/12/2015,PAY00827752,ASSA,Hostel Accommodation,12.32,Revenue,Brighton & Hove Streamline Taxis Ltd
Brighton & Hove City Council,http://statistics.data.gov.uk/id/local-authority/00ML,Children`s & Education Serv,BVAEDU,Ed EY PVI,ENP,Supplies and Services,E,Grants n Subscriptions,EK,16/12/2015,PAY00823713,EYRS,Early Years,637,Revenue,Brighton & Sussex University Hospitals NHS Trust
Brighton & Hove City Council,http://statistics.data.gov.uk/id/local-authority/00ML,Environment & Regulatory Serv,BVAERS,Court Services,CRT,Supplies and Services,E,Equip't Furniture n Materials,EA,16/12/2015,PAY00823713,LIFE,Life Events,3593.5,Revenue,Brighton & Sussex University Hospitals NHS Trust
Brighton & Hove City Council,http://statistics.data.gov.uk/id/local-authority/00ML,Children`s & Education Serv,BVAEDU,Ed EY PVI,ENP,Supplies and Services,E,Grants n Subscriptions,EK,18/12/2015,PAY00824762,EYRS,Early Years,14606,Revenue,Brighton & Sussex University Hospitals NHS Trust
Brighton & Hove City Council,http://statistics.data.gov.uk/id/local-authority/00ML,Adult Social Care,BVASOC,Social Care Activities,ACM,Third Party Payments,F,Other Establishments,FH,24/12/2015,PAY00826648,ASIT,Assessment and SIT,972.79,Revenue,Brighton & Sussex University Hospitals NHS Trust
Brighton & Hove City Council,http://statistics.data.gov.uk/id/local-authority/00ML,Environment & Regulatory Serv,BVAERS,Court Services,CRT,Supplies and Services,E,Equip't Furniture n Materials,EA,24/12/2015,PAY00826648,LIFE,Life Events,2900,Revenue,Brighton & Sussex University Hospitals NHS Trust
Brighton & Hove City Council,http://statistics.data.gov.uk/id/local-authority/00ML,Public Health,BVAPHE,Public Health,PHE,Supplies and Services,E,Miscellaneous Expenses,EM,24/12/2015,PAY00826648,PHCM,PH Commissioning,10000,Revenue,Brighton & Sussex University Hospitals NHS Trust
Brighton & Hove City Council,http://statistics.data.gov.uk/id/local-authority/00ML,Housing General Fund,BVAHOG,Homelessness,HML,Customer n Client Receipts,M,Fees n Charges,MB,16/12/2015,PAY00824044,SSHS,Seaside Homes (BHSCH),300821,Revenue,Brighton and Hove Seaside Community Homes Ltd
Brighton & Hove City Council,http://statistics.data.gov.uk/id/local-authority/00ML,Adult Social Care,BVASOC,ASC Learning Disabilities,ALD,Customer n Client Receipts,M,Fees n Charges,MB,23/12/2015,PAY00826046,LDIS,Learning Disabilities,-204,Revenue,Brighton and Sussex Care Ltd
Brighton & Hove City Council,http://statistics.data.gov.uk/id/local-authority/00ML,Adult Social Care,BVASOC,ASC Learning Disabilities,ALD,Third Party Payments,F,Other Establishments,FH,23/12/2015,PAY00826046,LDIS,Learning Disabilities,34298.96,Revenue,Brighton and Sussex Care Ltd
Brighton & Hove City Council,http://statistics.data.gov.uk/id/local-authority/00ML,Adult Social Care,BVASOC,ASC Mental Health Support,MHP,Customer n Client Receipts,M,Fees n Charges,MB,23/12/2015,PAY00826046,MENH,Mental Health Support,-104,Revenue,Brighton and Sussex Care Ltd
Brighton & Hove City Council,http://statistics.data.gov.uk/id/local-authority/00ML,Adult Social Care,BVASOC,ASC Mental Health Support,MHP,Third Party Payments,F,Other Establishments,FH,23/12/2015,PAY00826046,MENH,Mental Health Support,2441.32,Revenue,Brighton and Sussex Care Ltd
Brighton & Hove City Council,http://statistics.data.gov.uk/id/local-authority/00ML,Non I&E,BVANON,Non-Council,NNC,Third Party Payments,F,Other Establishments,FH,09/12/2015,PAY00821495,DEVP,Development Planning,16577.86,Revenue,Brighton BID Limited
Brighton & Hove City Council,http://statistics.data.gov.uk/id/local-authority/00ML,Non I&E,BVANON,Non-Council,NNC,Third Party Payments,F,Other Establishments,FH,16/12/2015,PAY00823697,DEVP,Development Planning,9858.93,Revenue,Brighton BID Limited
Brighton & Hove City Council,http://statistics.data.gov.uk/id/local-authority/00ML,Children`s & Education Serv,BVAEDU,Ed EY PVI,ENP,Supplies and Services,E,Grants n Subscriptions,EK,18/12/2015,PAY00824990,EYRS,Early Years,30996,Revenue,Brighton College
Brighton & Hove City Council,http://statistics.data.gov.uk/id/local-authority/00ML,Highways and Transportation,BVAHRT,Transport Plan Policy Strategy,TPP,Supplies and Services,E,Equip't Furniture n Materials,EA,23/12/2015,PAY00825892,TPRS,Transport Plan and Road Safety,500,Revenue,Brighton College
Brighton & Hove City Council,http://statistics.data.gov.uk/id/local-authority/00ML,Cultural and Related Serv,BVACUL,Culture and Heritage,CHG,Premises Related,C,Energy Costs,CB,02/12/2015,PAY00819650,RPMU,Royal Pavilion and Museums,9650.05,Revenue,Brighton Dome & Festival Ltd
Brighton & Hove City Council,http://statistics.data.gov.uk/id/local-authority/00ML,Cultural and Related Serv,BVACUL,Culture and Heritage,CHG,Premises Related,C,Water Services,CE,02/12/2015,PAY00819650,RPMU,Royal Pavilion and Museums,2867.68,Revenue,Brighton Dome & Festival Ltd
Brighton & Hove City Council,http://statistics.data.gov.uk/id/local-authority/00ML,Children`s & Education Serv,BVAEDU,Ed Mgmt and Support Services,EMG,Supplies and Services,E,Miscellaneous Expenses,EM,04/12/2015,PAY00820495,MUSE,Music Service,575,Revenue,Brighton Dome & Festival Ltd
Brighton & Hove City Council,http://statistics.data.gov.uk/id/local-authority/00ML,Cultural and Related Serv,BVACUL,Culture and Heritage,CHG,Third Party Payments,F,Other Establishments,FH,31/12/2015,PAY00827605,ARTS,Arts,324088,Revenue,Brighton Dome & Festival Ltd
Brighton & Hove City Council,http://statistics.data.gov.uk/id/local-authority/00ML,Non I&E,BVANON,CAP Libs Culture and Hertage,4LH,New Construction n Conversion,PB,New Construction n Conversion,PBL5,31/12/2015,PAY00827605,RPMU,Royal Pavilion and Museums,59659.8,Capital,Brighton Dome & Festival Ltd
Brighton & Hove City Council,http://statistics.data.gov.uk/id/local-authority/00ML,Housing General Fund,BVAHOG,Homelessness,HML,Premises Related,C,Repair Maint n Alterations,CA,04/12/2015,PAY00820550,ASSA,Hostel Accommodation,393,Revenue,Brighton Fire Alarms Ltd
Brighton & Hove City Council,http://statistics.data.gov.uk/id/local-authority/00ML,Housing General Fund,BVAHOG,Hsing Welfare,HGW,Transfer Payments,G,Supporting People,GF,02/12/2015,PAY00819763,AHRS,Housing Related Support,108774.84,Revenue,Brighton Housing Trust
Brighton & Hove City Council,http://statistics.data.gov.uk/id/local-authority/00ML,Adult Social Care,BVASOC,ASC Mental Health Support,MHP,Customer n Client Receipts,M,Fees n Charges,MB,18/12/2015,PAY00824763,MENH,Mental Health Support,-309,Revenue,Brighton Housing Trust
Brighton & Hove City Council,http://statistics.data.gov.uk/id/local-authority/00ML,Adult Social Care,BVASOC,ASC Mental Health Support,MHP,Third Party Payments,F,Other Establishments,FH,18/12/2015,PAY00824763,MENH,Mental Health Support,15756,Revenue,Brighton Housing Trust
Brighton & Hove City Council,http://statistics.data.gov.uk/id/local-authority/00ML,Housing General Fund,BVAHOG,Hsing Welfare,HGW,Transfer Payments,G,Supporting People,GF,24/12/2015,PAY00826650,AHRS,Housing Related Support,9903.67,Revenue,Brighton Housing Trust
Brighton & Hove City Council,http://statistics.data.gov.uk/id/local-authority/00ML,Adult Social Care,BVASOC,ASC Mental Health Support,MHP,Third Party Payments,F,Other Establishments,FH,31/12/2015,PAY00827755,MENH,Mental Health Support,4848,Revenue,Brighton Housing Trust
Brighton & Hove City Council,http://statistics.data.gov.uk/id/local-authority/00ML,Cultural and Related Serv,BVACUL,Recreation and Sport,REC,Supplies and Services,E,Miscellaneous Expenses,EM,02/12/2015,PAY00820003,SDEV,Sports Development,2000,Revenue,Brighton Japanese Festival C.I.C
Brighton & Hove City Council,http://statistics.data.gov.uk/id/local-authority/00ML,Cultural and Related Serv,BVACUL,Management Services (DEC),MGT,Transport Related,D,Direct Transport Costs,DA,16/12/2015,PAY00824021,CIPK,City Parks,538.49,Revenue,Brighton Mitsubishi
Brighton & Hove City Council,http://statistics.data.gov.uk/id/local-authority/00ML,Children`s & Education Serv,BVAEDU,Child Srvcs - Other Fam Supp,FFX,Third Party Payments,F,Other Establishments,FH,02/12/2015,PAY00819682,SOCK,Social Work,11583.5,Revenue,Brighton Oasis Project
Brighton & Hove City Council,http://statistics.data.gov.uk/id/local-authority/00ML,Children`s & Education Serv,BVAEDU,Child Srvcs - Other Fam Supp,FFX,Transfer Payments,G,Other Transfer Payments,GD,31/12/2015,PAY00827651,FAMP,Families\Prevention,150,Revenue,Brighton Oasis Project
Brighton & Hove City Council,http://statistics.data.gov.uk/id/local-authority/00ML,Planning and Development,BVAPLA,Economic Development,ECD,Supplies and Services,E,Grants n Subscriptions,EK,31/12/2015,PAY00827651,CMNY,Communities and Equalities,6250,Revenue,Brighton Oasis Project
Brighton & Hove City Council,http://statistics.data.gov.uk/id/local-authority/00ML,Central Support and Overheads,BVACEN,Support Services (SSC),PPT,Premises Related,C,Repair Maint n Alterations,CA,11/12/2015,PAY00822454,PROP,Property and Design,1058.3,Revenue,Brighton Paper Round Ltd
Brighton & Hove City Council,http://statistics.data.gov.uk/id/local-authority/00ML,Central Support and Overheads,BVACEN,Support Services (SSC),PPT,Premises Related,C,Repair Maint n Alterations,CA,31/12/2015,PAY00827777,PROP,Property and Design,1313.16,Revenue,Brighton Paper Round Ltd
Brighton & Hove City Council,http://statistics.data.gov.uk/id/local-authority/00ML,Children`s & Education Serv,BVAEDU,Child Srvcs - Other Fam Supp,FFX,Transfer Payments,G,Other Transfer Payments,GD,18/12/2015,PAY00825492,FAMP,Families\Prevention,540,Revenue,Brighton Parent Infant Psychological Therapy
Brighton & Hove City Council,http://statistics.data.gov.uk/id/local-authority/00ML,Planning and Development,BVAPLA,Economic Development,ECD,Supplies and Services,E,Miscellaneous Expenses,EM,11/12/2015,PAY00822190,SUAI,Sustainability & International,833.33,Revenue,Brighton Peace & Environment Centre
Brighton & Hove City Council,http://statistics.data.gov.uk/id/local-authority/00ML,Planning and Development,BVAPLA,Economic Development,ECD,Supplies and Services,E,Miscellaneous Expenses,EM,18/12/2015,PAY00824598,SUAI,Sustainability & International,1263.33,Revenue,Brighton Peace & Environment Centre
Brighton & Hove City Council,http://statistics.data.gov.uk/id/local-authority/00ML,Planning and Development,BVAPLA,Community Development,CDV,Supplies and Services,E,Miscellaneous Expenses,EM,02/12/2015,PAY00820054,CMNY,Communities and Equalities,5000,Revenue,Brighton Pride CIC
Brighton & Hove City Council,http://statistics.data.gov.uk/id/local-authority/00ML,Central Support and Overheads,BVACEN,Support Services (SSC),PPT,Supplies and Services,E,Expenses,EJ,02/12/2015,PAY00819655,DEMO,Democratic Services,25,Revenue,Brighton Quaker Meeting
Brighton & Hove City Council,http://statistics.data.gov.uk/id/local-authority/00ML,Housing General Fund,BVAHOG,Hsing Strat Advice and RSLs,HGR,Premises Related,C,Rents Payable,CC,02/12/2015,PAY00819655,ASSA,Hostel Accommodation,444,Revenue,Brighton Quaker Meeting
Brighton & Hove City Council,http://statistics.data.gov.uk/id/local-authority/00ML,Central Support and Overheads,BVACEN,Support Services (SSC),PPT,Premises Related,C,Rents Payable,CC,04/12/2015,PAY00820503,PROP,Property and Design,496.5,Revenue,Brighton Quaker Meeting
Brighton & Hove City Council,http://statistics.data.gov.uk/id/local-authority/00ML,Children`s & Education Serv,BVAEDU,Child Srvcs - Other Fam Supp,FFX,Premises Related,C,Rents Payable,CC,04/12/2015,PAY00820503,SFSC,Stronger Families Stronger Com,110,Revenue,Brighton Quaker Meeting
Brighton & Hove City Council,http://statistics.data.gov.uk/id/local-authority/00ML,Children`s & Education Serv,BVAEDU,Ed Mgmt and Support Services,EMG,Premises Related,C,Rents Payable,CC,09/12/2015,PAY00821400,SACH,Standards and Achievement,914,Revenue,Brighton Quaker Meeting
Brighton & Hove City Council,http://statistics.data.gov.uk/id/local-authority/00ML,Housing General Fund,BVAHOG,Hsing Strat Advice and RSLs,HGR,Premises Related,C,Rents Payable,CC,09/12/2015,PAY00821400,ASSA,Hostel Accommodation,276,Revenue,Brighton Quaker Meeting
Brighton & Hove City Council,http://statistics.data.gov.uk/id/local-authority/00ML,Planning and Development,BVAPLA,Community Development,CDV,Premises Related,C,Rents Payable,CC,09/12/2015,PAY00821400,CMNY,Communities and Equalities,82,Revenue,Brighton Quaker Meeting
Brighton & Hove City Council,http://statistics.data.gov.uk/id/local-authority/00ML,Children`s & Education Serv,BVAEDU,Child Srvcs Other,FAX,Supplies and Services,E,Miscellaneous Expenses,EM,16/12/2015,PAY00823576,CHIP,Child Protection,159.5,Revenue,Brighton Quaker Meeting
Brighton & Hove City Council,http://statistics.data.gov.uk/id/local-authority/00ML,Children`s & Education Serv,BVAEDU,Ed Mgmt and Support Services,EMG,Premises Related,C,Rents Payable,CC,16/12/2015,PAY00823576,SACH,Standards and Achievement,327.5,Revenue,Brighton Quaker Meeting
Brighton & Hove City Council,http://statistics.data.gov.uk/id/local-authority/00ML,Central Support and Overheads,BVACEN,Support Services (SSC),PPT,Indirect Employees,B,Training,BM,31/12/2015,PAY00827612,ORGD,Organisational Development,923.5,Revenue,Brighton Quaker Meeting
Brighton & Hove City Council,http://statistics.data.gov.uk/id/local-authority/00ML,Children`s & Education Serv,BVAEDU,Ed Mgmt and Support Services,EMG,Premises Related,C,Rents Payable,CC,31/12/2015,PAY00827612,SACH,Standards and Achievement,691.5,Revenue,Brighton Quaker Meeting
Brighton & Hove City Council,http://statistics.data.gov.uk/id/local-authority/00ML,Non-BHC Organisations,BVANON,Non-Council,NNC,Supplies and Services,E,Equip't Furniture n Materials,EA,04/12/2015,PAY00821088,NBHC,Non Council,750,Revenue,Brighton Soundsystem
Brighton & Hove City Council,http://statistics.data.gov.uk/id/local-authority/00ML,Children`s & Education Serv,BVAEDU,Ed EY PVI,ENP,Supplies and Services,E,Grants n Subscriptions,EK,16/12/2015,PAY00823936,EYRS,Early Years,464,Revenue,Brighton Steiner School Ltd
Brighton & Hove City Council,http://statistics.data.gov.uk/id/local-authority/00ML,Children`s & Education Serv,BVAEDU,Ed EY PVI,ENP,Supplies and Services,E,Grants n Subscriptions,EK,18/12/2015,PAY00825148,EYRS,Early Years,15125,Revenue,Brighton Steiner School Ltd
Brighton & Hove City Council,http://statistics.data.gov.uk/id/local-authority/00ML,Children`s & Education Serv,BVAEDU,Ed Ed Other Other,ENF,Third Party Payments,F,Other Establishments,FH,18/12/2015,PAY00825068,OEDS,Other Education Support,480,Revenue,Brighton Table Tennis Club
Brighton & Hove City Council,http://statistics.data.gov.uk/id/local-authority/00ML,Cultural and Related Serv,BVACUL,Management Services (DEC),MGT,Transport Related,D,Direct Transport Costs,DA,02/12/2015,PAY00819762,CIPK,City Parks,245.49,Revenue,Brighton Tools & Fixings Ltd
Brighton & Hove City Council,http://statistics.data.gov.uk/id/local-authority/00ML,Cultural and Related Serv,BVACUL,Culture and Heritage,CHG,Premises Related,C,Repair Maint n Alterations,CA,16/12/2015,PAY00823714,VENU,Venues,89.11,Revenue,Brighton Tools & Fixings Ltd
Brighton & Hove City Council,http://statistics.data.gov.uk/id/local-authority/00ML,Environment & Regulatory Serv,BVAERS,Street Cleansing,CLE,Supplies and Services,E,Equip't Furniture n Materials,EA,16/12/2015,PAY00823714,CICL,City Clean,442.94,Revenue,Brighton Tools & Fixings Ltd
Brighton & Hove City Council,http://statistics.data.gov.uk/id/local-authority/00ML,Planning and Development,BVAPLA,Economic Development,ECD,Supplies and Services,E,Grants n Subscriptions,EK,31/12/2015,PAY00827756,CMNY,Communities and Equalities,10250,Revenue,Brighton Unemployed Ctr Families Project Playroom
Brighton & Hove City Council,http://statistics.data.gov.uk/id/local-authority/00ML,Adult Social Care,BVASOC,ASC Learning Disabilities,ALD,Customer n Client Receipts,M,Fees n Charges,MB,23/12/2015,PAY00826158,LDIS,Learning Disabilities,-282,Revenue,Brighton Vision
Brighton & Hove City Council,http://statistics.data.gov.uk/id/local-authority/00ML,Adult Social Care,BVASOC,ASC Learning Disabilities,ALD,Third Party Payments,F,Other Establishments,FH,23/12/2015,PAY00826158,LDIS,Learning Disabilities,2756.4,Revenue,Brighton Vision
Brighton & Hove City Council,http://statistics.data.gov.uk/id/local-authority/00ML,Children`s & Education Serv,BVAEDU,Ed EY PVI,ENP,Supplies and Services,E,Grants n Subscriptions,EK,16/12/2015,PAY00823711,EYRS,Early Years,753,Revenue,Brighton Women`s Centre Ltd
Brighton & Hove City Council,http://statistics.data.gov.uk/id/local-authority/00ML,Children`s & Education Serv,BVAEDU,Ed EY PVI,ENP,Supplies and Services,E,Grants n Subscriptions,EK,18/12/2015,PAY00824761,EYRS,Early Years,798,Revenue,Brighton Women`s Centre Ltd
Brighton & Hove City Council,http://statistics.data.gov.uk/id/local-authority/00ML,Housing General Fund,BVAHOG,Hsing Welfare,HGW,Transfer Payments,G,Supporting People,GF,02/12/2015,PAY00819642,AHRS,Housing Related Support,48461.83,Revenue,Brighton YMCA
Brighton & Hove City Council,http://statistics.data.gov.uk/id/local-authority/00ML,Children`s & Education Serv,BVAEDU,Ed EY PVI,ENP,Supplies and Services,E,Grants n Subscriptions,EK,16/12/2015,PAY00824160,EYRS,Early Years,1958,Revenue,Brightsaurus Nursery
Brighton & Hove City Council,http://statistics.data.gov.uk/id/local-authority/00ML,Children`s & Education Serv,BVAEDU,Ed EY PVI,ENP,Supplies and Services,E,Grants n Subscriptions,EK,18/12/2015,PAY00825380,EYRS,Early Years,22504,Revenue,Brightsaurus Nursery
Brighton & Hove City Council,http://statistics.data.gov.uk/id/local-authority/00ML,Central Support and Overheads,BVACEN,Support Services (SSC),PPT,Indirect Employees,B,Training,BM,09/12/2015,PAY00821617,ORGD,Organisational Development,1515,Revenue,Brightstone Consulting Ltd
Brighton & Hove City Council,http://statistics.data.gov.uk/id/local-authority/00ML,Highways and Transportation,BVAHRT,Parking Services,PRK,Supplies and Services,E,Services,EF,11/12/2015,PAY00822199,PARK,Parking,1098,Revenue,British Parking Association
Brighton & Hove City Council,http://statistics.data.gov.uk/id/local-authority/00ML,Highways and Transportation,BVAHRT,Traffic Mgmnt and Road Safety,TMR,Supplies and Services,E,Services,EF,11/12/2015,PAY00822189,TPRS,Transport Plan and Road Safety,879,Revenue,British Standards Institution
Brighton & Hove City Council,http://statistics.data.gov.uk/id/local-authority/00ML,Environment & Regulatory Serv,BVAERS,Environmental Health,EVH,Supplies and Services,E,Services,EF,31/12/2015,PAY00827582,PUPO,Public Protection,857,Revenue,British Standards Institution
Brighton & Hove City Council,http://statistics.data.gov.uk/id/local-authority/00ML,Highways and Transportation,BVAHRT,Highways and Roads - Mntnce,HRM,Supplies and Services,E,Communications n Computing,EH,02/12/2015,PAY00819833,HIGH,Highways,4261.21,Revenue,British Telecommunications Plc
Brighton & Hove City Council,http://statistics.data.gov.uk/id/local-authority/00ML,Non I&E,BVANON,CAP Sport and Recreation,4RC,Plant Machinery n Equipment,PE2,Plant Machinery n Equipment,PE2L5,18/12/2015,PAY00825008,MJPR,Major Projects,10315,Capital,British Telecommunications Plc
Brighton & Hove City Council,http://statistics.data.gov.uk/id/local-authority/00ML,Adult Social Care,BVASOC,ASC Physical Support,PHY,Customer n Client Receipts,M,Fees n Charges,MB,04/12/2015,PAY00821087,PHYS,Physical Support,-1010.4,Revenue,Brooklands
Brighton & Hove City Council,http://statistics.data.gov.uk/id/local-authority/00ML,Adult Social Care,BVASOC,ASC Physical Support,PHY,Third Party Payments,F,Other Establishments,FH,04/12/2015,PAY00821087,PHYS,Physical Support,3648,Revenue,Brooklands
Brighton & Hove City Council,http://statistics.data.gov.uk/id/local-authority/00ML,Adult Social Care,BVASOC,ASC Physical Support,PHY,Customer n Client Receipts,M,Fees n Charges,MB,23/12/2015,PAY00826140,PHYS,Physical Support,-505.2,Revenue,Brooklands
Brighton & Hove City Council,http://statistics.data.gov.uk/id/local-authority/00ML,Adult Social Care,BVASOC,ASC Physical Support,PHY,Third Party Payments,F,Other Establishments,FH,23/12/2015,PAY00826140,PHYS,Physical Support,1824,Revenue,Brooklands
Brighton & Hove City Council,http://statistics.data.gov.uk/id/local-authority/00ML,Adult Social Care,BVASOC,ASC Mental Health Support,MHP,Third Party Payments,F,Other Establishments,FH,09/12/2015,PAY00821386,MENH,Mental Health Support,203.83,Revenue,BS Project Services Ltd
Brighton & Hove City Council,http://statistics.data.gov.uk/id/local-authority/00ML,Adult Social Care,BVASOC,ASC Physical Support,PHY,Third Party Payments,F,Other Establishments,FH,09/12/2015,PAY00821386,PHYS,Physical Support,468.8,Revenue,BS Project Services Ltd
Brighton & Hove City Council,http://statistics.data.gov.uk/id/local-authority/00ML,Adult Social Care,BVASOC,ASC Substance Misuse,ADM,Third Party Payments,F,Other Establishments,FH,09/12/2015,PAY00821386,SUBM,Substance Misuse Support,474.1,Revenue,BS Project Services Ltd
Brighton & Hove City Council,http://statistics.data.gov.uk/id/local-authority/00ML,Adult Social Care,BVASOC,ASC Substance Misuse,ADM,Third Party Payments,F,Other Establishments,FH,11/12/2015,PAY00822194,SUBM,Substance Misuse Support,1202.24,Revenue,BS Project Services Ltd
Brighton & Hove City Council,http://statistics.data.gov.uk/id/local-authority/00ML,Central Services to the Public,BVACEN,Reg - Birth Death and Marriage,RBD,Supplies and Services,E,Communications n Computing,EH,31/12/2015,PAY00827761,LIFE,Life Events,14.67,Revenue,BT Business Direct Ltd
Brighton & Hove City Council,http://statistics.data.gov.uk/id/local-authority/00ML,Central Support and Overheads,BVACEN,Support Services (SSC),PPT,Supplies and Services,E,Communications n Computing,EH,31/12/2015,PAY00827761,ICTA,ICT,445.22,Revenue,BT Business Direct Ltd
Brighton & Hove City Council,http://statistics.data.gov.uk/id/local-authority/00ML,Environment & Regulatory Serv,BVAERS,Waste Management,WMT,Transport Related,D,Direct Transport Costs,DA,04/12/2015,PAY00820499,CICL,City Clean,255.65,Revenue,BTR Brakes (Sussex) Ltd
Brighton & Hove City Council,http://statistics.data.gov.uk/id/local-authority/00ML,Cultural and Related Serv,BVACUL,Culture and Heritage,CHG,Supplies and Services,E,Miscellaneous Expenses,EM,18/12/2015,PAY00825562,RPMU,Royal Pavilion and Museums,500,Revenue,Bullet PR Ltd
Brighton & Hove City Council,http://statistics.data.gov.uk/id/local-authority/00ML,Adult Social Care,BVASOC,ASC Memory Cognition Support,MEM,Customer n Client Receipts,M,Fees n Charges,MB,04/12/2015,PAY00820769,COGN,Memory Cognition Support,-675.04,Revenue,BUPA Care Services
Brighton & Hove City Council,http://statistics.data.gov.uk/id/local-authority/00ML,Adult Social Care,BVASOC,ASC Memory Cognition Support,MEM,Third Party Payments,F,Other Establishments,FH,04/12/2015,PAY00820769,COGN,Memory Cognition Support,2500.68,Revenue,BUPA Care Services
Brighton & Hove City Council,http://statistics.data.gov.uk/id/local-authority/00ML,Central Support and Overheads,BVACEN,Support Services (SSC),PPT,Third Party Payments,F,Other Establishments,FH,04/12/2015,PAY00820769,FINS,Financial Services,12923.2,Revenue,BUPA Care Services
Brighton & Hove City Council,http://statistics.data.gov.uk/id/local-authority/00ML,Central Support and Overheads,BVACEN,Support Services (SSC),PPT,Third Party Payments,F,Other Establishments,FH,11/12/2015,PAY00822478,FINS,Financial Services,3414.97,Revenue,BUPA Care Services
Brighton & Hove City Council,http://statistics.data.gov.uk/id/local-authority/00ML,Adult Social Care,BVASOC,ASC Memory Cognition Support,MEM,Customer n Client Receipts,M,Fees n Charges,MB,18/12/2015,PAY00824966,COGN,Memory Cognition Support,-10422.72,Revenue,BUPA Care Services
Brighton & Hove City Council,http://statistics.data.gov.uk/id/local-authority/00ML,Adult Social Care,BVASOC,ASC Memory Cognition Support,MEM,Third Party Payments,F,Other Establishments,FH,18/12/2015,PAY00824966,COGN,Memory Cognition Support,22111.92,Revenue,BUPA Care Services
Brighton & Hove City Council,http://statistics.data.gov.uk/id/local-authority/00ML,Adult Social Care,BVASOC,ASC Physical Support,PHY,Customer n Client Receipts,M,Fees n Charges,MB,18/12/2015,PAY00824966,PHYS,Physical Support,-7353.76,Revenue,BUPA Care Services
Brighton & Hove City Council,http://statistics.data.gov.uk/id/local-authority/00ML,Adult Social Care,BVASOC,ASC Physical Support,PHY,Third Party Payments,F,Other Establishments,FH,18/12/2015,PAY00824966,PHYS,Physical Support,29402.28,Revenue,BUPA Care Services
Brighton & Hove City Council,http://statistics.data.gov.uk/id/local-authority/00ML,Adult Social Care,BVASOC,ASC Physical Support,PHY,Customer n Client Receipts,M,Fees n Charges,MB,09/12/2015,PAY00821961,PHYS,Physical Support,-543.04,Revenue,Burdyke Lodge
Brighton & Hove City Council,http://statistics.data.gov.uk/id/local-authority/00ML,Adult Social Care,BVASOC,ASC Physical Support,PHY,Third Party Payments,F,Other Establishments,FH,09/12/2015,PAY00821961,PHYS,Physical Support,1679.16,Revenue,Burdyke Lodge
Brighton & Hove City Council,http://statistics.data.gov.uk/id/local-authority/00ML,Children`s & Education Serv,BVAEDU,Ed EY PVI,ENP,Supplies and Services,E,Grants n Subscriptions,EK,16/12/2015,PAY00823798,EYRS,Early Years,3187,Revenue,Busy Bees Brighton
Brighton & Hove City Council,http://statistics.data.gov.uk/id/local-authority/00ML,Children`s & Education Serv,BVAEDU,Ed EY PVI,ENP,Supplies and Services,E,Grants n Subscriptions,EK,18/12/2015,PAY00824970,EYRS,Early Years,19031,Revenue,Busy Bees Brighton
Brighton & Hove City Council,http://statistics.data.gov.uk/id/local-authority/00ML,Children`s & Education Serv,BVAEDU,Ed EY PVI,ENP,Supplies and Services,E,Grants n Subscriptions,EK,16/12/2015,PAY00823807,EYRS,Early Years,2472,Revenue,Busy Bees Hove
Brighton & Hove City Council,http://statistics.data.gov.uk/id/local-authority/00ML,Children`s & Education Serv,BVAEDU,Ed EY PVI,ENP,Supplies and Services,E,Grants n Subscriptions,EK,18/12/2015,PAY00824984,EYRS,Early Years,11998,Revenue,Busy Bees Hove
Brighton & Hove City Council,http://statistics.data.gov.uk/id/local-authority/00ML,Non I&E,BVANON,CAP Education Services,4ED,New Construction n Conversion,PB,New Construction n Conversion,PBL5,31/12/2015,PAY00827958,OEDS,Other Education Support,3470,Capital,BWT South East Ltd
Brighton & Hove City Council,http://statistics.data.gov.uk/id/local-authority/00ML,Housing Revenue Account,BVAHOU,Hsing Management - HRA,HGM,Premises Related,C,Repair Maint n Alterations,CA,11/12/2015,PAY00822332,HIII,Income Involvement Improvement,18.86,Revenue,C Brewer & Sons Ltd
Brighton & Hove City Council,http://statistics.data.gov.uk/id/local-authority/00ML,Housing Revenue Account,BVAHOU,Hsing Management - HRA,HGM,Premises Related,C,Repair Maint n Alterations,CA,11/12/2015,PAY00822332,HTEN,Tenancy Services,231.96,Revenue,C Brewer & Sons Ltd
Brighton & Hove City Council,http://statistics.data.gov.uk/id/local-authority/00ML,Cultural and Related Serv,BVACUL,Open Spaces,PEN,Supplies and Services,E,Equip't Furniture n Materials,EA,24/12/2015,PAY00826654,CIPK,City Parks,63.48,Revenue,C Brewer & Sons Ltd
Brighton & Hove City Council,http://statistics.data.gov.uk/id/local-authority/00ML,Housing Revenue Account,BVAHOU,Hsing Management - HRA,HGM,Premises Related,C,Repair Maint n Alterations,CA,24/12/2015,PAY00826654,HIII,Income Involvement Improvement,37.72,Revenue,C Brewer & Sons Ltd
Brighton & Hove City Council,http://statistics.data.gov.uk/id/local-authority/00ML,Housing Revenue Account,BVAHOU,Hsing Management - HRA,HGM,Premises Related,C,Repair Maint n Alterations,CA,24/12/2015,PAY00826654,HTEN,Tenancy Services,163.35,Revenue,C Brewer & Sons Ltd
Brighton & Hove City Council,http://statistics.data.gov.uk/id/local-authority/00ML,Central Support and Overheads,BVACEN,Support Services (SSC),PPT,Premises Related,C,Repair Maint n Alterations,CA,16/12/2015,PAY00823817,PROP,Property and Design,7750,Revenue,C J Thorne & Co Ltd
Brighton & Hove City Council,http://statistics.data.gov.uk/id/local-authority/00ML,Non I&E,BVANON,CAP Other Env Services,4EV,New Construction n Conversion,PB,New Construction n Conversion,PBL5,16/12/2015,PAY00823817,PROP,Property and Design,13352.91,Capital,C J Thorne & Co Ltd
Brighton & Hove City Council,http://statistics.data.gov.uk/id/local-authority/00ML,Environment & Regulatory Serv,BVAERS,Flood Drainage and Coast Prtn,FDC,Premises Related,C,Repair Maint n Alterations,CA,23/12/2015,PAY00825899,HWEN,Highways Engineering,5743.75,Revenue,C J Thorne & Co Ltd
Brighton & Hove City Council,http://statistics.data.gov.uk/id/local-authority/00ML,Cultural and Related Serv,BVACUL,Recreation and Sport,REC,Premises Related,C,Repair Maint n Alterations,CA,24/12/2015,PAY00826846,SEAS,Seafront Services,2250,Revenue,C J Thorne & Co Ltd
